Workbook

Sheet Pavement Design
B1: BDE 5401 Template (Rev. 09/05/2013) | E1: IDOT MECHANISTIC PAVEMENT DESIGN | J1: Printed: | K1: =NOW() -> 2017-05-04T11:05:27.110 | N1: If cell comments are not visible, click Office Button / Excel Options / Advanced / Display / Indicators only, and comments on hover.
E2: PROJECT AND TRAFFIC INPUTS | H2: (Enter Data in Gray Shaded Cells) | T2: =IF(NumberOfLanes="1 Lane Ramp","I",IF(OR(NumberOfLanes="4",NumberOfLanes="6 or more"),"I",IF(AND(NumberOfLanes="2 or 3",FutureFourLanes="Yes"),"I",IF(AND(NumberOfLanes="2 or 3",FutureFourLanes="No",OneWayStreet="No"),VLOOKUP(ADT,TwoOrThreeLaneClassTable,3,TRUE),IF(AND(NumberOfLanes="2 or 3",FutureFourLanes="No",OneWayStreet="Yes"),VLOOKUP(ADT,OneWayStreetClassTable,3,TRUE),"ERROR"))))) -> I | V2: 4
B3: Route: | D3: Comments:
B4: Section: | U4: - | V4: -
B5: County: | D5: Design Date: | G5: <-- BY | U5: - | V5: -
B6: Location: | D6: Modify Date: | G6: <-- BY | H6: ADT | I6: Year | P6: BDE Chapter 53 - Pavement Rehabilitation
G7: Current: | P7: BDE Chapter 54 - Pavement Design | S7: =PVpercent*ADT -> 0 | T7: =1-SUpercent-MUpercent -> 1 | V7: =PV/ADT -> 
B8: Facility Type | C8: Interstate or Freeway | E8: =IF(NumberOfLanes="1 Lane Ramp","** Ramp Design Fig. 54-1.B **","") ->  | G8: Future: | S8: =SUpercent*ADT -> 0 | V8: =SU/ADT -> 
C9: # of Lanes = | D9: 4 | E9: =IF(NumberOfLanes="1 Lane Ramp","Crossroad?","") ->  | F9: Interstate or Freeway | S9: =MUpercent*ADT -> 0 | V9: =MU/ADT -> 
C10: =IF(NumberOfLanes="2 or 3","Part of future 4 lanes or more ?","") ->  | D10: No | E10: =IF(NumberOfLanes="1 Lane Ramp","# of Lanes =","") ->  | F10: 4 | H10: Structural Design Traffic | S10: =IF(AND(CurrentADT=FutureADT,CurrentYear=FutureYear),FutureADT,CurrentADT+(FutureADT-CurrentADT)*(DesignYear-CurrentYear)/(FutureYear-CurrentYear)) -> 0 | U10: =PV+SU+MU -> 0
C11: =IF(AND(NumberOfLanes="2 or 3",FutureFourLanes="No"),"One Way Street ?","") ->  | D11: No | E11: =IF(AND(NumberOfLanes="1 Lane Ramp",CrossroadNumberOfLanes="6 or more"),"Rural or Urban?","") ->  | F11: Rural | G11: Minimum | H11: Actual | I11: Actual %of | J11: % of ADT in
C12: Road Class: | D12: =IF(NumberOfLanes="1 Lane Ramp","I",IF(OR(NumberOfLanes="4",NumberOfLanes="6 or more"),"I",IF(AND(NumberOfLanes="2 or 3",FutureFourLanes="Yes"),"I",IF(AND(NumberOfLanes="2 or 3",FutureFourLanes="No",OneWayStreet="No"),VLOOKUP(ADT,TwoOrThreeLaneClassTable,3,TRUE),IF(AND(NumberOfLanes="2 or 3",FutureFourLanes="No",OneWayStreet="Yes"),VLOOKUP(ADT,OneWayStreetClassTable,3,TRUE),"ERROR"))))) -> I | F12: =IF(CrossroadType="Interstate or Freeway","I","II") -> I | G12: ADT | H12: ADT | I12: Total ADT | J12: Design Lane | T12: =VLOOKUP(NumberOfLanes,ADTInDesignLaneTable,IF(AND(NumberOfLanes="6 or more",RuralUrban="Urban"),5,2)) -> 0.32
C13: =IF(AND(NumberOfLanes="6 or more",ISTEXT(NumberOfLanes)),"Rural or Urban ?","") ->  | D13: Urban | F13: PV = | G13: =IF(NumberOfLanes="1 Lane Ramp",VLOOKUP(CrossroadType,MinimumADTTable,2,FALSE),VLOOKUP(FacilityType,MinimumADTTable,2,FALSE)) -> 0 | H13: =PVpercent*ADT -> 0 | I13: =1-SUpercent-MUpercent -> 1 | J13: P = | K13: =VLOOKUP(NumberOfLanes,ADTInDesignLaneTable,IF(AND(NumberOfLanes="6 or more",RuralUrban="Urban"),5,2)) -> 0.32 | T13: =VLOOKUP(NumberOfLanes,ADTInDesignLaneTable,IF(AND(NumberOfLanes="6 or more",RuralUrban="Urban"),6,3)) -> 0.45
C14: Subgrade Support Rating (SSR): | D14: Poor | F14: SU = | G14: =IF(NumberOfLanes="1 Lane Ramp",VLOOKUP(CrossroadType,MinimumADTTable,3,FALSE),VLOOKUP(FacilityType,MinimumADTTable,3,FALSE)) -> 500 | H14: =SUpercent*ADT -> 0 | J14: S = | K14: =VLOOKUP(NumberOfLanes,ADTInDesignLaneTable,IF(AND(NumberOfLanes="6 or more",RuralUrban="Urban"),6,3)) -> 0.45 | T14: =VLOOKUP(NumberOfLanes,ADTInDesignLaneTable,IF(AND(NumberOfLanes="6 or more",RuralUrban="Urban"),7,4)) -> 0.45
C15: Construction Year: | D15: 2013 | F15: MU = | G15: =IF(NumberOfLanes="1 Lane Ramp",VLOOKUP(CrossroadType,MinimumADTTable,4,FALSE),VLOOKUP(FacilityType,MinimumADTTable,4,FALSE)) -> 1500 | H15: =MUpercent*ADT -> 0 | J15: M = | K15: =VLOOKUP(NumberOfLanes,ADTInDesignLaneTable,IF(AND(NumberOfLanes="6 or more",RuralUrban="Urban"),7,4)) -> 0.45
C16: Design Period (DP) = | D16: 20 | E16: years | G16: Struct. Design ADT = | H16: =IF(AND(CurrentADT=FutureADT,CurrentYear=FutureYear),FutureADT,CurrentADT+(FutureADT-CurrentADT)*(DesignYear-CurrentYear)/(FutureYear-CurrentYear)) -> 0 | I16: =ConstructionYear+DP/2 -> 2023 | S16: SSR Number | T16: TiedUntied Number
S17: (Blank=0, Poor=1, Fair=2, Granular=3) | T17: (Blank=0, Untied=1, Tied=2)
F18: TRAFFIC FACTOR CALCULATION | S18: =IF(ISBLANK(SSRText),0,IF(SSRText="Poor",1,IF(SSRText="Fair",2,IF(SSRText="Granular",3,"ERROR")))) -> 1 | T18: =IF(ISBLANK(TiedUntiedText),0,IF(TiedUntiedText="Untied",1,IF(TiedUntiedText="Tied",2))) -> 2
D19: FLEXIBLE PAVEMENT | E19: =IF(NumberOfLanes="1 Lane Ramp","RAMP DESIGN MIN","") ->  | I19: RIGID PAVEMENT | J19: =IF(NumberOfLanes="1 Lane Ramp","RAMP DESIGN MIN","") -> 
C20: Cpv = | D20: 0.15 | E20: 0.15 | F20: =IF(CrossroadType="Unmarked State Route",0.5,VLOOKUP(CrossroadNumberOfLanes,ADTInDesignLaneTable,IF(AND(CrossroadNumberOfLanes="6 or more",CrossroadRuralUrban="Urban"),5,2))) -> 0.32 | H20: Cpv = | I20: 0.15 | J20: 0.15 | K20: =IF(CrossroadType="Unmarked State Route",0.5,VLOOKUP(CrossroadNumberOfLanes,ADTInDesignLaneTable,IF(AND(CrossroadNumberOfLanes="6 or more",CrossroadRuralUrban="Urban"),5,2))) -> 0.32 | S20: 0.15 | T20: 0.15
C21: Csu = | D21: =VLOOKUP(RoadClass,ESALCoefficientsTable,4,FALSE) -> 132.5 | E21: =VLOOKUP(RampRoadClass,ESALCoefficientsTable,4,FALSE) -> 132.5 | F21: =IF(CrossroadType="Unmarked State Route",0.5,VLOOKUP(CrossroadNumberOfLanes,ADTInDesignLaneTable,IF(AND(CrossroadNumberOfLanes="6 or more",CrossroadRuralUrban="Urban"),6,3))) -> 0.45 | H21: Csu = | I21: =VLOOKUP(RoadClass,ESALCoefficientsTable,2,FALSE) -> 143.81 | J21: =VLOOKUP(RampRoadClass,ESALCoefficientsTable,2,FALSE) -> 143.81 | K21: =IF(CrossroadType="Unmarked State Route",0.5,VLOOKUP(CrossroadNumberOfLanes,ADTInDesignLaneTable,IF(AND(CrossroadNumberOfLanes="6 or more",CrossroadRuralUrban="Urban"),6,3))) -> 0.45 | S21: =VLOOKUP(RoadClass,ESALCoefficientsTable,4,FALSE) -> 132.5 | T21: =VLOOKUP(RoadClass,ESALCoefficientsTable,2,FALSE) -> 143.81
C22: Cmu = | D22: =VLOOKUP(RoadClass,ESALCoefficientsTable,5,FALSE) -> 482.53 | E22: =VLOOKUP(RampRoadClass,ESALCoefficientsTable,5,FALSE) -> 482.53 | F22: =IF(CrossroadType="Unmarked State Route",0.5,VLOOKUP(CrossroadNumberOfLanes,ADTInDesignLaneTable,IF(AND(CrossroadNumberOfLanes="6 or more",CrossroadRuralUrban="Urban"),7,4))) -> 0.45 | H22: Cmu = | I22: =VLOOKUP(RoadClass,ESALCoefficientsTable,3,FALSE) -> 696.42 | J22: =VLOOKUP(RampRoadClass,ESALCoefficientsTable,3,FALSE) -> 696.42 | K22: =IF(CrossroadType="Unmarked State Route",0.5,VLOOKUP(CrossroadNumberOfLanes,ADTInDesignLaneTable,IF(AND(CrossroadNumberOfLanes="6 or more",CrossroadRuralUrban="Urban"),7,4))) -> 0.45 | S22: =VLOOKUP(RoadClass,ESALCoefficientsTable,5,FALSE) -> 482.53 | T22: =VLOOKUP(RoadClass,ESALCoefficientsTable,3,FALSE) -> 696.42
C23: TF flexible (Actual) = | D23: =DP/1000000*((CpvFLEXIBLE*P*PV)+(CsuFLEXIBLE*S*SU)+(CmuFLEXIBLE*M*MU)) -> 0 | E23: (Actual ADT) | F23: =DP/1000000*((RampCpvFLEXIBLE*Ramp_P*PVmin)+(RampCsuFLEXIBLE*Ramp_S*SUmin)+(RampCmuFLEXIBLE*Ramp_M*MUmin)) -> 7.110405 | H23: TF rigid (Actual) = | I23: =DP/1000000*((CpvRIGID*P*PV)+(CsuRIGID*S*SU)+(CmuRIGID*M*MU)) -> 0 | J23: (Actual ADT) | K23: =DP/1000000*((RampCpvRIGID*Ramp_P*PVmin)+(RampCsuRIGID*Ramp_S*SUmin)+(RampCmuRIGID*Ramp_M*MUmin)) -> 10.048815 | S23: =DP/1000000*((CpvFLEXIBLE*P*PV)+(CsuFLEXIBLE*S*SU)+(CmuFLEXIBLE*M*MU)) -> 0 | T23: =DP/1000000*((CpvRIGID*P*PV)+(CsuRIGID*S*SU)+(CmuRIGID*M*MU)) -> 0
C24: TF flexible (Min) = | D24: =IF(NumberOfLanes="1 Lane Ramp",RampTFflexibleMin,IF(AND(ISNUMBER(PVmin),ISNUMBER(SUmin),ISNUMBER(MUmin)),DP/1000000*((CpvFLEXIBLE*P*PVmin)+(CsuFLEXIBLE*S*SUmin)+(CmuFLEXIBLE*M*MUmin)),"No Min")) -> 7.110405 | E24: (Min ADT Fig. 54-2.C) | H24: TF rigid (Min) = | I24: =IF(NumberOfLanes="1 Lane Ramp",RampTFrigidMin,IF(AND(ISNUMBER(PVmin),ISNUMBER(SUmin),ISNUMBER(MUmin)),DP/1000000*((CpvRIGID*P*PVmin)+(CsuRIGID*S*SUmin)+(CmuRIGID*M*MUmin)),"No Min")) -> 10.048815 | J24: (Min ADT Fig. 54-2.C) | S24: =IF(NumberOfLanes="1 Lane Ramp",RampTFflexibleMin,IF(AND(ISNUMBER(PVmin),ISNUMBER(SUmin),ISNUMBER(MUmin)),DP/1000000*((CpvFLEXIBLE*P*PVmin)+(CsuFLEXIBLE*S*SUmin)+(CmuFLEXIBLE*M*MUmin)),"No Min")) -> 7.110405 | T24: =IF(NumberOfLanes="1 Lane Ramp",RampTFrigidMin,IF(AND(ISNUMBER(PVmin),ISNUMBER(SUmin),ISNUMBER(MUmin)),DP/1000000*((CpvRIGID*P*PVmin)+(CsuRIGID*S*SUmin)+(CmuRIGID*M*MUmin)),"No Min")) -> 10.048815
B27: NEW CONSTRUCTION / RECONSTRUCTION PAVEMENT DESIGN CALCULATIONS
D28: Full-Depth HMA Pavement | I28: JPC Pavement
C29: Use TF flexible = | D29: =IF(TFflexibleMin="No Min",MAX(TFflexibleActual,0.5),MAX(TFflexibleActual,TFflexibleMin,0.5)) -> 7.110405 | E29: =IF(TFflexible=0.5,"Per BDE 54-5.01(i)-1g","") ->  | H29: Use TF rigid = | I29: =IF(TFrigidMin="No Min",TFrigidActual,MAX(TFrigidActual,TFrigidMin)) -> 10.048815 | K29: =IF(OR(ISBLANK(FacilityType),AND(FacilityType="Unmarked State Route",ADT<750),ISBLANK(NumberOfLanes),ISBLANK(RoadClass),AND(NumberOfLanes="6 or more",ISBLANK(RuralUrban)),ISBLANK(SSRText),ISBLANK(ConstructionYear),ISBLANK(DP),ISBLANK(ADT),ISBLANK(SUpercent),ISBLANK(MUpercent),ISBLANK(P),ISBLANK(S),ISBLANK(M),ISBLANK(TiedUntiedText)),999,IF(OR(TFrigid<0,TFrigid>100),"Off Chart",RIGID_LaGrange(TFrigid,SSRText,TiedUntiedText))) -> 999 | S29: =IF(TFflexibleMin="No Min",MAX(TFflexibleActual,0.5),MAX(TFflexibleActual,TFflexibleMin,0.5)) -> 7.110405 | T29: =IF(TFrigidMin="No Min",TFrigidActual,MAX(TFrigidActual,TFrigidMin)) -> 10.048815
C30: PG Grade Lower Binder Lifts = | D30: PG 64-22 | E30: (Fig. 53-4.R) | H30: Edge Support = | I30: Tied | J30: Shoulder or C.&G.
C31: HMA Mixture Temp. = | E31: deg. F (Fig. 54-5.C) | H31: Rigid Pavt Thick. = | I31: =IF(TFrigid>100,"Off Chart",Rounder(JPCPThicknessPrelim,0.25,RounderOnOffCell)) -> 999 | J31: =IF(SSRText="Poor","in. (Fig. 54-4.E)",IF(SSRText="Fair","in. (Fig. 54-4.F)",IF(SSRText="Granular","in. (Fig. 54-4.G)",""))) -> in. (Fig. 54-4.E) | S31: =IF(OR(ISBLANK(FacilityType),ISBLANK(NumberOfLanes),ISBLANK(RoadClass),AND(NumberOfLanes="6 or more",ISBLANK(RuralUrban)),ISBLANK(SSRText),ISBLANK(ConstructionYear),ISBLANK(DP),ISBLANK(ADT),ISBLANK(SUpercent),ISBLANK(MUpercent),ISBLANK(P),ISBLANK(S),ISBLANK(M),ISBLANK(PG_Grade),ISBLANK(HMAMixTemp)),999,IF(OR(TFflexible<0.5,TFflexible>100),"Off Chart",IF(SSRNumber=1,(10^((LOG(HMA_Microstrain)+(0.097*LOG(2))+(0.774*LOG(Ehma))-5.746)/(-1.589))),IF(SSRNumber=2,(10^((LOG(HMA_Microstrain)+(0.097*LOG(5))+(0.774*LOG(Ehma))-5.746)/(-1.589))),IF(SSRNumber=3,HMA_LaGrange(Ehma,HMA_Microstrain),"ERROR"))))) -> 999 | T31: =IF(OR(ISBLANK(FacilityType),AND(FacilityType="Unmarked State Route",ADT<750),ISBLANK(NumberOfLanes),ISBLANK(RoadClass),AND(NumberOfLanes="6 or more",ISBLANK(RuralUrban)),ISBLANK(SSRText),ISBLANK(ConstructionYear),ISBLANK(DP),ISBLANK(ADT),ISBLANK(SUpercent),ISBLANK(MUpercent),ISBLANK(P),ISBLANK(S),ISBLANK(M),ISBLANK(TiedUntiedText)),999,IF(OR(TFrigid<0,TFrigid>100),"Off Chart",RIGID_LaGrange(TFrigid,SSRText,TiedUntiedText))) -> 999
C32: Design HMA Mixture Modulus (EHMA) = | D32: =MROUND(10^(IF(OR(PG_Grade="PG 64-28",PG_Grade="PG 70-28"),4.165,4.265)-0.019*HMAMixTemp),10) -> 18410 | E32: ksi (Fig. 54-5.D) | F32: =10^(IF(OR(PG_Grade="PG 64-28",PG_Grade="PG 70-28"),4.165,4.265)-0.019*HMAMixTemp) -> 18407.72001 | I32: =IF(AND(FacilityType="Unmarked State Route",ADT<750),"** USE FIG. 54-4.H AND 54-4.I **","") ->  | S32: =IF(OR(ISBLANK(SSRText),ISBLANK(PG_Grade),ISBLANK(HMAMixTemp)),999,IF(OR(TFflexible<0.5,TFflexible>100),"Off Chart",IF(SSRNumber=1,(10^((LOG(HMA_Microstrain)+(0.097*LOG(2))+(0.774*LOG(Ehma))-5.746)/(-1.589))),IF(SSRNumber=2,(10^((LOG(HMA_Microstrain)+(0.097*LOG(5))+(0.774*LOG(Ehma))-5.746)/(-1.589))),IF(SSRNumber=3,HMA_LaGrange(Ehma,HMA_Microstrain),"ERROR"))))) -> 999 | T32: =IF(OR(ISBLANK(SSRText),ISBLANK(TiedUntiedText)),999,IF(OR(TFrigid<0,TFrigid>100),"Off Chart",RIGID_LaGrange(TFrigid,SSRText,TiedUntiedText))) -> 9.874842438 | V32: Worksheet Rounding 1s | W32: On
C33: Design HMA Strain (εHMA) = | D33: =ROUND(IF(TFflexible>0,(((TFflexible*4.6*10^6)/(8.78*10^(-8)))^(-1/3.5))*10^6,""),0) -> 69 | E33: (Fig. 54-5.E) | F33: =IF(TFflexible>0,(((TFflexible*4.6*10^6)/(8.78*10^(-8)))^(-1/3.5))*10^6,"") -> 68.67712384 | G33: CRC Pavement | V33: Rounding Cut Off Set at | W33: 0.1
C34: Full Depth HMA Design Thickness = | D34: =IF(HMADesignThicknessPrelim="Off Chart","Off Chart",Rounder(HMADesignThicknessPrelim,0.25,RounderOnOffCell)) -> 999 | E34: =IF(SSRText="Poor","in. (Fig. 54-5.F)",IF(SSRText="Fair","in. (Fig. 54-5.G)",IF(SSRText="Granular","in. (Fig. 54-5.H)",""))) -> in. (Fig. 54-5.F) | F34: =IF(OR(ISBLANK(FacilityType),ISBLANK(NumberOfLanes),ISBLANK(RoadClass),AND(NumberOfLanes="6 or more",ISBLANK(RuralUrban)),ISBLANK(SSRText),ISBLANK(ConstructionYear),ISBLANK(DP),ISBLANK(ADT),ISBLANK(SUpercent),ISBLANK(MUpercent),ISBLANK(P),ISBLANK(S),ISBLANK(M),ISBLANK(PG_Grade),ISBLANK(HMAMixTemp)),999,IF(OR(TFflexible<0.5,TFflexible>100),"Off Chart",IF(SSRNumber=1,(10^((LOG(HMA_Microstrain)+(0.097*LOG(2))+(0.774*LOG(Ehma))-5.746)/(-1.589))),IF(SSRNumber=2,(10^((LOG(HMA_Microstrain)+(0.097*LOG(5))+(0.774*LOG(Ehma))-5.746)/(-1.589))),IF(SSRNumber=3,HMA_LaGrange(Ehma,HMA_Microstrain),"ERROR"))))) -> 999 | H34: Use TF rigid = | I34: =IF(TFrigidMin="No Min",TFrigidActual,MAX(TFrigidActual,TFrigidMin)) -> 10.048815 | K34: =IF(OR(ISBLANK(FacilityType),AND(FacilityType="Unmarked State Route",ADT<750),ISBLANK(NumberOfLanes),ISBLANK(RoadClass),AND(NumberOfLanes="6 or more",ISBLANK(RuralUrban)),ISBLANK(ConstructionYear),ISBLANK(DP),ISBLANK(ADT),ISBLANK(SUpercent),ISBLANK(MUpercent),ISBLANK(P),ISBLANK(S),ISBLANK(M),ISBLANK(IBR)),999,IF(OR(TFCRCP<0,TFCRCP>100),"Off Chart",IF(TFCRCP>0,CRCP_Thickness(RoadClass,TFCRCP,IBR),999))) -> 999 | T34: =IF(TFrigidMin="No Min",TFrigidActual,MAX(TFrigidActual,TFrigidMin)) -> 10.048815
C35: Limiting Strain Criterion Thickness = | E35: in. (Fig. 54-5.I) | H35: IBR value = | I35: 3 | T35: =IF(OR(ISBLANK(FacilityType),AND(FacilityType="Unmarked State Route",ADT<750),ISBLANK(NumberOfLanes),ISBLANK(RoadClass),AND(NumberOfLanes="6 or more",ISBLANK(RuralUrban)),ISBLANK(ConstructionYear),ISBLANK(DP),ISBLANK(ADT),ISBLANK(SUpercent),ISBLANK(MUpercent),ISBLANK(P),ISBLANK(S),ISBLANK(M),ISBLANK(IBR)),999,IF(OR(TFCRCP<0,TFCRCP>100),"Off Chart",IF(TFCRCP>0,CRCP_Thickness(RoadClass,TFCRCP,IBR),999))) -> 999
C36: Use Full-Depth HMA Thickness = | D36: =IF(HMALimitingStrainThickness="",999,IF(OR(HMADesignThickness="Off Chart",HMADesignThickness=999,HMADesignThickness="Error"),999,IF(HMALimitingStrainThickness<HMADesignThickness,HMALimitingStrainThickness,HMADesignThickness))) -> 999 | E36: inches | H36: CRCP Thickness = | I36: =IF(TFCRCP>100,"Off Chart",Rounder(CRCPThicknessPrelim,0.25,RounderOnOffCell)) -> 999 | J36: =IF(RoadClass="I","in. (Fig. 54-4.M)","in. (Fig. 54-4.N)") -> in. (Fig. 54-4.M) | T36: =IF(OR(ISBLANK(IBR)),999,IF(OR(TFCRCP<0,TFCRCP>100),"Off Chart",IF(TFCRCP>0,CRCP_Thickness(RoadClass,TFCRCP,IBR),999))) -> 8.802416901 | V36: Test Rounding | W36: 12.025 | X36: =Rounder(W36, 0.25,RounderOnOffCell) -> 12.25
I37: =IF(TFCRCP<60,"TF MUST BE > 60 FOR CRCP","") -> TF MUST BE > 60 FOR CRCP
B39: RECONSTRUCTION ONLY (SUPPLEMENTAL) PAVEMENT DESIGN CALCULATIONS
D40: HMA Overlay of Rubblized PCC | I40: Unbonded Concrete Overlay
C41: Use TF flexible = | D41: =IF(TFflexibleMin="No Min",MAX(TFflexibleActual,0.5),MAX(TFflexibleActual,TFflexibleMin,0.5)) -> 7.110405 | F41: =IF(OR(ISBLANK(FacilityType),ISBLANK(NumberOfLanes),ISBLANK(RoadClass),AND(NumberOfLanes="6 or more",ISBLANK(RuralUrban)),ISBLANK(ConstructionYear),ISBLANK(DP),ISBLANK(ADT),ISBLANK(SUpercent),ISBLANK(MUpercent),ISBLANK(P),ISBLANK(S),ISBLANK(M),ISBLANK(HMAMixTemp)),999,IF(OR(TFrubblized<0.5,TFrubblized>100),"Off Chart",IF(TFrubblized>0,((10^((1.8654-LOG(aupp))/0.3934))/Rubmod*10^3)^(1/3),999))) -> 999 | H41: Review 54-4.03 for limitations and special considerations. | K41: =IF(JPCPThickness="Off Chart","Off Chart",JPCPThickness-1) -> 998 | S41: =IF(TFflexibleMin="No Min",MAX(TFflexibleActual,0.5),MAX(TFflexibleActual,TFflexibleMin,0.5)) -> 7.110405
C42: Resilient Modulus of HMA (EHMA) = | D42: =Ehma -> 18410 | E42: ksi | S42: =IF(OR(ISBLANK(FacilityType),ISBLANK(NumberOfLanes),ISBLANK(RoadClass),AND(NumberOfLanes="6 or more",ISBLANK(RuralUrban)),ISBLANK(ConstructionYear),ISBLANK(DP),ISBLANK(ADT),ISBLANK(SUpercent),ISBLANK(MUpercent),ISBLANK(P),ISBLANK(S),ISBLANK(M),ISBLANK(HMAMixTemp)),999,IF(OR(TFrubblized<0.5,TFrubblized>100),"Off Chart",IF(TFrubblized>0,((10^((1.8654-LOG(aupp))/0.3934))/Rubmod*10^3)^(1/3),999))) -> 999
C43: Area Under Pavement Profile (AUPP) = | D43: =IF(TFrubblized>0,10^((LOG(1/((TFrubblized*4.6*10^6/0.0000000878)^(1/3.5))*10^6)-1.001)/1.024),"") -> 6.549720278 | E43: in. | S43: =IF(OR(ISBLANK(HMAMixTemp)),999,IF(OR(TFrubblized<0.5,TFrubblized>100),"Off Chart",IF(TFrubblized>0,((10^((1.8654-LOG(aupp))/0.3934))/Rubmod*10^3)^(1/3),999))) -> 999
C44: HMA Overlay Design Thickness = | D44: =IF(RubblizingDesignThicknessPrelim="Off Chart","Off Chart",IF(AND(RubblizingDesignThicknessPrelim>15,RubblizingDesignThicknessPrelim<>999),15,Rounder(RubblizingDesignThicknessPrelim,0.25,RounderOnOffCell))) -> 999 | E44: in. (Fig. 54-5.U) | K44: =IF(CRCPThickness="Off Chart","Off Chart",CRCPThickness-1) -> 998
C45: Limiting Strain Criterion Thickness = | E45: in. (Fig. 54-5.V)
C46: Use HMA Overlay Thickness = | D46: =IF(RubbLimStrainThickness="",999,IF(OR(RubblizingDesignThickness="Off Chart",RubblizingDesignThickness=999,RubblizingDesignThickness="Error"),999,IF(RubbLimStrainThickness<RubblizingDesignThickness,RubbLimStrainThickness,RubblizingDesignThickness))) -> 999 | E46: inches | H46: =IF(TFrigid>60, "CRCP Thickness =","JPCP Thickness =") -> JPCP Thickness = | I46: =IF(TFrigid>60,IF(CRCPThickness=999,999,(CRCPOverlayThickness)),"NA") -> NA | J46: inches
I47: =IF(TFrigid<=60, "CONTACT BMPR FOR ASSISTANCE","") -> CONTACT BMPR FOR ASSISTANCE
B49: DESIGN TABLES FROM BDE MANUAL CHAPTER 54 - PAVEMENT DESIGN
C51: Class I Roads | E51: Class II Roads | H51: Class III Roads | J51: Class IV Roads
C52: 4 lanes or more | D52: ="2 lanes with ADT > 2000" -> 2 lanes with ADT > 2000 | H52: 2 Lanes | J52: 2 Lanes
C53: Part of a future 4 lanes or more | D53: One way Street with ADT <= 3500 | H53: (ADT 750 -2000) | J53: (ADT < 750)
C54: One-way Streets with ADT > 3500
D56: Min. Str. Design Traffic (Fig 54-2.C) | I56: Class Table for
C57: Facility Type | D57: PV | E57: =IF(NumberOfLanes="1 Lane Ramp","SU*","SU") -> SU | F57: =IF(NumberOfLanes="1 Lane Ramp","MU*","MU") -> MU | I57: One-Way Streets
C58: Interstate or Freeway | D58: 0 | E58: 500 | F58: 1500 | I58: ADT | J58: Class
C59: Other Marked State Route | D59: 0 | E59: 250 | F59: 750 | H59: 0 | I59: 0 - 3500 | J59: II
C60: Unmarked State Route | D60: =IF(NumberOfLanes="1 Lane Ramp",0,"No Min") -> No Min | E60: =IF(NumberOfLanes="1 Lane Ramp",250,"No Min") -> No Min | F60: =IF(NumberOfLanes="1 Lane Ramp",750,"No Min") -> No Min | H60: 3501 | I60: >3501 | J60: I
C61: =IF(NumberOfLanes="1 Lane Ramp","* Use marked route minimums for unmarked routes (Fig. 54-1.B)","") -> 
D62: Traffic Factor ESAL Coefficients | I62: Class Table for
D63: Rigid (Fig. 54-4.C) | F63: Flexible (Fig. 54-5.B) | I63: ="2 or 3 lanes" -> 2 or 3 lanes
C64: Class | D64: Csu | E64: Cmu | F64: Csu | G64: Cmu | I64: (not future 4 lane &
C65: I | D65: 143.81 | E65: 696.42 | F65: 132.5 | G65: 482.53 | I65: not one-way street)
C66: II | D66: 135.78 | E66: 567.21 | F66: 112.06 | G66: 385.44 | I66: ADT | J66: Class
C67: III | D67: 129.58 | E67: 562.47 | F67: 109.14 | G67: 384.35 | H67: 0 | I67: 0 - 749 | J67: IV
C68: IV | D68: 129.58 | E68: 562.47 | F68: 109.14 | G68: 384.35 | H68: 750 | I68: 750 - 2000 | J68: III
H69: 2001 | I69: >2000 | J69: II
D71: Design Lane Distribution Factors For Structural Design Traffic (Fig. 54-2.B)
E72: Rural | H72: Urban
C73: Number of Lanes | D73: P | E73: S | F73: M | G73: P | H73: S | I73: M
C74: 1 Lane Ramp | D74: 1 | E74: 1 | F74: 1 | G74: 1 | H74: 1 | I74: 1
C75: 2 or 3 | D75: 0.5 | E75: 0.5 | F75: 0.5 | G75: 0.5 | H75: 0.5 | I75: 0.5
C76: 4 | D76: 0.32 | E76: 0.45 | F76: 0.45 | G76: 0.32 | H76: 0.45 | I76: 0.45
C77: 6 or more | D77: 0.2 | E77: 0.4 | F77: 0.4 | G77: 0.08 | H77: 0.37 | I77: 0.37

Sheet MAP_HMAMixTemp
AG2: Click On Map to Set Your Project Location | BK2: 76.42105263
AG4: Then Press "Set HMA Mix Temp" to Set Temp
Z6: ====================> | AM6: <====================
X15: 73 | Y15: 73 | Z15: 73 | AA15: 73 | AB15: 73 | AC15: 73 | AD15: 73 | AE15: 73 | AF15: 73 | AG15: 73 | AH15: 73 | AI15: 73 | AJ15: 73 | AK15: 73 | AL15: 73 | AM15: 73
T16: 73 | U16: 73 | V16: 73 | W16: 73 | AN16: 73 | AO16: 73 | AP16: 73
Q17: 73 | R17: 73 | S17: 73 | AQ17: 73 | AR17: 73 | AS17: 73
G18: 73 | H18: 73 | I18: 73 | J18: 73 | K18: 73 | L18: 73 | M18: 73 | N18: 73 | O18: 73 | P18: 73 | AT18: 73 | AU18: 73
AV19: 73
AW20: 73 | AX20: 73
AY21: 73
AZ22: 73
BA23: 73
BB24: 73
BC25: 73
AM31: 75 | AN31: 75 | AO31: 75 | AP31: 75 | AQ31: 75 | AR31: 75 | AS31: 75 | AT31: 75
AJ32: 75 | AK32: 75 | AL32: 75 | AU32: 75 | AV32: 75 | AW32: 75 | AX32: 75 | AY32: 75
AH33: 75 | AI33: 75 | AZ33: 75 | BA33: 75 | BB33: 75 | BC33: 75
P34: 75 | Q34: 75 | R34: 75 | S34: 75 | T34: 75 | U34: 75 | V34: 75 | W34: 75 | X34: 75 | Y34: 75 | AE34: 75 | AF34: 75 | AG34: 75
G35: 75 | H35: 75 | I35: 75 | J35: 75 | K35: 75 | L35: 75 | M35: 75 | N35: 75 | O35: 75 | Z35: 75 | AA35: 75 | AB35: 75 | AC35: 75 | AD35: 75
AJ69: 77 | AK69: 77 | AL69: 77 | AM69: 77 | AN69: 77 | AO69: 77 | AP69: 77 | AQ69: 77 | AR69: 77 | AS69: 77
AA70: 77 | AB70: 77 | AC70: 77 | AD70: 77 | AE70: 77 | AF70: 77 | AG70: 77 | AH70: 77 | AI70: 77 | AT70: 77 | AU70: 77 | AV70: 77 | AW70: 77 | AX70: 77 | AY70: 77 | AZ70: 77 | BA70: 77 | BB70: 77 | BC70: 77
G71: 77 | H71: 77 | I71: 77 | J71: 77 | K71: 77 | L71: 77 | M71: 77 | N71: 77 | O71: 77 | P71: 77 | Q71: 77 | R71: 77 | S71: 77 | T71: 77 | U71: 77 | V71: 77 | W71: 77 | X71: 77 | Y71: 77 | Z71: 77
BC108: 79
AZ109: 79 | BA109: 79 | BB109: 79
G110: 79 | H110: 79 | I110: 79 | J110: 79 | K110: 79 | L110: 79 | M110: 79 | N110: 79 | O110: 79 | P110: 79 | Q110: 79 | R110: 79 | S110: 79 | T110: 79 | U110: 79 | V110: 79 | W110: 79 | X110: 79 | Y110: 79 | Z110: 79 | AA110: 79 | AW110: 79 | AX110: 79 | AY110: 79
AB111: 79 | AC111: 79 | AD111: 79 | AE111: 79 | AF111: 79 | AR111: 79 | AS111: 79 | AT111: 79 | AU111: 79 | AV111: 79
AG112: 79 | AH112: 79 | AI112: 79 | AJ112: 79 | AK112: 79 | AL112: 79 | AM112: 79 | AN112: 79 | AO112: 79 | AP112: 79 | AQ112: 79
G145: 81 | H145: 81 | I145: 81 | J145: 81 | K145: 81 | L145: 81 | M145: 81 | N145: 81 | O145: 81 | P145: 81 | Q145: 81 | R145: 81 | S145: 81 | T145: 81 | U145: 81 | V145: 81 | W145: 81 | X145: 81 | AX145: 81 | AY145: 81 | AZ145: 81 | BA145: 81 | BB145: 81 | BC145: 81
Y146: 81 | Z146: 81 | AA146: 81 | AB146: 81 | AC146: 81 | AD146: 81 | AE146: 81 | AF146: 81 | AG146: 81 | AH146: 81 | AI146: 81 | AJ146: 81 | AK146: 81 | AL146: 81 | AM146: 81 | AN146: 81 | AO146: 81 | AP146: 81 | AQ146: 81 | AR146: 81 | AS146: 81 | AT146: 81 | AU146: 81 | AV146: 81 | AW146: 81
B173: =Version -> BDE 5401 Template (Rev. 09/05/2013) | BJ173: Printed: | BK173: =NOW() -> 2017-05-04T11:05:27.110

Sheet MAP_LSCD
AG2: Click On Map to Set Your Project Location | BK2: 15.22
AG4: Then Press "Set LSCD Max Thickness" to Set Max T
Z6: ====================> | AM6: <====================
F10: 14 | G10: 14 | H10: 14 | I10: 14 | J10: 14 | K10: 14 | L10: 14 | M10: 14 | N10: 14
O11: 14 | P11: 14
Q12: 14 | R12: 14 | S12: 14 | T12: 14 | U12: 14 | V12: 14 | W12: 14 | X12: 14 | Y12: 14 | Z12: 14 | AA12: 14 | AB12: 14 | AC12: 14 | AD12: 14 | AE12: 14 | AF12: 14 | AG12: 14 | AH12: 14 | AI12: 14 | AJ12: 14
AK13: 14 | AL13: 14 | AM13: 14 | AN13: 14 | AO13: 14 | AP13: 14 | AQ13: 14 | AR13: 14 | AS13: 14
AT14: 14 | AU14: 14 | AV14: 14
AW15: 14 | AX15: 14 | AY15: 14 | AZ15: 14
BA16: 14 | BB16: 14 | BC16: 14
F25: 14.5 | G25: 14.5 | H25: 14.5 | I25: 14.5 | J25: 14.5 | K25: 14.5
L26: 14.5 | M26: 14.5 | N26: 14.5 | O26: 14.5 | P26: 14.5 | Q26: 14.5 | R26: 14.5
S27: 14.5 | T27: 14.5 | U27: 14.5 | V27: 14.5 | W27: 14.5 | X27: 14.5 | Y27: 14.5 | Z27: 14.5
AA28: 14.5 | AB28: 14.5 | AC28: 14.5 | AD28: 14.5 | AE28: 14.5 | AF28: 14.5 | AG28: 14.5 | AH28: 14.5 | AI28: 14.5 | AJ28: 14.5 | AK28: 14.5 | AL28: 14.5 | AM28: 14.5 | AN28: 14.5 | AO28: 14.5 | AP28: 14.5 | AQ28: 14.5 | AR28: 14.5 | AS28: 14.5 | AT28: 14.5
AU29: 14.5 | AV29: 14.5 | AW29: 14.5 | AX29: 14.5 | AY29: 14.5
AZ30: 14.5 | BA30: 14.5 | BB30: 14.5
BC31: 14.5
AD46: 15 | AE46: 15 | AF46: 15 | AG46: 15 | AH46: 15 | AI46: 15
W47: 15 | X47: 15 | Y47: 15 | Z47: 15 | AA47: 15 | AB47: 15 | AC47: 15 | AJ47: 15 | AK47: 15 | AL47: 15 | AM47: 15 | AN47: 15 | AO47: 15 | AP47: 15 | AQ47: 15 | AR47: 15 | AS47: 15 | AT47: 15 | AU47: 15
F48: 15 | G48: 15 | H48: 15 | I48: 15 | J48: 15 | K48: 15 | L48: 15 | M48: 15 | N48: 15 | O48: 15 | P48: 15 | Q48: 15 | R48: 15 | S48: 15 | T48: 15 | U48: 15 | V48: 15 | AV48: 15 | AW48: 15 | AX48: 15 | AY48: 15 | AZ48: 15
BA49: 15 | BB49: 15
BC50: 15
U68: 15.5 | V68: 15.5 | W68: 15.5 | X68: 15.5 | Y68: 15.5 | Z68: 15.5 | AA68: 15.5 | AB68: 15.5 | AC68: 15.5 | AD68: 15.5 | AE68: 15.5 | AF68: 15.5
F69: 15.5 | G69: 15.5 | H69: 15.5 | I69: 15.5 | J69: 15.5 | K69: 15.5 | L69: 15.5 | M69: 15.5 | N69: 15.5 | O69: 15.5 | P69: 15.5 | Q69: 15.5 | R69: 15.5 | S69: 15.5 | T69: 15.5 | AG69: 15.5 | AH69: 15.5 | AI69: 15.5 | AJ69: 15.5 | AK69: 15.5 | AL69: 15.5 | AM69: 15.5
AN70: 15.5 | AO70: 15.5
AP71: 15.5 | AQ71: 15.5 | AR71: 15.5
AS72: 15.5 | AT72: 15.5
AU73: 15.5 | AV73: 15.5 | AW73: 15.5 | AX73: 15.5
AY74: 15.5 | AZ74: 15.5 | BA74: 15.5 | BB74: 15.5 | BC74: 15.5
AC96: 16 | AD96: 16 | AE96: 16 | AF96: 16 | AG96: 16 | AH96: 16 | AI96: 16 | AJ96: 16 | AK96: 16
AA97: 16 | AB97: 16 | AL97: 16 | AM97: 16 | AN97: 16 | AO97: 16 | AP97: 16
W98: 16 | X98: 16 | Y98: 16 | Z98: 16 | AQ98: 16 | AR98: 16 | AS98: 16 | AT98: 16
U99: 16 | V99: 16 | AU99: 16 | AV99: 16 | AW99: 16 | AX99: 16 | AY99: 16 | AZ99: 16 | BA99: 16 | BB99: 16 | BC99: 16
Q100: 16 | R100: 16 | S100: 16 | T100: 16
F101: 16 | G101: 16 | H101: 16 | I101: 16 | J101: 16 | K101: 16 | L101: 16 | M101: 16 | N101: 16 | O101: 16 | P101: 16
AE118: 16.5 | AF118: 16.5 | AG118: 16.5 | AH118: 16.5 | AI118: 16.5 | AJ118: 16.5 | AK118: 16.5 | AL118: 16.5
AB119: 16.5 | AC119: 16.5 | AD119: 16.5 | AM119: 16.5 | AN119: 16.5 | AO119: 16.5 | AP119: 16.5 | AQ119: 16.5
Z120: 16.5 | AA120: 16.5 | AR120: 16.5 | AS120: 16.5
S121: 16.5 | T121: 16.5 | U121: 16.5 | V121: 16.5 | W121: 16.5 | X121: 16.5 | Y121: 16.5 | AT121: 16.5 | AU121: 16.5 | AV121: 16.5
L122: 16.5 | M122: 16.5 | N122: 16.5 | O122: 16.5 | P122: 16.5 | Q122: 16.5 | R122: 16.5 | AW122: 16.5 | AX122: 16.5
F123: 16.5 | G123: 16.5 | H123: 16.5 | I123: 16.5 | J123: 16.5 | K123: 16.5 | AY123: 16.5 | AZ123: 16.5 | BA123: 16.5
BB124: 16.5 | BC124: 16.5
F163: 17 | G163: 17
H164: 17 | I164: 17 | J164: 17
K165: 17 | L165: 17 | M165: 17 | N165: 17
O166: 17 | P166: 17 | Q166: 17 | R166: 17 | S166: 17 | T166: 17 | U166: 17 | V166: 17 | W166: 17 | X166: 17 | Y166: 17 | Z166: 17 | AA166: 17 | AB166: 17 | AC166: 17 | AD166: 17 | AE166: 17 | AF166: 17 | AG166: 17 | AH166: 17 | AI166: 17 | AJ166: 17 | AK166: 17 | AL166: 17 | AM166: 17 | AN166: 17 | AO166: 17 | AP166: 17 | AQ166: 17 | AR166: 17 | AS166: 17 | AT166: 17 | AU166: 17 | AV166: 17 | AW166: 17 | AX166: 17 | AY166: 17 | AZ166: 17 | BA166: 17 | BB166: 17 | BC166: 17
AI173: Figure 54-5. I
B174: =Version -> BDE 5401 Template (Rev. 09/05/2013) | BJ174: Printed: | BK174: =NOW() -> 2017-05-04T11:05:27.110

Sheet MAP_LSCD_RUBB
AG2: Click On Map to Set Your Project Location | BK2: 10.96428571
AG4: Then Press "Set LSCD Overlay Max Thickness" to Set Max T
Z6: ====================> | AM6: <====================
A12: 10.5 | S12: 10.5 | T12: 10.5 | U12: 10.5 | V12: 10.5 | W12: 10.5 | X12: 10.5 | Y12: 10.5 | Z12: 10.5 | AA12: 10.5 | AB12: 10.5 | AC12: 10.5 | AD12: 10.5 | AE12: 10.5 | AF12: 10.5 | AG12: 10.5 | AH12: 10.5 | AI12: 10.5 | AJ12: 10.5 | AK12: 10.5 | AL12: 10.5 | AM12: 10.5 | AN12: 10.5 | AO12: 10.5 | BK12: 10.5
P13: 10.5 | Q13: 10.5 | R13: 10.5 | AP13: 10.5 | AQ13: 10.5 | AR13: 10.5 | AS13: 10.5 | AT13: 10.5
N14: 10.5 | O14: 10.5 | AU14: 10.5 | AV14: 10.5 | AW14: 10.5
L15: 10.5 | M15: 10.5 | AX15: 10.5 | AY15: 10.5 | AZ15: 10.5
J16: 10.5 | K16: 10.5 | BA16: 10.5 | BB16: 10.5
G17: 10.5 | H17: 10.5 | I17: 10.5 | BC17: 10.5
AC34: 10.75 | AD34: 10.75 | AE34: 10.75 | AF34: 10.75 | AG34: 10.75 | AH34: 10.75 | AI34: 10.75 | AJ34: 10.75 | AK34: 10.75 | AL34: 10.75 | AM34: 10.75 | AN34: 10.75
Q35: 10.75 | R35: 10.75 | S35: 10.75 | T35: 10.75 | U35: 10.75 | V35: 10.75 | W35: 10.75 | X35: 10.75 | Y35: 10.75 | Z35: 10.75 | AA35: 10.75 | AB35: 10.75 | AO35: 10.75 | AP35: 10.75 | AQ35: 10.75 | AR35: 10.75 | AS35: 10.75 | AT35: 10.75 | AU35: 10.75
K36: 10.75 | L36: 10.75 | M36: 10.75 | N36: 10.75 | O36: 10.75 | P36: 10.75 | AV36: 10.75 | AW36: 10.75 | AX36: 10.75
A37: 10.75 | G37: 10.75 | H37: 10.75 | I37: 10.75 | J37: 10.75 | AY37: 10.75 | AZ37: 10.75 | BA37: 10.75 | BK37: 10.75
BB38: 10.75 | BC38: 10.75
A57: 11 | Q57: 11 | R57: 11 | S57: 11 | T57: 11 | U57: 11 | V57: 11 | W57: 11 | X57: 11 | Y57: 11 | Z57: 11 | AA57: 11 | BK57: 11
G58: 11 | H58: 11 | I58: 11 | J58: 11 | K58: 11 | L58: 11 | M58: 11 | N58: 11 | O58: 11 | P58: 11 | AB58: 11 | AC58: 11 | AD58: 11 | AE58: 11 | AF58: 11 | AG58: 11 | AH58: 11 | AI58: 11 | AJ58: 11 | AK58: 11
AL59: 11 | AM59: 11 | AN59: 11
AO60: 11 | AP60: 11
AQ61: 11 | AR61: 11
AS62: 11 | AT62: 11
AU63: 11 | AV63: 11 | AW63: 11 | AX63: 11 | AY63: 11 | AZ63: 11 | BA63: 11 | BB63: 11
BC64: 11
K82: 11.25 | L82: 11.25 | M82: 11.25 | N82: 11.25 | O82: 11.25 | P82: 11.25 | Q82: 11.25 | R82: 11.25 | S82: 11.25 | T82: 11.25 | U82: 11.25 | V82: 11.25 | W82: 11.25 | X82: 11.25 | Y82: 11.25 | Z82: 11.25 | AA82: 11.25 | AB82: 11.25
G83: 11.25 | H83: 11.25 | I83: 11.25 | J83: 11.25 | AC83: 11.25 | AD83: 11.25 | AE83: 11.25 | AF83: 11.25 | AG83: 11.25 | AH83: 11.25 | AI83: 11.25
A84: 11.25 | AJ84: 11.25 | AK84: 11.25 | AL84: 11.25 | AM84: 11.25 | AN84: 11.25 | BK84: 11.25
AO85: 11.25 | AP85: 11.25 | AQ85: 11.25 | AR85: 11.25 | AS85: 11.25
AT86: 11.25 | AU86: 11.25 | AV86: 11.25 | AW86: 11.25
AX87: 11.25 | AY87: 11.25 | AZ87: 11.25 | BA87: 11.25
BB88: 11.25 | BC88: 11.25
AB113: 11.5 | AC113: 11.5 | AD113: 11.5 | AE113: 11.5 | AF113: 11.5 | AG113: 11.5 | AH113: 11.5 | AI113: 11.5 | AJ113: 11.5
Y114: 11.5 | Z114: 11.5 | AA114: 11.5 | AK114: 11.5 | AL114: 11.5 | AM114: 11.5 | AN114: 11.5 | AO114: 11.5
W115: 11.5 | X115: 11.5 | AP115: 11.5
S116: 11.5 | T116: 11.5 | U116: 11.5 | V116: 11.5 | AQ116: 11.5 | AR116: 11.5 | AS116: 11.5
N117: 11.5 | O117: 11.5 | P117: 11.5 | Q117: 11.5 | R117: 11.5 | AT117: 11.5 | AU117: 11.5 | AV117: 11.5 | BK117: 11.5
J118: 11.5 | K118: 11.5 | L118: 11.5 | M118: 11.5 | AW118: 11.5 | AX118: 11.5 | AY118: 11.5
G119: 11.5 | H119: 11.5 | I119: 11.5 | AZ119: 11.5 | BA119: 11.5
BB120: 11.5 | BC120: 11.5
G153: 11.75 | H153: 11.75 | I153: 11.75 | J153: 11.75 | K153: 11.75 | L153: 11.75 | M153: 11.75 | N153: 11.75 | O153: 11.75 | P153: 11.75 | Q153: 11.75 | R153: 11.75 | S153: 11.75 | T153: 11.75 | U153: 11.75 | V153: 11.75 | W153: 11.75 | X153: 11.75 | Y153: 11.75 | Z153: 11.75 | AA153: 11.75 | AB153: 11.75 | AC153: 11.75 | AD153: 11.75 | AE153: 11.75 | AF153: 11.75 | AG153: 11.75 | AH153: 11.75 | AI153: 11.75 | AJ153: 11.75 | AK153: 11.75 | AL153: 11.75 | AM153: 11.75 | AN153: 11.75 | AO153: 11.75 | AP153: 11.75 | AQ153: 11.75 | AR153: 11.75 | AS153: 11.75 | AT153: 11.75 | AU153: 11.75 | AV153: 11.75 | AW153: 11.75 | AX153: 11.75 | AY153: 11.75 | AZ153: 11.75 | BA153: 11.75 | BB153: 11.75 | BC153: 11.75
AI173: Figure 54-5. V
B174: =Version -> BDE 5401 Template (Rev. 09/05/2013) | BJ174: Printed: | BK174: =NOW() -> 2017-05-04T11:05:27.110

Sheet LifeCycleCost
B1: =Version -> BDE 5401 Template (Rev. 09/05/2013) | J1: Printed: | K1: =NOW() -> 2017-05-04T11:05:27.110
B2: LIFE-CYCLE COST ANALYSIS: NEW CONSTRUCTION / RECONSTRUCTION | R2: HMA_SD | U2: MAINTENANCE AND REHABILITATION ACTIVITY SCHEDULE | AA2: =NOW() -> 2017-05-04T11:05:27.110
U3: =IF(AND(CELL("col",Q2)>10,LC_FlexRehabType<>LC_FlexBase),"WARNING: INCORRECT MAINTENANCE SCHEDULE for CURRENT PAVEMENT THICKNESS!"," - ") -> -
B4: FULL-DEPTH HMA PAVEMENT | L4: =J25 -> Standard Design | AD4: Old Color | AE4: New Color
U5: FULL-DEPTH HMA PAVEMENT
U6: HMA OVERLAY OF RUBBLIZED PCC PAVEMENT
B7: ROUTE | C7: Job Route | U7: Figure 54-7.C
B8: SECTION | C8: Job Section | U8: STANDARD DESIGN
B9: COUNTY | C9: Job County | X9: =IF(LCUPC= "Yes","PROJECTED","") ->  | Z9: =IF(LCUPC= "Yes","PROJECTED","") ->  | AA9: PRESENT
B10: LOCATION | C10: Job Location | R10: MAINTENANCE COSTS: | T10: ITEM | U10: % | V10: QUANTITY | W10: UNIT | X10: UNIT COST | Z10: COST | AA10: WORTH
B12: FACILITY TYPE | E12: INTERSTATE | R12: YEAR | S12: 5 | W12: FVFn = | X12: 1
T13: LONG SHLD JT R&S | U13: 1 | V13: =ROUND((LCProjectLenf*LCEdgesNf)*U13,0) -> 4000 | W13: LIN FT | X13: =X12*LCFlexShldJTS -> 2 | Z13: =IF( S13= "X",0,ROUND((V13*X13),0)) -> 8000
B14: PROJECT LENGTH | F14: 1000 | G14: FT = = > | I14: =(LCProjectLenf/5280) -> 0.1893939394 | J14: Miles | M14: USER | T14: CNTR LINE JOINT R&S | U14: 1 | V14: =ROUND(LCProjectLenf*LCCLNf*U14,0) -> 2000 | W14: LIN FT | X14: =X12*LCFlexCentJTS -> 2 | Z14: =IF( S14= "X",0,ROUND((V14*X14),0)) -> 4000
B15: # OF CENTERLINES | F15: 2 | G15: CL | M15: OVERRIDE | T15: RNDM / THRM CRACK R&S | U15: 0.5 | V15: =ROUND((LCLanesNf*(LCProjectLenf/100)*LCCrackRatef)*U15,0) -> 2200 | W15: LIN FT | X15: =X12*LCFlexThermCRS -> 2 | Z15: =IF( S15= "X",0,ROUND((V15*X15),0)) -> 4400
B16: # OF LANES | F16: 4 | G16: =IF(LCLanesNf>1,"LANES","LANES") -> LANES | M16: COLUMN | T16: PD PVMT PATCH M&F SURF | U16: 0.001 | V16: =ROUND(LCPavementSQYDf*U16,0) -> 5 | W16: SQ YD | X16: =X12*LCFlexPavPatchS -> 80.64 | Z16: =IF( S16= "X",0,ROUND((V16*X16),0)) -> 403
B17: # OF EDGES | F17: 4 | G17: EP | T17: PWFn = | U17: =PVFn(II,S12) -> 0.8626087844 | W17: PW = | X17: =U17 -> 0.8626087844 | Y17: X | Z17: =SUM(Z13:Z16) -> 16803 | AA17: =ROUND(((Z17)*X17),0) -> 14494
B18: LANE WIDTH - AVERAGE | F18: 12 | G18: FT
B19: SHOULDER WIDTH | C19: HMA | D19: =IF(LCEdgesNf=2,"Left","Inside") -> Inside | F19: 6 | G19: FT | R19: YEAR | S19: 10 | W19: FVFn = | X19: 1
C20: HMA | D20: =IF(LCEdgesNf=2,"Right","Outside") -> Outside | F20: 10 | G20: FT | T20: LONG SHLD JT R&S | U20: 1 | V20: =ROUND((LCProjectLenf*LCEdgesNf)*U20,0) -> 4000 | W20: LIN FT | X20: =X19*LCFlexShldJTS -> 2 | Z20: =IF( S20= "X",0,ROUND((V20*X20),0)) -> 8000
C21: Total Width of Paved Shoulders | F21: =(LCShldIWf+LCShldOWf)*(LCEdgesNf/2) -> 32 | G21: FT | T21: CNTR LINE JOINT R&S | U21: 1 | V21: =ROUND(LCProjectLenf*LCCLNf*U21,0) -> 2000 | W21: LIN FT | X21: =X19*LCFlexCentJTS -> 2 | Z21: =IF( S21= "X",0,ROUND((V21*X21),0)) -> 4000
T22: RNDM / THRM CRACK R&S | U22: 0.5 | V22: =ROUND((LCLanesNf*(LCProjectLenf/100)*LCCrackRatef)*U22,0) -> 2200 | W22: LIN FT | X22: =X19*LCFlexThermCRS -> 2 | Z22: =IF( S22= "X",0,ROUND((V22*X22),0)) -> 4400
T23: PD PVMT PATCH M&F SURF | U23: 0.005 | V23: =ROUND(LCPavementSQYDf*U23,0) -> 27 | W23: SQ YD | X23: =X19*LCFlexPavPatchS -> 80.64 | Z23: =IF( S23= "X",0,ROUND((V23*X23),0)) -> 2177
B24: PAVEMENT THICKNESS (FLEXIBLE) | F24: 12 | G24: IN | I24: 17 | J24: IN MAX | T24: PWFn = | U24: =PVFn(II,S19) -> 0.7440939149 | W24: PW = | X24: =U24 -> 0.7440939149 | Y24: X | Z24: =SUM(Z20:Z23) -> 18577 | AA24: =ROUND(((Z24)*X24),0) -> 13823
B25: SHOULDER THICKNESS | F25: 8 | G25: IN | I25: =IF(LCPaveFlexT < LCPaveFlexTMax,"HMA_SD","HMA_LSCD") -> HMA_SD | J25: =IF(LCPaveFlexT < LCPaveFlexTMax,"Standard Design","LSC Design") -> Standard Design
B26: POLICY OVERLAY THICKNESS | F26: =HMA_PolicyOverlay -> 3.75 | G26: IN | R26: YEAR | S26: 15 | W26: FVFn = | X26: 1
F27: =IF(LCPaveFlexT<6,"Error: 6"" Minimum Pavement Thickness!", IF(LCPaveFlexT>LCPaveFlexTMax, "Design Thickness should not exceed LSCD Thickness!","")) ->  | M27: On | T27: ="MILL PVMT & SHLD " & FIXED(LifeCycleCost!$G$79,2) & """ " -> MILL PVMT & SHLD 2.00" | U27: 1 | V27: =ROUND((LCPavementSQYDf+LCShoulderSQYDf)*U27,0) -> 8889 | W27: SQ YD | X27: =X26*LCFlexMillingS -> 3 | Z27: =IF( S27= "X",0,ROUND((V27*X27),0)) -> 26667
M28: User | T28: ="PD PVMT PATCH M&F ADD'L " & FIXED(LifeCycleCost!$G$84,2) & """ " -> PD PVMT PATCH M&F ADD'L 2.00" | U28: 0.01 | V28: =ROUND(LCPavementSQYDf*U28,0) -> 53 | W28: SQ YD | X28: =X26*LifeCycleCost!$I$84 -> 79.52 | Z28: =IF( S28= "X",0,ROUND((V28*X28),0)) -> 4215
B29: FLEX PAVEMENT TRAFFIC FACTORS | F29: MINIMUM | I29: ACTUAL | K29: USE | M29: Override | T29: ="HMA OVERLAY PVMT " & FIXED(LifeCycleCost!$G$72,2) & """ " -> HMA OVERLAY PVMT 2.00" | U29: 1 | V29: =IF(LC_FlexBase="HMA_SD",LifeCycleCost!$M$72,LifeCycleCost!$M$72) -> 5333.3333 | W29: =MID( IF(LC_FlexBase="HMA_SD",LifeCycleCost!$J$72,LifeCycleCost!$J$72), 3,5) -> SQ YD | X29: =X26*LifeCycleCost!$I$72 -> 10.71388889 | Z29: =IF( S29= "X",0,ROUND((V29*X29),0)) -> 57141
F30: 7.11 | I30: 1 | K30: =IF(OR(LCFTFmin="No Min",LCFTFmin="-"),LCFTFa,IF(LCFTFmin>LCFTFa,LCFTFmin,LCFTFa)) -> 7.11 | L30: =IF(AND(OverRide = "On",NOT(ISBLANK(M30)),R30>= 0),"*","") ->  | T30: ="HMA OVERLAY SHLD " & FIXED(LifeCycleCost!$G$77,2) &" "" " -> HMA OVERLAY SHLD 2.00 " | U30: 1 | V30: =IF(LC_FlexBase="HMA_SD",LifeCycleCost!$M$77,LifeCycleCost!$M$77) -> 3555.55558 | W30: =MID( IF(LC_FlexBase="HMA_SD",LifeCycleCost!$J$77,LifeCycleCost!$J$77),3,5) -> SQ YD | X30: =X26*LifeCycleCost!$I$77 -> 8.064 | Z30: =IF( S30= "X",0,ROUND((V30*X30),0)) -> 28672
T31: PWFn = | U31: =PVFn(II,S26) -> 0.6418619474 | W31: PW = | X31: =U31 -> 0.6418619474 | Y31: X | Z31: =SUM(Z27:Z30) -> 116695 | AA31: =ROUND(((Z31)*X31),0) -> 74902
L32: Read Me!
B33: HMA COST PER TON | I33: UNIT PRICE | R33: YEAR | S33: 20 | W33: FVFn = | X33: 1
B34: HMA SURFACE | I34: 95 | J34: / TON | T34: LONG SHLD JT R&S | U34: 1 | V34: =ROUND((LCProjectLenf*LCEdgesNf)*U34,0) -> 4000 | W34: LIN FT | X34: =X33*LCFlexShldJTS -> 2 | Z34: =IF( S34= "X",0,ROUND((V34*X34),0)) -> 8000
B35: HMA TOP BINDER | I35: 95 | J35: / TON | T35: CNTR LINE JOINT R&S | U35: 1 | V35: =ROUND(LCProjectLenf*LCCLNf*U35,0) -> 2000 | W35: LIN FT | X35: =X33*LCFlexCentJTS -> 2 | Z35: =IF( S35= "X",0,ROUND((V35*X35),0)) -> 4000
B36: HMA LOWER BINDER | I36: 80 | J36: / TON | T36: RNDM / THRM CRACK R&S | U36: 0.5 | V36: =ROUND((LCLanesNf*(LCProjectLenf/100)*LCCrackRatef)*U36,0) -> 2200 | W36: LIN FT | X36: =X33*LCFlexThermCRS -> 2 | Z36: =IF( S36= "X",0,ROUND((V36*X36),0)) -> 4400
B37: HMA BINDER (LEVELING) | I37: 85 | J37: / TON | T37: PD PVMT PATCH M&F SURF | U37: 0.001 | V37: =ROUND(LCPavementSQYDf*U37,0) -> 5 | W37: SQ YD | X37: =X33*LCFlexPavPatchS -> 80.64 | Z37: =IF( S37= "X",0,ROUND((V37*X37),0)) -> 403
B38: HMA SHOULDER | I38: 72 | J38: / TON | T38: PWFn = | U38: =PVFn(II,S33) -> 0.5536757542 | W38: PW = | X38: =U38 -> 0.5536757542 | Y38: X | Z38: =SUM(Z34:Z37) -> 16803 | AA38: =ROUND(((Z38)*X38),0) -> 9303
M40: USER | N40: USER | R40: YEAR | S40: 25 | W40: FVFn = | X40: 1
B41: INITIAL COSTS | M41: SUPPLIED | N41: SUPPLIED | T41: LONG SHLD JT R&S | U41: 1 | V41: =ROUND((LCProjectLenf*LCEdgesNf)*U41,0) -> 4000 | W41: LIN FT | X41: =X40*LCFlexShldJTS -> 2 | Z41: =IF( S41= "X",0,ROUND((V41*X41),0)) -> 8000
B42: ITEM | D42: THICKNESS | F42: 100% QUANTITY | G42: UNIT | I42: UNIT PRICE | K42: COST | M42: QUANTITY | N42: UNIT PRICE | T42: CNTR LINE JOINT R&S | U42: 1 | V42: =ROUND(LCProjectLenf*LCCLNf*U42,0) -> 2000 | W42: LIN FT | X42: =X40*LCFlexCentJTS -> 2 | Z42: =IF( S42= "X",0,ROUND((V42*X42),0)) -> 4000
T43: RNDM / THRM CRACK R&S | U43: 0.5 | V43: =ROUND((LCLanesNf*(LCProjectLenf/100)*LCCrackRatef)*U43,0) -> 2200 | W43: LIN FT | X43: =X40*LCFlexThermCRS -> 2 | Z43: =IF( S43= "X",0,ROUND((V43*X43),0)) -> 4400
M44: 4 | T44: PD PVMT PATCH M&F SURF | U44: 0.005 | V44: =ROUND(LCPavementSQYDf*U44,0) -> 27 | W44: SQ YD | X44: =X40*LCFlexPavPatchS -> 80.64 | Z44: =IF( S44= "X",0,ROUND((V44*X44),0)) -> 2177
B45: HMA PAVEMENT ( FULL-DEPTH ) | D45: ="( " & FIXED(LCPaveFlexT,2) & """ )" -> ( 12.00" ) | E45: =IF( AND(G47="SQ YD",L47="~"), LCSurfaceQf, LCPavementQf) -> 5333.3333 | F45: =IF(AND(H45= "*",M45>0),M45,ROUND((LCProjectLenf*LCLaneWf*LCLanesNf)/9,$M$44)) -> 5333.3333 | G45: SQ YD | H45: =IF(AND(OverRide = "On",OR(NOT(ISBLANK(M45)),NOT(ISBLANK(N45))),M45>= 0),"*","") ->  | I45: =IF(AND(H45= "*", N45<>"", N45>=0), N45, LC_Cost_HMASurf_Ton*BinderSW*HMA_Surf/36 * LC_HMASurf_SQYD_Adj + LC_Cost_HMATopBind_Ton*BinderSW*(HMA_TopBinder)/36 * LC_HMATopBind_SQYD_Adj + LC_Cost_HMABind_Ton*BinderSW*HMA_Bind/36 * LC_HMABind_SQYD_Adj ) -> 59.62268229 | J45: / SQ YD | K45: =IF(L45= "~",ROUND((LCPavementQf*LC_Cost_HMAPaveFD),0),0 ) -> 317988 | L45: ~ | T45: PWFn = | U45: =PVFn(II,S40) -> 0.4776055693 | W45: PW = | X45: =U45 -> 0.4776055693 | Y45: X | Z45: =SUM(Z41:Z44) -> 18577 | AA45: =ROUND(((Z45)*X45),0) -> 8872
T46: =LC_FlexBase -> HMA_SD
B47: HMA SURFACE COURSE | D47: ="( " & FIXED(HMA_Surf,2) & """ )" -> ( 2.00" ) | E47: =(LCLanesNf * LCLaneWf + LCEdgesNf*Wedge_Std* (HMA_Surf) / 24) / (LCLanesNf * LCLaneWf) -> 1.006944444 | F47: =IF(AND(H47= "*",M47>0),M47,IF(G47="TONS", ROUND((LCProjectLenf*(LCLanesNf*LCLaneWf+LCEdgesNf*Wedge_Std*HMA_Surf/24)*HMA_Surf/12)/27*BinderSW,$M$44),ROUND((LCProjectLenf*LCLaneWf*LCLanesNf)/9,$M$44)) ) -> 601.4815 | G47: TONS | H47: =IF(AND(OverRide = "On",OR(NOT(ISBLANK(M47)),NOT(ISBLANK(N47))),M47>= 0),"*","") ->  | I47: =IF(AND(H47= "*", N47<>"", N47>=0,G47="SQ YD"), N47, IF(G47="TONS", LC_Cost_HMASurf_Ton, LC_Cost_HMASurf_Ton *BinderSW*HMA_Surf/36 * LC_HMASurf_SQYD_Adj) ) -> 95 | J47: =IF(G47="TONS", "/ TON", "/ SQ YD") -> / TON | K47: =IF(L47= "~",ROUND((LCSurfaceQf*LC_Cost_HMASurf_Q),0),0 ) -> 0 | L47: =IF(L45="~","","~") ->  | R47: YEAR | S47: 30 | T47: =LC_FacilityType -> INTERSTATE | W47: FVFn = | X47: 1
B48: HMA TOP BINDER COURSE | D48: ="( " & FIXED(HMA_TopBinder,2) & """ )" -> ( 2.25" ) | E48: =(LCLanesNf * LCLaneWf + LCEdgesNf*Wedge_Std*(2*HMA_Surf+HMA_TopBinder) / 24) / (LCLanesNf * LCLaneWf) -> 1.021701389 | F48: =IF(AND(H48= "*",M48>0),M48, IF(G48="TONS", ROUND((LCProjectLenf*(LCLanesNf*LCLaneWf+LCEdgesNf*Wedge_Std*(2*HMA_Surf+HMA_TopBinder)/24)*HMA_TopBinder/12)/27*BinderSW,$M$44),ROUND((LCProjectLenf*LCLaneWf*LCLanesNf)/9,$M$44)) ) -> 686.5833 | G48: =G47 -> TONS | H48: =IF(AND(OverRide = "On",OR(NOT(ISBLANK(M48)),NOT(ISBLANK(N48))),M48>= 0),"*","") ->  | I48: =IF(AND(H48= "*", N48<>"", N48>=0,G47="SQ YD"), N48, IF(G48="TONS", LC_Cost_HMATopBind_Ton, LC_Cost_HMATopBind_Ton*BinderSW*HMA_TopBinder/36 * LC_HMATopBind_SQYD_Adj) ) -> 95 | J48: =IF(G48="TONS", "/ TON", "/ SQ YD") -> / TON | K48: =IF(L48= "~",ROUND((LCTopBinderQf*LC_Cost_HMATopBind_Q),0),0 ) -> 0 | L48: =IF(L45="~","","~") ->  | T48: =IF(LC_FacilityType= "Interstate", "MILL PVMT ONLY " & FIXED(LifeCycleCost!$G$79,2) & """ ", "MILL PVMT & SHLD " & FIXED(LifeCycleCost!$G$79,2) & """ ") -> MILL PVMT ONLY 2.00" | U48: 1 | V48: =IF(LC_FacilityType= "Interstate", ROUND((LCPavementSQYDf)*U48,0), ROUND((LCPavementSQYDf+LCShoulderSQYDf)*U48,0) ) -> 5333 | W48: SQ YD | X48: =X47*LCFlexMillingS -> 3 | Z48: =IF( S48= "X",0,ROUND((V48*X48),0)) -> 15999
B49: HMA LOWER BINDER COURSE | D49: ="( " & FIXED( (HMA_Bind),2) & """ )" -> ( 7.75" ) | E49: =(LCLanesNf * LCLaneWf + LCEdgesNf*Wedge_Std*(2*HMA_Surf+2*HMA_TopBinder+HMA_Bind) / 24) / (LCLanesNf * LCLaneWf) -> 1.056423611 | F49: =IF(AND(H49= "*",M49>0),M49, IF(G49="TONS", ROUND((LCProjectLenf*(LCLanesNf*LCLaneWf+LCEdgesNf*Wedge_Std*((2*(HMA_Surf+HMA_TopBinder)+HMA_Bind))/24)*HMA_Bind/12)/27*BinderSW,$M$44),ROUND((LCProjectLenf*(LCLaneWf)*LCLanesNf)/9,$M$44)) ) -> 2445.2685 | G49: =G47 -> TONS | H49: =IF(AND(OverRide = "On",OR(NOT(ISBLANK(M49)),NOT(ISBLANK(N49))),M49>= 0),"*","") ->  | I49: =IF(AND(H49= "*", N49<>"", N47>=0,G47="SQ YD"), N49, IF(G49="TONS", LC_Cost_HMABind_Ton, LC_Cost_HMABind_Ton*BinderSW*(HMA_Bind)/36 * LC_HMABind_SQYD_Adj) ) -> 80 | J49: =IF(G49="TONS", "/ TON", "/ SQ YD") -> / TON | K49: =IF(L49= "~",ROUND((LCBaseQf*LC_Cost_HMABind_Q),0),0 ) -> 0 | L49: =IF(L45="~","","~") ->  | T49: ="PD PVMT PATCH M&F ADD'L " & FIXED(LifeCycleCost!$G$84,2) & """ " -> PD PVMT PATCH M&F ADD'L 2.00" | U49: 0.02 | V49: =ROUND((LCPavementSQYDf)*U49,0) -> 107 | W49: SQ YD | X49: =X47*LifeCycleCost!$I$84 -> 79.52 | Z49: =IF( S49= "X",0,ROUND((V49*X49),0)) -> 8509
T50: =IF(LC_FacilityType= "Interstate","PD SHLD PATCH M&F SURF " & FIXED(LifeCycleCost!$G$85,2) & """ ","PD SHLD PATCH M&F ADD'L " & FIXED(LifeCycleCost!$G$85,2) & """ ") -> PD SHLD PATCH M&F SURF 2.00" | U50: 0.01 | V50: =ROUND((LCShoulderSQYDf)*U50,0) -> 36 | W50: SQ YD | X50: =X47*LifeCycleCost!$I$85 -> 78.064 | Z50: =IF( S50= "X",0,ROUND((V50*X50),0)) -> 2810
T51: ="HMA OVERLAY PVMT " & FIXED( IF(LC_FlexBase="HMA_SD",LifeCycleCost!$G$73,LifeCycleCost!$G$210), 2) & " "" " -> HMA OVERLAY PVMT 3.75 " | U51: 1 | V51: =IF(LC_FlexBase="HMA_SD",LifeCycleCost!$M$73,LifeCycleCost!$M$210) -> 5333.3333 | W51: =MID( IF(LC_FlexBase="HMA_SD",LifeCycleCost!$J$73,LifeCycleCost!$J$210),3,5) -> SQ YD | X51: =IF(LC_FlexBase="HMA_SD",LifeCycleCost!$I$73,LifeCycleCost!$I$210) -> 20.20976563 | Z51: =IF( S51= "X",0,ROUND((V51*X51),0)) -> 107785
B52: ="HMA SHOULDER " -> HMA SHOULDER | D52: ="( " & FIXED(LCShldTf,2) & """ )" -> ( 8.00" ) | E52: =IF(G52="SQ YD",LCShoulderQf,LCShoulderQf/BinderSW / (IF(LCShldTf>0,LCShldTf,0.0001)/36)) -> 3555.55558 | F52: =IF(AND(H52= "*",M52>0),M52, IF(G52="TONS", ROUND(LCProjectLenf*(LCShldIWf+LCShldOWf+0*LCShldTf/12)*LCEdgesNf/2*LCShldTf/12/27*BinderSW,$M$44),ROUND(LCProjectLenf*(LCShldIWf+LCShldOWf)*(LCEdgesNf/2)/9,$M$44)) ) -> 1592.8889 | G52: TONS | H52: =IF(AND(OverRide = "On",OR(NOT(ISBLANK(M52)),NOT(ISBLANK(N52))),M52>= 0),"*","") ->  | I52: =IF(AND(H52= "*", N52<>"", N52>=0,G47="SQ YD"), N52, IF(G52="TONS", LC_Cost_HMAShld_Ton, LC_Cost_HMAShld_Ton*BinderSW*LCShldTf/36) ) -> 72 | J52: =IF(G52="TONS", "/ TON", "/ SQ YD") -> / TON | K52: =IF(L52= "~",ROUND((LCShoulderQf*LC_Cost_HMAShld_Q),0),0 ) -> 114688 | L52: ~ | T52: ="HMA OVERLAY SHLD " & FIXED( IF(LC_FlexBase="HMA_SD",LifeCycleCost!$G$76,LifeCycleCost!$G$213), 2) &" "" " -> HMA OVERLAY SHLD 1.75 " | U52: 1 | V52: =IF(LC_FlexBase="HMA_SD",LifeCycleCost!$M$76,LifeCycleCost!$M$213) -> 3555.55558 | W52: =MID( IF(LC_FlexBase="HMA_SD",LifeCycleCost!$J$76,LifeCycleCost!$J$213),3,5) -> SQ YD | X52: =IF(LC_FlexBase="HMA_SD",LifeCycleCost!$I$76,LifeCycleCost!$I$213) -> 7.056 | Z52: =IF( S52= "X",0,ROUND((V52*X52),0)) -> 25088
B53: CURB & GUTTER | F53: =IF(AND(H53= "*",M53>0),M53,0) -> 0 | G53: LIN FT | H53: =IF(AND(OverRide = "On",NOT(ISBLANK(M53)),M53>= 0),"*","") ->  | I53: 30 | J53: / LIN FT | K53: =IF(AND(M53<>"",M53= 0),0,ROUND((F53*I53),0) ) -> 0 | T53: PWFn = | U53: =PVFn(II,S47) -> 0.4119867595 | W53: PW = | X53: =U53 -> 0.4119867595 | Y53: X | Z53: =SUM(Z48:Z52) -> 160191 | AA53: =ROUND(((Z53)*X53),0) -> 65997
B55: SUBBASE GRAN MATL TY C (TONS) | F55: =IF(AND(H55= "*",M55>=0),M55,ROUND(LCProjectLenf*(ShldSubAfi+ShldSubAfo)*(LCEdgesNf/2)/27*ShldSubSW,0)) -> 499 | G55: TONS | H55: =IF(AND(OverRide = "On",NOT(ISBLANK(M55)),M55>= 0),"*","") ->  | I55: 25 | J55: / TON | K55: =IF(AND(M55<>"",M55= 0),0,ROUND((F55*I55),0) ) -> 12475 | R55: YEAR | S55: 35 | W55: FVFn = | X55: 1
B56: IMPROVED SUBGRADE: | D56: Modified Soil | E56: ="Width = " & FIXED(F56*9/LCProjectLenf,1) & "'" -> Width = 86.0' | F56: =IF(AND(H56= "*",M56>=0),M56,ROUND((LCProjectLenf*( (LCLanesNf*LCLaneWf) + LCEdgesNf/2 * (LCShldIWf+LCShldOWf + 1 + IF((LCShoulderSQYDf)>0, 2*Wedge_Std*LCPaveFlexT/12, 2*Wedge_Std*LCPaveFlexT/12) ) )/9),0)) -> 9556 | G56: SQ YD | H56: =IF(AND(OverRide = "On",NOT(ISBLANK(M56)),M56>= 0),"*","") ->  | I56: 7 | J56: / SQ YD | K56: =IF(AND(M56<>"",M56= 0),0,ROUND((F56*I56),0) ) -> 66892 | T56: LONG SHLD JT R&S | U56: 1 | V56: =ROUND((LCProjectLenf*LCEdgesNf)*U56,0) -> 4000 | W56: LIN FT | X56: =X55*LCFlexShldJTS -> 2 | Z56: =IF( S56= "X",0,ROUND((V56*X56),0)) -> 8000
T57: CNTR LINE JOINT R&S | U57: 1 | V57: =ROUND(LCProjectLenf*LCCLNf*U57,0) -> 2000 | W57: LIN FT | X57: =X55*LCFlexCentJTS -> 2 | Z57: =IF( S57= "X",0,ROUND((V57*X57),0)) -> 4000
B58: Reserved For User Supplied Item | F58: =IF(AND(H58= "*",M58>=0),M58,ROUND(0,0)) -> 0 | G58: UNITS | H58: =IF(AND(OverRide = "On",NOT(ISBLANK(M58)),M58>= 0),"*","") ->  | I58: 0 | J58: =IF(G58= "","","/ " & G58) -> / UNITS | K58: =IF(AND(M58<>"",M58= 0),0,ROUND((F58*I58),0) ) -> 0 | T58: RNDM / THRM CRACK R&S | U58: 0.5 | V58: =ROUND((LCLanesNf*(LCProjectLenf/100)*LCCrackRatef)*U58,0) -> 2200 | W58: LIN FT | X58: =X55*LCFlexThermCRS -> 2 | Z58: =IF( S58= "X",0,ROUND((V58*X58),0)) -> 4400
B59: Reserved For User Supplied Item | F59: =IF(AND(H59= "*",M59>=0),M59,ROUND(0,0)) -> 0 | G59: UNITS | H59: =IF(AND(OverRide = "On",NOT(ISBLANK(M59)),M59>= 0),"*","") ->  | I59: 0 | J59: =IF(G59= "","","/ " & G59) -> / UNITS | K59: =IF(AND(M59<>"",M59= 0),0,ROUND((F59*I59),0) ) -> 0 | T59: PD PVMT PATCH M&F SURF | U59: 0.001 | V59: =ROUND(LCPavementSQYDf*U59,0) -> 5 | W59: SQ YD | X59: =X55*LCFlexPavPatchS -> 80.64 | Z59: =IF( S59= "X",0,ROUND((V59*X59),0)) -> 403
T60: PWFn = | U60: =PVFn(II,S55) -> 0.3553833978 | W60: PW = | X60: =U60 -> 0.3553833978 | Y60: X | Z60: =SUM(Z56:Z59) -> 16803 | AA60: =ROUND(((Z60)*X60),0) -> 5972
B61: PAVEMENT REMOVAL | F61: =IF(AND(H61= "*",1=1),M61,ROUND((LCProjectLenf*LCLaneWf*LCLanesNf)/9,M43)) -> 5333 | G61: SQ YD | H61: =IF(AND(OverRide = "On",NOT(ISBLANK(M61)),M61>= 0),"*","") ->  | I61: 0 | J61: / SQ YD | K61: =IF(AND(M61<>"",M61= 0),0,ROUND((F61*I61),0) ) -> 0
B62: SHOULDER REMOVAL | F62: =IF(AND(H62= "*",1=1),M62,ROUND(LCProjectLenf*(LCShldIWf+LCShldOWf)*(LCEdgesNf/2)/9,M35)) -> 3556 | G62: SQ YD | H62: =IF(AND(OverRide = "On",NOT(ISBLANK(M62)),M62>= 0),"*","") ->  | I62: 0 | J62: / SQ YD | K62: =IF(AND(M62<>"",M62= 0),0,ROUND((F62*I62),0) ) -> 0 | R62: YEAR | S62: 40 | W62: FVFn = | X62: 1
T63: LONG SHLD JT R&S | U63: 1 | V63: =ROUND((LCProjectLenf*LCEdgesNf)*U63,0) -> 4000 | W63: LIN FT | X63: =X62*LCFlexShldJTS -> 2 | Z63: =IF( S63= "X",0,ROUND((V63*X63),0)) -> 8000
B64: Note: * Denotes User Supplied Quantity | I64: FLEXIBLE CONSTRUCTION INITIAL COST | K64: =ROUND(SUM(K45:K62),0) -> 512043 | T64: CNTR LINE JOINT R&S | U64: 1 | V64: =ROUND(LCProjectLenf*LCCLNf*U64,0) -> 2000 | W64: LIN FT | X64: =X62*LCFlexCentJTS -> 2 | Z64: =IF( S64= "X",0,ROUND((V64*X64),0)) -> 4000
I65: FLEXIBLE CONSTRUCTION ANNUAL COST PER MILE | K65: =ROUND(((K64*CRFn(II,LifeCycle)/(LCProjectLen/5280))),0) -> 110266 | T65: RNDM / THRM CRACK R&S | U65: 0.5 | V65: =ROUND((LCLanesNf*(LCProjectLenf/100)*LCCrackRatef)*U65,0) -> 2200 | W65: LIN FT | X65: =X62*LCFlexThermCRS -> 2 | Z65: =IF( S65= "X",0,ROUND((V65*X65),0)) -> 4400
T66: PD PVMT PATCH M&F SURF | U66: 0.005 | V66: =ROUND(LCPavementSQYDf*U66,0) -> 27 | W66: SQ YD | X66: =X62*LCFlexPavPatchS -> 80.64 | Z66: =IF( S66= "X",0,ROUND((V66*X66),0)) -> 2177
B67: MAINTENANCE COSTS: | M67: Schedule | N67: Unit Cost | T67: PWFn = | U67: =PVFn(II,S62) -> 0.3065568408 | W67: PW = | X67: =U67 -> 0.3065568408 | Y67: X | Z67: =SUM(Z63:Z66) -> 18577 | AA67: =ROUND(((Z67)*X67),0) -> 5695
B68: ITEM | D68: THICKNESS | F68: MATERIAL | G68: T | I68: UNIT COST | M68: Quantity | N68: Override
AA69: =SUM(AA12:AA68) -> 199058
B70: ROUTINE MAINTENANCE ACTIVITY | I70: =I153 -> 0 | J70: LANE-MILE / YEAR
T71: ROUTINE MAINTENANCE ACTIVITY | V71: =LCLanesNf*LCProjectLenf / 5280 -> 0.7575757576 | W71: Lane Miles | X71: =LCFlexARMA -> 0 | Z71: =IF( S71= "X",0,(V71*X71)) -> 0 | AA71: =Z71/CRFn(II,LifeCycle) -> 0
B72: ="HMA OVERLAY PVMT SURF" -> HMA OVERLAY PVMT SURF | D72: ="( " & FIXED(G72,2)&""" )" -> ( 2.00" ) | E72: =(LCLanesNf * LCLaneWf + LCEdgesNf*Wedge_Std*(G72) / 24) / (LCLanesNf * LCLaneWf) -> 1.006944444 | F72: Surface Mix | G72: =SurfaceT -> 2 | I72: =IF(N72<>"",N72, IF(J72="/ TON", LC_Cost_HMASurf_Ton, E72 * LC_Cost_HMASurf_Ton*BinderSW*G72/36) ) -> 10.71388889 | J72: / SQ YD | M72: =IF(J72="/ SQ YD", LCPavementSQYDf, E72*LCPavementSQYDf*(G72/36)*BinderSW) -> 5333.3333 | Z72: MAINTENANCE LIFE-CYCLE COST | AA72: =SUM(AA69:AA71) -> 199058
B73: ="HMA OVERLAY PVMT" -> HMA OVERLAY PVMT | D73: ( 3.75" ) | E73: =(LCLanesNf * LCLaneWf + LCEdgesNf*Wedge_Std*(G73) / 24) / (LCLanesNf * LCLaneWf) -> 1.013020833 | G73: =HMA_PolicyOverlay -> 3.75 | I73: =IF(N73<>"", N73, IF(J73="/ TON", (E74*G74*I74 + E75*G75*I75)/(E73*G73), (I74+I75) ) ) -> 20.20976563 | J73: =J72 -> / SQ YD | M73: =IF(J73="/ SQ YD", LCPavementSQYDf, E73*LCPavementSQYDf*(G73/36)*BinderSW) -> 5333.3333 | S73: =LifeCycle -> 45 | T73: =" YEAR LIFE CYCLE" & REPT(" ",20) & "CRFn = " & FIXED(CRFn(II,LifeCycle),7) -> YEAR LIFE CYCLE CRFn = 0.0407852 | Z73: MAINTENANCE ANNUAL COST PER MILE | AA73: =ROUND(((AA72*CRFn(II,LifeCycle)/(LCProjectLenf / 5280))),0) -> 42866
B74: ="HMA SURFACE MIX" -> HMA SURFACE MIX | D74: ( 1.50" ) | E74: =(LCLanesNf * LCLaneWf + LCEdgesNf*Wedge_Std*(G74) / 24) / (LCLanesNf * LCLaneWf) -> 1.005208333 | F74: Surface Mix | G74: =HMA_OverlaySurf -> 1.5 | I74: =IF(N74<>"",N74, IF(J74="/ TON", LC_Cost_HMASurf_Ton, E74 * LC_Cost_HMASurf_Ton*BinderSW*G74/36) ) -> 8.0215625 | J74: =J73 -> / SQ YD | M74: =IF(J74="/ SQ YD", LCPavementSQYDf, E74*LCPavementSQYDf*(G74/36)*BinderSW) -> 5333.3333
B75: ="HMA BINDER MIX" -> HMA BINDER MIX | D75: ( 2.25" ) | E75: =(LCLanesNf * LCLaneWf + LCEdgesNf*Wedge_Std*(2*G74+G75) / 24) / (LCLanesNf * LCLaneWf) -> 1.018229167 | F75: =Variables!$O$20 -> Top Binder Mix | G75: =HMA_OverlayBind -> 2.25 | I75: =IF(N75<>"", N75, IF(J74="/ TON", IF(LC_FacilityType= "INTERSTATE", LC_Cost_HMATopBind_Ton, LC_Cost_HMABindL_Ton), IF(LC_FacilityType= "INTERSTATE", LC_Cost_HMATopBind_Ton, LC_Cost_HMABindL_Ton)*E75*BinderSW*G75/36) ) -> 12.18820313 | J75: =J73 -> / SQ YD | M75: =IF(J75="/ SQ YD", LCPavementSQYDf, E75*LCPavementSQYDf*(G75/36)*BinderSW) -> 5333.3333
B76: ="HMA OVERLAY SHLD" -> HMA OVERLAY SHLD | C76: (Year 30) | D76: ="( " & FIXED(G76,2)&""" )" -> ( 1.75" ) | F76: Shoulder Mix | G76: =IF(LC_FlexBase= "HMA_SD",IF(LC_FacilityType= "INTERSTATE",G73-$G$79,G73),G73) -> 1.75 | I76: =IF(N76<>"",N76, IF(J76="/ TON", LC_Cost_HMAShld_Ton, LC_Cost_HMAShld_Ton*BinderSW*G76/36) ) -> 7.056 | J76: =J73 -> / SQ YD | M76: =IF(J76="/ SQ YD", LCShoulderSQYDf, LCShoulderSQYDf*(G76/36)*BinderSW) -> 3555.55558
B77: ="HMA OVERLAY SHLD" -> HMA OVERLAY SHLD | D77: ( 2.00" ) | F77: Shoulder Mix | G77: =G72 -> 2 | I77: =IF(N77<>"",N77, IF(J77="/ TON", LC_Cost_HMAShld_Ton, LC_Cost_HMAShld_Ton*BinderSW*G77/36) ) -> 8.064 | J77: =J72 -> / SQ YD | M77: =IF(J77="/ SQ YD", LCShoulderSQYDf, LCShoulderSQYDf*(G77/36)*BinderSW) -> 3555.55558
B79: ="MILLING (" & FIXED(G79,2) & " IN)" -> MILLING (2.00 IN) | G79: =G72 -> 2 | I79: 3 | J79: / SQ YD
B81: PARTIAL DEPTH PVMT PATCH | D81: (Mill & Fill Surf) | F81: Surface Mix | G81: =G72 -> 2 | I81: =IF(N81<>"",N81, (LCFlexMillingS + LC_Cost_HMASurf_Ton*BinderSW*G81/36)+AddLabor ) -> 80.64 | J81: / SQ YD
B82: PARTIAL DEPTH SHLD PATCH | D82: (Mill & Fill Surf) | F82: Shoulder Mix | G82: =G72 -> 2 | I82: =IF(N82<>"",N82, (LCFlexMillingS + LC_Cost_HMAShld_Ton*BinderSW*G82/36)+AddLabor) -> 78.064 | J82: / SQ YD
B84: ="PARTIAL DEPTH PVMT PATCH" -> PARTIAL DEPTH PVMT PATCH | D84: =" (Mill & Fill +" & FIXED(G84,2) & " "")" -> (Mill & Fill +2.00 ") | F84: Leveling Binder Mix | G84: =G72 -> 2 | I84: =IF(N84<>"",N84, (LCFlexMillingS + LC_Cost_HMABindL_Ton*BinderSW*G84/36)+AddLabor ) -> 79.52 | J84: / SQ YD
B85: ="PARTIAL DEPTH SHLD PATCH" -> PARTIAL DEPTH SHLD PATCH | D85: =" (Mill & Fill +" & FIXED(G85,2) & " "")" -> (Mill & Fill +2.00 ") | F85: Shoulder Mix | G85: =G84 -> 2 | I85: =IF(N85<>"",N85, (LCFlexMillingS + LC_Cost_HMAShld_Ton*BinderSW*G85/36)+AddLabor ) -> 78.064 | J85: / SQ YD
B87: LONGITUDINAL SHOULDER JOINT ROUT & SEAL | I87: 2 | J87: / LIN FT
B88: CENTERLINE JOINT ROUT & SEAL | I88: 2 | J88: / LIN FT
B89: RANDOM / THERMAL CRACK ROUT & SEAL | G89: ="(100% Rehab = "& FIXED(LCCrackRatef,2) &"' / Station / Lane)" -> (100% Rehab = 110.00' / Station / Lane) | I89: 2 | J89: / LIN FT
I93: FLEXIBLE TOTAL LIFE-CYCLE COST | K93: =(LCFlexConstCost+LCFlexMLCCSum) -> 711101
I94: FLEXIBLE TOTAL ANNUAL COST PER MILE | K94: =ROUND(((K93*CRFn(II,LifeCycle)/(LCProjectLenf/5280))),0) -> 153133
B98: PCC PAVEMENT | K98: =LC_RigidRehabType -> JPCP | R98: JPCP | U98: MAINTENANCE AND REHABILITATION ACTIVITY SCHEDULE | AA98: =NOW() -> 2017-05-04T11:05:27.110
U99: =IF(LC_RigidRehabType<>LC_RigidBase,IF(LCPaveTypeo= "","WARNING: INCORRECT MAINTENANCE SCHEDULE for CURRENT TRAFFIC FACTOR!","WARNING: INCORRECT MAINTENANCE SCHEDULE for USER SET PAVEMENT TYPE!")," - ") -> -
B100: ROUTE | F100: =C7 -> Job Route
B101: SECTION | F101: =C8 -> Job Section | U101: JOINTED PLAIN CONCRETE PAVEMENT
B102: COUNTY | F102: =C9 -> Job County | U102: UNBONDED JOINTED PLAIN CONCRETE OVERLAY
B103: LOCATION | F103: =C10 -> Job Location | U103: Figure 54-7.A
B105: FACILITY TYPE | F105: =LC_FacilityType -> INTERSTATE | X105: =IF(LCUPC= "Yes","PROJECTED","") ->  | Z105: =IF(LCUPC= "Yes","PROJECTED","") ->  | AA105: PRESENT
F106: =IF(AND(OverRide= "On",ISNUMBER(M106),M106>0),M106,"") ->  | R106: MAINTENANCE COSTS: | T106: ITEM | U106: % | V106: QUANTITY | W106: UNIT | X106: UNIT COST | Z106: COST | AA106: WORTH
B107: PROJECT LENGTH | F107: =LCProjectLenf -> 1000 | G107: FT = = > | I107: =(LCProjectLen/5280) -> 0.1893939394 | J107: Miles | M107: USER
B108: # OF CENTERLINES | F108: =LCCLNf -> 2 | G108: CL | M108: OVERRIDE | R108: YEAR | S108: 10 | W108: FVFn = | X108: 1
B109: # OF LANES | F109: =LCLanesNf -> 4 | G109: =IF(LCLanesNf>1,"LANES","LANES") -> LANES | M109: COLUMN | T109: PAVEMENT PATCH CLASS B | U109: 0.001 | V109: =ROUND(LCPavementSQYD*U109,0) -> 5 | W109: SQ YD | X109: =X108*LifeCycleCost!$I$162 -> 150 | Z109: =IF( S109= "X",0,ROUND((V109*X109),0)) -> 750
B110: # OF EDGES | F110: =LCEdgesNf -> 4 | G110: EP | T110: PWFn = | U110: =PVFn(II,S108) -> 0.7440939149 | W110: PW = | X110: =U110 -> 0.7440939149 | Y110: X | Z110: =(Z109) -> 750 | AA110: =ROUND(((Z110)*X110),0) -> 558
B111: LANE WIDTH - AVERAGE | F111: =LCLaneWf -> 12 | G111: FT
B112: SHOULDER WIDTH | C112: PCC | D112: =IF(LCEdgesN=2,"Left","Inside") -> Inside | F112: =LCShldIWf -> 6 | G112: FT | R112: YEAR | S112: 15 | W112: FVFn = | X112: 1
C113: PCC | D113: =IF(LCEdgesN=2,"Right","Outside") -> Outside | F113: =LCShldOWf -> 10 | G113: FT | T113: PAVEMENT PATCH CLASS B | U113: 0.002 | V113: =ROUND(LCPavementSQYD*U113,0) -> 11 | W113: SQ YD | X113: =X112*LifeCycleCost!$I$162 -> 150 | Z113: =IF( S113= "X",0,ROUND((V113*X113),0)) -> 1650
C114: Total Width of Paved Shoulders | F114: =(LCShldIW+LCShldOW)*(LCEdgesN/2) -> 32 | G114: FT | T114: PWFn = | U114: =PVFn(II,S112) -> 0.6418619474 | W114: PW = | X114: =U114 -> 0.6418619474 | Y114: X | Z114: =(Z113) -> 1650 | AA114: =ROUND(((Z114)*X114),0) -> 1059
R116: YEAR | S116: 20 | W116: FVFn = | X116: 1
B117: PAVEMENT THICKNESS (RIGID) | E117: =LC_RigidRehabType -> JPCP | F117: 10 | G117: IN | I117: TIED SHLD | T117: PAVEMENT PATCH CLASS B | U117: 0.02 | V117: =ROUND(LCPavementSQYD*U117,0) -> 107 | W117: SQ YD | X117: =X116*LifeCycleCost!$I$162 -> 150 | Z117: =IF( S117= "X",0,ROUND((V117*X117),0)) -> 16050
B118: SHOULDER THICKNESS | E118: =IF(LCShldOutEdge_T<>LCShldT, "Pavement Edge ==>", "") ->  | F118: =LCPaveRigidT -> 10 | G118: IN | T118: SHOULDER PATCH CLASS C | U118: 0.005 | V118: =ROUND(LCShoulderSQYD*U118,0) -> 18 | W118: SQ YD | X118: =X116*LifeCycleCost!$I$163 -> 145 | Z118: =IF( S118= "X",0,ROUND((V118*X118),0)) -> 2610
E119: =IF(LCShldOutEdge_T<>LCShldT, "Outside Edge ==>", "") ->  | F119: =IF(LCShldOutEdge_T<>LCShldT, PCC_ShldTaperT, "") ->  | G119: =IF(LCShldOutEdge_T<>LCShldT, "IN", "") ->  | T119: LONGITUDINAL SHLD JT R&S | U119: 1 | V119: =ROUND(LCEdgesN*LCProjectLen*U119,0) -> 4000 | W119: LIN FT | X119: =X116*LifeCycleCost!$I$168 -> 2 | Z119: =IF( S119= "X",0,ROUND((V119*X119),0)) -> 8000
T120: CENTERLINE JT R&S | U120: 1 | V120: =ROUND(LCCLN*LCProjectLen*U120,0) -> 2000 | W120: LIN FT | X120: =X116*LifeCycleCost!$I$169 -> 2 | Z120: =IF( S120= "X",0,ROUND((V120*X120),0)) -> 4000
B121: POLICY OVERLAY THICKNESS | F121: =PCC_PolicyOverlay -> 3.75 | G121: IN | M121: =OverRide -> On | T121: PWFn = | U121: =PVFn(II,S116) -> 0.5536757542 | W121: PW = | X121: =U121 -> 0.5536757542 | Y121: X | Z121: =ROUND(SUM(Z117:Z120),0) -> 30660 | AA121: =ROUND(((Z121)*X121),0) -> 16976
M122: User
B123: RIGID PAVEMENT TRAFFIC FACTORS | F123: MINIMUM | I123: ACTUAL | K123: USE | M123: Override | R123: YEAR | S123: 25 | W123: FVFn = | X123: 1
F124: 10.05 | I124: 1 | K124: =IF(OR(LCRTFmin="No Min",LCRTFmin="-"),LCRTFa,IF(LCRTFmin>LCRTFa,LCRTFmin,LCRTFa)) -> 10.05 | L124: =IF(AND(OverRide = "On",NOT(ISBLANK(M124)),M124>= 0),"*","") ->  | T124: PAVEMENT PATCH CLASS B | U124: 0.03 | V124: =ROUND(LCPavementSQYD*U124,0) -> 160 | W124: SQ YD | X124: =X123*LifeCycleCost!$I$162 -> 150 | Z124: =IF( S124= "X",0,ROUND((V124*X124),0)) -> 24000
B125: Worksheet Construction Type is | D125: New Construction | I125: =IF( OR(LC_ConstructionType = "New Construction", $M$125 =""), "The Pavement Type is", "User Override Pavement Type is") -> The Pavement Type is | K125: =IF(LC_ConstructionType= "New Construction", "JPCP", IF($M$125<>"", $M$125, IF(LCTFRigid<= 60,"JPCP","CRCP")) ) -> JPCP | T125: SHOULDER PATCH CLASS C | U125: 0.01 | V125: =ROUND(LCShoulderSQYD*U125,0) -> 36 | W125: SQ YD | X125: =X123*LifeCycleCost!$I$163 -> 145 | Z125: =IF( S125= "X",0,ROUND((V125*X125),0)) -> 5220
M126: USER | T126: PWFn = | U126: =PVFn(II,S123) -> 0.4776055693 | W126: PW = | X126: =U126 -> 0.4776055693 | Y126: X | Z126: =ROUND(SUM(Z124:Z125),0) -> 29220 | AA126: =ROUND(((Z126)*X126),0) -> 13956
B127: INITIAL COSTS | M127: SUPPLIED
B128: ITEM | D128: THICKNESS | F128: 100% QUANTITY | G128: UNIT | I128: UNIT PRICE | K128: COST | M128: QUANTITY | R128: YEAR | S128: 30 | T128: =LC_FacilityType -> INTERSTATE | W128: FVFn = | X128: 1
T129: PAVEMENT PATCH CLASS B | U129: 0.04 | V129: =ROUND(LCPavementSQYD*U129,0) -> 213 | W129: SQ YD | X129: =X128*LifeCycleCost!$I$162 -> 150 | Z129: =IF( S129= "X",0,ROUND((V129*X129),0)) -> 31950
B130: =LEFT(LC_RigidRehabType,3)& " PAVEMENT" -> JPC PAVEMENT | D130: ="( " & FIXED(LCPaveRigidT,2) & """ )" -> ( 10.00" ) | F130: =IF(H130= "*",M130,ROUND((LCProjectLen*LCLaneW*LCLanesN)/9,0)) -> 5333 | G130: SQ YD | H130: =IF(AND(OverRide = "On",NOT(ISBLANK(M130)),ISNUMBER(M130),M130>= 0),"*","") ->  | I130: 50 | J130: / SQ YD | K130: =ROUND((F130*I130),0) -> 266650 | T130: SHOULDER PATCH CLASS C | U130: 0.015 | V130: =ROUND(LCShoulderSQYD*U130,0) -> 53 | W130: SQ YD | X130: =X128*LifeCycleCost!$I$163 -> 145 | Z130: =IF( S130= "X",0,ROUND((V130*X130),0)) -> 7685
B131: PAVEMENT REINFORCEMENT | F131: =IF(H131= "*", M131, IF(LC_RigidRehabType = "CRCP",LCPavementSQYD,0)) -> 0 | G131: SQ YD | H131: =IF(AND(OverRide = "On",NOT(ISBLANK(M131)),ISNUMBER(M131),M131>= 0),"*","") ->  | I131: 22 | J131: =IF(G131= "","","/ " & G131) -> / SQ YD | K131: =ROUND((F131*I131),0) -> 0 | T131: ="HMA POLICY OVERLAY " & LifeCycleCost!$F$121 & """ ( PVMT )" -> HMA POLICY OVERLAY 3.75" ( PVMT ) | U131: 1 | V131: =ROUND(LifeCycleCost!$M$156*U131,2) -> 5333.33 | W131: =MID(LifeCycleCost!$J$156,3,5) -> SQ YD | X131: =X128*LifeCycleCost!$I$156 -> 20.20976563 | Z131: =IF( S131= "X",0,ROUND((V131*X131),0)) -> 107785
B132: STABILIZED SUBBASE | D132: ="( " & FIXED(SubBaseT,2) & """ )" -> ( 4.00" ) | F132: =IF(H132= "*", M132, IF(SubBaseT>0,1,0)*ROUND( LCProjectLen*(LCLaneW*LCLanesN + SubBaseOutHang*LCEdgesN) / 9, 0 )) -> 6000 | G132: SQ YD | H132: =IF(AND(OverRide = "On",NOT(ISBLANK(M132)),ISNUMBER(M132),M132>= 0),"*","") ->  | I132: 19 | J132: / SQ YD | K132: =ROUND((F132*I132),0) -> 114000 | T132: ="HMA POLICY OVERLAY " & LifeCycleCost!$F$121 & """ ( SHLD )" -> HMA POLICY OVERLAY 3.75" ( SHLD ) | U132: 1 | V132: =ROUND(LifeCycleCost!$M$159*U132,2) -> 3555.56 | W132: =MID(LifeCycleCost!$J$159,3,5) -> SQ YD | X132: =X128*LifeCycleCost!$I$159 -> 15.12 | Z132: =IF( S132= "X",0,ROUND((V132*X132),0)) -> 53760
T133: PWFn = | U133: =PVFn(II,S128) -> 0.4119867595 | W133: PW = | X133: =U133 -> 0.4119867595 | Y133: X | Z133: =ROUND(SUM(Z129:Z132),0) -> 201180 | AA133: =ROUND(((Z133)*X133),0) -> 82883
B134: PCC SHOULDERS | D134: ="( " & FIXED(LCShldT,2) & """ " & " to " & " " & FIXED(IF(LC_SHLDTYPE="TIED SHLD",PCC_ShldTaperT,LCShldT),2) & """ )" -> ( 10.00" to 10.00" ) | F134: =IF(H134= "*",M134,ROUND(LCProjectLen*(LCShldIW+LCShldOW)*(LCEdgesN/2)/9,0)) -> 3556 | G134: SQ YD | H134: =IF(AND(OverRide = "On",NOT(ISBLANK(M134)),ISNUMBER(M134),M134>= 0),"*","") ->  | I134: 40 | J134: / SQ YD | K134: =ROUND((F134*I134),0) -> 142240
B135: CURB & GUTTER | F135: =IF(AND(H135= "*",M135>0),M135,0) -> 0 | G135: LIN FT | H135: =IF(AND(OverRide = "On",NOT(ISBLANK(M135)),M135>= 0),"*","") ->  | I135: 30 | J135: / LIN FT | K135: =IF(AND(M135<>"",M135= 0),0,ROUND((F135*I135),0) ) -> 0 | R135: YEAR | S135: 35 | T135: =LC_FacilityType -> INTERSTATE | W135: FVFn = | X135: 1
T136: LONGITUDINAL SHLD JT R&S | U136: 1 | V136: =ROUND(LCEdgesN*LCProjectLen*U136,0) -> 4000 | W136: LIN FT | X136: =X135*LifeCycleCost!$I$168 -> 2 | Z136: =IF( S136= "X",0,ROUND((V136*X136),0)) -> 8000
B137: SUBBASE GRAN MATL TY C | D137: =" ( ~ " & FIXED(12 *(ShldSubAri+ShldSubAro)*(LCEdgesN/2)/(LCShldIW+LCShldOW+SubBaseOutHang*2),2) & """ )" -> ( ~ 3.48" ) | F137: =IF(H137= "*",M137,ROUND(LCProjectLen*(ShldSubAri+ShldSubAro)*(LCEdgesN/2)/27*ShldSubSW,0)) -> 418 | G137: TONS | H137: =IF(AND(OverRide = "On",NOT(ISBLANK(M137)),ISNUMBER(M137),M137>= 0),"*","") ->  | I137: 25 | J137: / TON | K137: =ROUND((F137*I137),0) -> 10450 | T137: CENTERLINE JT R&S | U137: 1 | V137: =ROUND(LCCLN*LCProjectLen*U137,0) -> 2000 | W137: LIN FT | X137: =X135*LifeCycleCost!$I$169 -> 2 | Z137: =IF( S137= "X",0,ROUND((V137*X137),0)) -> 4000
B138: IMPROVED SUBGRADE: | D138: Modified Soil | E138: ="Width = " & FIXED(F138*9/LCProjectLen,1) & "'" -> Width = 82.0' | F138: =IF(H138= "*",M138,ROUND((LCProjectLen*( (LCLanesN*LCLaneW) + LCEdgesN/2*(LCShldIW+LCShldOW + 1 + (0)*(LCPaveRigidT+SubBaseT)/12) )/9),0) ) -> 9111 | G138: SQ YD | H138: =IF(AND(OverRide = "On",NOT(ISBLANK(M138)),ISNUMBER(M138),M138>= 0),"*","") ->  | I138: 7 | J138: / SQ YD | K138: =ROUND((F138*I138),0) -> 63777 | T138: RANDOM CRACK R&S | U138: 0.5 | V138: =ROUND(LCLanesN*(LCProjectLen/100)*LCCrackRater*U138,0) -> 2000 | W138: LIN FT | X138: =X135*LifeCycleCost!$I$171 -> 2 | Z138: =IF( S138= "X",0,ROUND((V138*X138),0)) -> 4000
T139: REFLECTIVE TRANSVERSE CRACK R&S | U139: 0.4 | V139: =ROUND(LCLaneW*LCLanesN*ROUND(LCProjectLen/15,0)*U139,0) -> 1286 | W139: LIN FT | X139: =X135*LifeCycleCost!$I$170 -> 2 | Z139: =IF( S139= "X",0,ROUND((V139*X139),0)) -> 2572
B140: Reserved For User Supplied Item | F140: =IF(H140= "*",M140,ROUND( 0,0)) -> 0 | G140: UNITS | H140: =IF(AND(OverRide = "On",NOT(ISBLANK(M140)),ISNUMBER(M140),M140>= 0),"*","") ->  | I140: 0 | J140: =IF(G140= "","","/ " & G140) -> / UNITS | K140: =ROUND((F140*I140),0) -> 0 | T140: ="PD PVMT PATCH M&F HMA " & IF(LC_FacilityType="Interstate","SURF " & FIXED(LifeCycleCost!$G$165,2),FIXED(LifeCycleCost!$G$166,2)) & """ " -> PD PVMT PATCH M&F HMA SURF 1.50" | U140: 0.001 | V140: =ROUND(LCPavementSQYD*U140,0) -> 5 | W140: SQ YD | X140: =IF(LC_FacilityType="Interstate",X135*LifeCycleCost!$I$165,X135*LifeCycleCost!$I$166) -> 77.98 | Z140: =IF( S140= "X",0,ROUND((V140*X140),0)) -> 390
B141: Reserved For User Supplied Item | F141: =IF(H141= "*",M141,ROUND( 0,0)) -> 0 | G141: UNITS | H141: =IF(AND(OverRide = "On",NOT(ISBLANK(M141)),ISNUMBER(M141),M141>= 0),"*","") ->  | I141: 0 | J141: =IF(G141= "","","/ " & G141) -> / UNITS | K141: =ROUND((F141*I141),0) -> 0 | T141: PWFn = | U141: =PVFn(II,S135) -> 0.3553833978 | W141: PW = | X141: =U141 -> 0.3553833978 | Y141: X | Z141: =ROUND(SUM(Z136:Z140),0) -> 18962 | AA141: =ROUND(((Z141)*X141),0) -> 6739
B143: PAVEMENT REMOVAL | F143: =IF(H143= "*",M143,ROUND((LCProjectLen*LCLaneW*LCLanesN)/9,0)) -> 5333 | G143: SQ YD | H143: =IF(AND(OverRide = "On",NOT(ISBLANK(M143)),M143>= 0),"*","") ->  | I143: 0 | J143: / SQ YD | K143: =IF(AND(M143<>"",M143= 0),0,ROUND((F143*I143),0) ) -> 0 | R143: YEAR | S143: 40 | T143: =LC_FacilityType -> INTERSTATE | W143: FVFn = | X143: 1
B144: SHOULDER REMOVAL | F144: =IF(H144= "*",M144,ROUND(LCProjectLen*(LCShldIW+LCShldOW)*(LCEdgesN/2)/9,0)) -> 3556 | G144: SQ YD | H144: =IF(AND(OverRide = "On",NOT(ISBLANK(M144)),M144>= 0),"*","") ->  | I144: 0 | J144: / SQ YD | K144: =IF(AND(M144<>"",M144= 0),0,ROUND((F144*I144),0) ) -> 0 | T144: PAVEMENT PATCH CLASS B | U144: 0.005 | V144: =ROUND(LCPavementSQYD*U144,0) -> 27 | W144: SQ YD | X144: =X143*LifeCycleCost!$I$162 -> 150 | Z144: =IF( S144= "X",0,ROUND((V144*X144),0)) -> 4050
T145: LONGITUDINAL SHLD JT R&S | U145: 1 | V145: =ROUND(LCEdgesN*LCProjectLen*U145,0) -> 4000 | W145: LIN FT | X145: =X143*LifeCycleCost!$I$168 -> 2 | Z145: 8000
B146: Note: * Denotes User Supplied Quantity | I146: RIGID CONSTRUCTION INITIAL COST | K146: =ROUND(SUM(K130:K144),0) -> 597117 | T146: CENTERLINE JT R&S | U146: 1 | V146: =ROUND(LCCLN*LCProjectLen*U146,0) -> 2000 | W146: LIN FT | X146: =X143*LifeCycleCost!$I$169 -> 2 | Z146: 4000
I147: RIGID CONSTRUCTION ANNUAL COST PER MILE | K147: =ROUND(((K146*CRFn(II,LifeCycle)/(LCProjectLen/5280))),0) -> 128587 | T147: REFLECTIVE TRANSVERSE CRACK R&S | U147: 0.6 | V147: =ROUND(LCLaneW*LCLanesN*ROUND(LCProjectLen/15,0)*U147,0) -> 1930 | W147: LIN FT | X147: =X143*LifeCycleCost!$I$170 -> 2 | Z147: 3860
T148: RANDOM CRACK R&S | U148: 0.5 | V148: =ROUND(LCLanesN*(LCProjectLen/100)*LCCrackRater*U148,0) -> 2000 | W148: LIN FT | X148: =X143*LifeCycleCost!$I$171 -> 2 | Z148: 4000
T149: ="PD PVMT PATCH M&F HMA " & IF(LC_FacilityType="Interstate","SURF " & FIXED(LifeCycleCost!$G$165,2),FIXED(LifeCycleCost!$G$166,2)) & """ " -> PD PVMT PATCH M&F HMA SURF 1.50" | U149: 0.005 | V149: =ROUND(LCPavementSQYD*U149,0) -> 27 | W149: SQ YD | X149: =IF(LC_FacilityType="Interstate",X143*LifeCycleCost!$I$165,X143*LifeCycleCost!$I$166) -> 77.98 | Z149: 2105
B150: MAINTENANCE COSTS: | M150: Schedule | N150: Unit Cost | T150: PWFn = | U150: =PVFn(II,S143) -> 0.3065568408 | W150: PW = | X150: =U150 -> 0.3065568408 | Y150: X | Z150: =ROUND(SUM(Z144:Z149),0) -> 26015 | AA150: =ROUND(((Z150)*X150),0) -> 7975
B151: ITEM | D151: THICKNESS | F151: MATERIAL | G151: T | I151: UNIT COST | M151: Quantity | N151: Override | AA151: =SUM(AA108:AA150) -> 130146
B153: ROUTINE MAINTENANCE ACTIVITY | I153: 0 | J153: / LANE-MILE / YEAR | T153: ROUTINE MAINTENANCE ACTIVITY | V153: =LCLanesN*LCProjectLen/5280 -> 0.7575757576 | W153: Lane Miles | X153: =LCARMA -> 0 | Z153: =IF( S153= "X",0,(V153*X153)) -> 0 | AA153: =Z153/CRFn(II,LifeCycle) -> 0
Z154: MAINTENANCE LIFE-CYCLE COST | AA154: =SUM(AA151:AA153) -> 130146
B155: ="HMA POLICY OVERLAY" -> HMA POLICY OVERLAY | D155: ="( " & FIXED(G155,2)&""" )" -> ( 3.75" ) | G155: =PCC_PolicyOverlay -> 3.75 | S155: =LifeCycle -> 45 | T155: =" YEAR LIFE CYCLE" & REPT(" ",20) & "CRFn = " & FIXED(CRFn(II,LifeCycle),7) -> YEAR LIFE CYCLE CRFn = 0.0407852 | Z155: MAINTENANCE ANNUAL COST PER MILE | AA155: =ROUND(((AA154*CRFn(II,LifeCycle)/(LCProjectLen/5280))),0) -> 28026
B156: ="HMA POLICY OVERLAY PVMT" -> HMA POLICY OVERLAY PVMT | D156: ="( " & FIXED(G156,2)&""" )" -> ( 3.75" ) | E156: =(LCLanesNf * LCLaneWf + LCEdgesNf*Wedge_Std*(G156) / 24) / (LCLanesNf * LCLaneWf) -> 1.013020833 | G156: =PCC_PolicyOverlay -> 3.75 | I156: =IF(N156<>"", N156, IF(J156="/ TON", (E157*G157*I157 + E158*G158*I158)/(E156*G156), (I157+I158) ) ) -> 20.20976563 | J156: / SQ YD | M156: =IF(J156="/ SQ YD", LCPavementSQYDf, E156*LCPavementSQYDf*(G156/36)*BinderSW) -> 5333.3333
B157: =" HMA SURFACE MIX" -> HMA SURFACE MIX | D157: ="( " & FIXED(G157,2)&""" )" -> ( 1.50" ) | E157: =(LCLanesNf * LCLaneWf + LCEdgesNf*Wedge_Std*(G157) / 24) / (LCLanesNf * LCLaneWf) -> 1.005208333 | F157: Surface Mix | G157: =PCC_OverlaySurf -> 1.5 | I157: =IF(N157<>"",N157, IF(J157="/ TON", LC_Cost_HMASurf_Ton, E157*LC_Cost_HMASurf_Ton*BinderSW*G157/36) ) -> 8.0215625 | J157: =J156 -> / SQ YD | M157: =IF(J157="/ SQ YD", LCPavementSQYDf, E157*LCPavementSQYDf*(G157/36)*BinderSW) -> 5333.3333
B158: =" HMA BINDER MIX" -> HMA BINDER MIX | D158: ="( " & FIXED(G158,2)&""" )" -> ( 2.25" ) | E158: =(LCLanesNf * LCLaneWf + LCEdgesNf*Wedge_Std*(2*G157+G158) / 24) / (LCLanesNf * LCLaneWf) -> 1.018229167 | F158: =IF(LC_FacilityType = "Interstate",Variables!O12,Variables!O16) -> Top Binder Mix | G158: =PCC_OverlayBind -> 2.25 | I158: =IF(N158<>"", N158, IF(J157="/ TON", IF(LC_FacilityType= "INTERSTATE", LC_Cost_HMATopBind_Ton, LC_Cost_HMABindL_Ton), IF(LC_FacilityType= "INTERSTATE", LC_Cost_HMATopBind_Ton, LC_Cost_HMABindL_Ton)*E158*BinderSW*G158/36) ) -> 12.18820313 | J158: =J156 -> / SQ YD | M158: =IF(J158="/ SQ YD", LCPavementSQYDf, E158*LCPavementSQYDf*(G158/36)*BinderSW) -> 5333.3333
B159: ="HMA POLICY OVERLAY SHLD" -> HMA POLICY OVERLAY SHLD | D159: ="( " & FIXED(G159,2)&""" )" -> ( 3.75" ) | F159: Shoulder Mix | G159: =PCC_PolicyOverlay -> 3.75 | I159: =IF(N159<>"",N159, IF(J159="/ TON", LC_Cost_HMAShld_Ton, LC_Cost_HMAShld_Ton*BinderSW*G159/36) ) -> 15.12 | J159: =J156 -> / SQ YD | M159: =IF(J159="/ SQ YD", LCShoulderSQYDf, LCShoulderSQYDf*(G159/36)*BinderSW) -> 3555.55558
B161: CLASS A PAVEMENT PATCHING | I161: 195 | J161: / SQ YD
B162: CLASS B PAVEMENT PATCHING | I162: 150 | J162: / SQ YD
B163: CLASS C SHOULDER PATCHING | I163: 145 | J163: / SQ YD
B165: PARTIAL DEPTH PVMT PATCH (Mill & Fill HMA Surf) | F165: Surface Mix | G165: =PCC_OverlaySurf -> 1.5 | I165: =IF(N165<>"",N165, (LCFlexMillingS + LC_Cost_HMASurf_Ton*BinderSW*G165/36)+AddLabor ) -> 77.98 | J165: / SQ YD
B166: ="PARTIAL DEPTH PVMT PATCH (Mill & Fill HMA " & FIXED(G166,2) & """)" -> PARTIAL DEPTH PVMT PATCH (Mill & Fill HMA 1.50") | F166: Surface Mix | G166: =IF(LC_FacilityType= "INTERSTATE",PCC_OverlaySurf,PCC_PolicyOverlay) -> 1.5 | I166: =IF(N166<>"",N166, (LCFlexMillingS + LC_Cost_HMASurf_Ton*BinderSW*G166/36) +AddLabor) -> 77.98 | J166: / SQ YD
B168: LONGITUDINAL SHOULDER JOINT ROUT & SEAL | I168: 2 | J168: / LIN FT
B169: CENTERLINE JOINT ROUT & SEAL | I169: 2 | J169: / LIN FT
B170: REFLECTIVE TRANSVERSE CRACK ROUT & SEAL | I170: 2 | J170: / LIN FT
B171: RANDOM CRACK ROUT & SEAL | F171: ="(100% Rehab = "& FIXED(LCCrackRater,2) &"' / Station / Lane)" -> (100% Rehab = 100.00' / Station / Lane) | I171: 2 | J171: / LIN FT
I174: RIGID TOTAL LIFE-CYCLE COST | K174: =(LCRigidConstCost+LCRigidMLCCSum) -> 727263
I175: RIGID TOTAL ANNUAL COST PER MILE | K175: =ROUND(((K174*CRFn(II,LifeCycle)/(LCProjectLen/5280))),0) -> 156613
B179: RECONSTRUCTION - HMA OVER RUBBLIZED PAVEMENT
B181: PAVEMENT OVERLAY THICKNESS (FLEXIBLE) | F181: 11 | G181: IN | I181: 11 | J181: IN MAX | K181: =IF(LCPaveFlexTSupp<LCPaveFlexTSuppMax,"HMA_SD","HMA_LSCD") -> HMA_LSCD | L181: Maintenance Schedule
B182: SHOULDER OVERLAY THICKNESS | F182: =LCPaveFlexTSupp-HMAOverlayRemovalT -> 5 | G182: IN
M183: USER | N183: USER
B184: INITIAL COSTS | M184: SUPPLIED | N184: SUPPLIED
B185: ITEM | D185: THICKNESS | F185: 100% QUANTITY | G185: UNIT | I185: UNIT PRICE | K185: COST | M185: QUANTITY | N185: UNIT PRICE
B187: HMA OVERLAY REMOVAL | D187: 6 | F187: =IF(HMAOverlayRemovalT=0,0, IF(AND(H187= "*",M187>0),M187,ROUND((LCProjectLenf*LCLaneWf*LCLanesNf)/9,M201))) -> 5333 | G187: SQ YD | H187: =IF(AND(OverRide = "On",NOT(ISBLANK(M187)),M187>= 0),"*","") ->  | I187: 5 | J187: / SQ YD | K187: =IF(AND(M187<>"",M187= 0),0,ROUND((F187*I187),0) ) -> 26665
B188: RUBBLIZING PCC PAVEMENT | F188: =IF(AND(H188= "*",M188>0),M188,ROUND((LCProjectLenf*LCLaneWf*LCLanesNf)/9,M187)) -> 5333 | G188: SQ YD | H188: =IF(AND(OverRide = "On",NOT(ISBLANK(M188)),M188>= 0),"*","") ->  | I188: 2.5 | J188: / SQ YD | K188: =IF(AND(M188<>"",M188= 0),0,ROUND((F188*I188),0) ) -> 13333
B191: HMA OVERLAY (TOTAL) | D191: =FIXED(F181,2) -> 11.00 | F191: =IF(AND(H191= "*",M191>0),M191,ROUND((LCProjectLenf*LCLaneWf*LCLanesNf)/9,$M$44)) -> 5333.3333 | G191: SQ YD | H191: =IF(AND(OverRide = "On",OR(NOT(ISBLANK(M191)),NOT(ISBLANK(N191))),M191>= 0),"*","") ->  | I191: =IF(AND(H191= "*", N191<>"", N191>=0), N191, LC_Cost_HMASurf_Ton*BinderSW*D193/36 * E193 + LC_Cost_HMATopBind_Ton*BinderSW*(D194)/36 * E194 + LC_Cost_HMABind_Ton*BinderSW*D195/36 * E195 ) -> 54.78490451 | J191: / SQ YD | K191: =IF(L191= "~",ROUND((F191*I191),0),0 ) -> 292186 | L191: ~
B193: HMA SURFACE COURSE | D193: =FIXED(HMA_Surf,2) -> 2.00 | E193: =(LCLanesNf * LCLaneWf + LCEdgesNf*Wedge_Std*(D193) / 24) / (LCLanesNf * LCLaneWf) -> 1.006944444 | F193: =IF(AND(H193= "*",M193>0),M193,IF(G193="TONS", ROUND((LCProjectLenf*(LCLanesNf*LCLaneWf+LCEdgesNf*Wedge_Std*D193/24)*D193/12)/27*BinderSW,$M$44),ROUND((LCProjectLenf*LCLaneWf*LCLanesNf)/9,$M$44)) ) -> 5333.3333 | G193: SQ YD | H193: =IF(AND(OverRide = "On",OR(NOT(ISBLANK(M193)),NOT(ISBLANK(N193))),M193>= 0),"*","") ->  | I193: =IF(AND(H193= "*", N193<>"", N193>=0,G193="SQ YD"), N193, IF(G193="TONS", LC_Cost_HMASurf_Ton, LC_Cost_HMASurf_Ton *BinderSW*D193/36 * E193) ) -> 10.71388889 | J193: =IF(G193="TONS", "/ TON", "/ SQ YD") -> / SQ YD | K193: =IF(L193= "~",ROUND((F193*I193),0),0 ) -> 0 | L193: =IF(L191="~","","~") -> 
B194: HMA TOP BINDER COURSE | D194: =FIXED(HMA_TopBinder,2) -> 2.25 | E194: =(LCLanesNf * LCLaneWf + LCEdgesNf*Wedge_Std*(2*D193+D194) / 24) / (LCLanesNf * LCLaneWf) -> 1.021701389 | F194: =IF(AND(H194= "*",M194>0),M194, IF(G194="TONS", ROUND((LCProjectLenf*(LCLanesNf*LCLaneWf+LCEdgesNf*Wedge_Std*(2*D193+D194)/24)*D194/12)/27*BinderSW,$M$44),ROUND((LCProjectLenf*LCLaneWf*LCLanesNf)/9,$M$44)) ) -> 5333.3333 | G194: =G193 -> SQ YD | H194: =IF(AND(OverRide = "On",OR(NOT(ISBLANK(M194)),NOT(ISBLANK(N194))),M194>= 0),"*","") ->  | I194: =IF(AND(H194= "*", N194<>"", N194>=0,G193="SQ YD"), N194, IF(G194="TONS", LC_Cost_HMATopBind_Ton, LC_Cost_HMATopBind_Ton*BinderSW*D194/36 * E194) ) -> 12.22976563 | J194: =IF(G194="TONS", "/ TON", "/ SQ YD") -> / SQ YD | K194: =IF(L194= "~",ROUND((F194*I194),0),0 ) -> 0 | L194: =IF(L191="~","","~") -> 
B195: HMA LOWER BINDER COURSE | D195: =FIXED(F181-D193-D194,2) -> 6.75 | E195: =(LCLanesNf * LCLaneWf + LCEdgesNf*Wedge_Std*(2*D193+2*D194+D195) / 24) / (LCLanesNf * LCLaneWf) -> 1.052951389 | F195: =IF(AND(H195= "*",M195>0),M195, IF(G195="TONS", ROUND((LCProjectLenf*(LCLanesNf*LCLaneWf+LCEdgesNf*Wedge_Std*((2*(D193+D194)+D195))/24)*D195/12)/27*BinderSW,$M$44),ROUND((LCProjectLenf*(LCLaneWf)*LCLanesNf)/9,$M$44)) ) -> 5333.3333 | G195: =G193 -> SQ YD | H195: =IF(AND(OverRide = "On",OR(NOT(ISBLANK(M195)),NOT(ISBLANK(N195))),M195>= 0),"*","") ->  | I195: =IF(AND(H195= "*", N195<>"", N193>=0,G193="SQ YD"), N195, IF(G195="TONS", LC_Cost_HMABind_Ton, LC_Cost_HMABind_Ton*BinderSW*(D195)/36 * E195) ) -> 31.84125 | J195: / SQ YD | K195: =IF(L195= "~",ROUND((F195*I195),0),0 ) -> 0 | L195: =IF(L191="~","","~") -> 
B197: ="HMA SHOULDER " -> HMA SHOULDER | D197: =FIXED(LCShldFlexTSupp,2) -> 5.00 | F197: =IF(AND(H197= "*",M197>0),M197, IF(G197="TONS", ROUND(LCProjectLenf*(LCShldIWf+LCShldOWf+0*D197/12)*LCEdgesNf/2*D197/12/27*BinderSW,$M$44),ROUND(LCProjectLenf*(LCShldIWf+LCShldOWf)*(LCEdgesNf/2)/9,$M$44)) ) -> 995.5556 | G197: TONS | H197: =IF(AND(OverRide = "On",OR(NOT(ISBLANK(M197)),NOT(ISBLANK(N197))),M197>= 0),"*","") ->  | I197: =IF(AND(H197= "*", N197<>"", N197>=0,G193="SQ YD"), N197, IF(G197="TONS", LC_Cost_HMAShld_Ton, LC_Cost_HMAShld_Ton*BinderSW*LCShldTf/36) ) -> 72 | J197: / TON | K197: =IF(L197= "~",ROUND((F197*I197),0),0 ) -> 71680 | L197: =IF(L52="~","~","") -> ~
B199: Reserved For User Supplied Item | F199: =IF(AND(H199= "*",M199>=0),M199,ROUND(0,0)) -> 0 | G199: UNITS | H199: =IF(AND(OverRide = "On",NOT(ISBLANK(M199)),M199>= 0),"*","") ->  | I199: 0 | J199: =IF(G199= "","","/ " & G199) -> / UNITS | K199: =IF(AND(M199<>"",M199= 0),0,ROUND((F199*I199),0) ) -> 0
B200: Reserved For User Supplied Item | F200: =IF(AND(H200= "*",M200>=0),M200,ROUND(0,0)) -> 0 | G200: UNITS | I200: 0 | J200: =IF(G200= "","","/ " & G200) -> / UNITS | K200: 0
B202: EARTHWORK | F202: =IF(AND(H202= "*",M202>0),M202,0) -> 0 | G202: CU YD | H202: =IF(AND(OverRide = "On",NOT(ISBLANK(M202)),M202>= 0),"*","") ->  | I202: 0 | J202: / CU YD | K202: =IF(AND(M202<>"",M202= 0),0,ROUND((F202*I202),0) ) -> 0
B204: Note: * Denotes User Supplied Quantity | I204: RUBBLIZED CONSTRUCTION INITIAL COST | K204: =ROUND(SUM(K187:K202),0) -> 403864
I205: RUBBLIZED CONSTRUCTION ANNUAL COST PER MILE | K205: =ROUND(((K204*CRFn(II,LifeCycle)/(LCProjectLen/5280))),0) -> 86970
B207: MAINTENANCE COSTS:
B208: ="If the maintenance schedule used here (" & LC_FlexBaseSupp & ") is different than the maintenance schedule used above (" & LC_FlexBase & "), " -> If the maintenance schedule used here (HMA_LSCD) is different than the maintenance schedule used above (HMA_SD), | M208: Schedule | N208: Unit Cost
B209: additional information may be needed. Please supply the additional maintenance costs below if different than the default costs supplied. | M209: Quantity | N209: Override
B210: ="HMA OVERLAY PVMT" -> HMA OVERLAY PVMT | D210: ="( " & FIXED(G210,2)&""" )" -> ( 2.00" ) | E210: =(LCLanesNf * LCLaneWf + LCEdgesNf*Wedge_Std*(G210) / 24) / (LCLanesNf * LCLaneWf) -> 1.006944444 | G210: =HMA_PolicyOverlayz -> 2 | I210: =IF(N210<>"", N210, IF(J210="/ TON", (E211*G211*I211 + E212*G212*I212)/(E210*G210), (I211+I212) ) ) -> 95 | J210: / TON | M210: =IF(J210="/ SQ YD", LCPavementSQYDf, E210*LCPavementSQYDf*(G210/36)*BinderSW) -> 601.4814777
B211: ="HMA SURFACE MIX" -> HMA SURFACE MIX | D211: ( 2.00" ) | E211: =(LCLanesNf * LCLaneWf + LCEdgesNf*Wedge_Std*(G211) / 24) / (LCLanesNf * LCLaneWf) -> 1.006944444 | F211: Surface Mix | G211: =HMA_OverlaySurfz -> 2 | I211: =IF(N211<>"",N211, IF(J211="/ TON", LC_Cost_HMASurf_Ton, E211 * LC_Cost_HMASurf_Ton*BinderSW*G211/36) ) -> 95 | J211: =J210 -> / TON | M211: =IF(J211="/ SQ YD", LCPavementSQYDf, E211*LCPavementSQYDf*(G211/36)*BinderSW) -> 601.4814777
B212: ="HMA BINDER MIX" -> HMA BINDER MIX | D212: ( 0.00" ) | E212: =(LCLanesNf * LCLaneWf + LCEdgesNf*Wedge_Std*(2*G211+G212) / 24) / (LCLanesNf * LCLaneWf) -> 1.013888889 | F212: =Variables!$O$20 -> Top Binder Mix | G212: =HMA_OverlayBindz -> 0 | I212: =IF(N212<>"", N212, IF(J211="/ TON", IF(LC_FacilityType= "INTERSTATE", LC_Cost_HMATopBind_Ton, LC_Cost_HMABindL_Ton), IF(LC_FacilityType= "INTERSTATE", LC_Cost_HMATopBind_Ton, LC_Cost_HMABindL_Ton)*E212*BinderSW*G212/36) ) -> 95 | J212: =J210 -> / TON | M212: =IF(J212="/ SQ YD", LCPavementSQYDf, E212*LCPavementSQYDf*(G212/36)*BinderSW) -> 0
B213: ="HMA OVERLAY SHLD" -> HMA OVERLAY SHLD | C213: (Year 30) | D213: ="( " & FIXED(G213,2)&""" )" -> ( 2.00" ) | F213: Shoulder Mix | G213: =IF(Variables!$Y$18= "HMA_SD",IF(LC_FacilityType= "INTERSTATE",$G$210-$G$79,$G$210),$G$210) -> 2 | I213: =IF(N213<>"",N213, IF(J213="/ TON", LC_Cost_HMAShld_Ton, LC_Cost_HMAShld_Ton*BinderSW*G213/36) ) -> 72 | J213: =J210 -> / TON | M213: =IF(J213="/ SQ YD", LCShoulderSQYDf, LCShoulderSQYDf*(G213/36)*BinderSW) -> 398.222225
I216: RUBBLIZED MAINTENANCE LIFE-CYCLE COST | K216: =IF($K$181="HMA_SD", Rehab_HMA01Sum,Rehab_HMA02Sum) -> 184065
I217: RUBBLIZED MAINTENANCE ANNUAL COST PER MILE | K217: =IF($K$181="HMA_SD", REHAB_HMA01!$K$72,REHAB_HMA02!$K$72) -> 39638
I220: RUBBLIZED TOTAL LIFE-CYCLE COST | K220: =K204+K216 -> 587929
I221: RUBBLIZED TOTAL ANNUAL COST PER MILE | K221: =IF(IsHidden(CELL("address",LC_FlexBaseSupp)),99999998,(K205+K217)) -> 126608
B225: RECONSTRUCTION - PCC UNBONDED OVERLAY
B227: PAVEMENT THICKNESS (PCC) | F227: 11 | G227: IN | J227: ="Pavement Type is " -> Pavement Type is | K227: =IF($M$227<>"", $M$227, IF(LCTFRigid<= 60,"JPCP","CRCP")) -> JPCP | Q227: =LC_RigidBaseSupp & " Maintenance Schedule" -> JPCP Maintenance Schedule
B228: SHOULDER THICKNESS | F228: =LCPaveRigidTSupp -> 11 | G228: IN
M230: USER
B231: INITIAL COSTS | M231: SUPPLIED
B232: ITEM | D232: THICKNESS | F232: 100% QUANTITY | G232: UNIT | I232: UNIT PRICE | K232: COST | M232: QUANTITY
B234: MILLING of EXISTING HMA OVERLAY | D234: (Pvmt & Shld) | F234: =IF(H234= "*",M234,ROUND((LCProjectLen*LCLaneW*LCLanesN)/9+LCProjectLen*(LCShldIW+LCShldOW)*(LCEdgesN/2)/9,0)) -> 8889 | G234: SQ YD | H234: =IF(AND(OverRide = "On",NOT(ISBLANK(M234)),M234>= 0),"*","") ->  | I234: 4 | J234: / SQ YD | K234: =IF(AND(M234<>"",M234= 0),0,ROUND((F234*I234),0) ) -> 35556
B235: HMA BINDER COURSE | D235: (Pvmt & Shld) | F235: =IF(H235= "*",M235,ROUND((LCProjectLen*LCLaneW*LCLanesN)/9+LCProjectLen*(LCShldIW+LCShldOW)*(LCEdgesN/2)/9,0)) -> 8889 | G235: SQ YD | H235: =IF(AND(OverRide = "On",NOT(ISBLANK(M235)),M235>= 0),"*","") ->  | I235: 0 | J235: / SQ YD | K235: =IF(AND(M235<>"",M235= 0),0,ROUND((F235*I235),0) ) -> 0
B237: =LEFT(K227,3)& " PAVEMENT" -> JPC PAVEMENT | D237: =IF(LCPaveRigidTSupp="NA","",FIXED(LCPaveRigidTSupp,2)) -> 11.00 | F237: =IF(H237= "*",M237,ROUND((LCProjectLen*LCLaneW*LCLanesN)/9,0)) -> 5333 | G237: SQ YD | H237: =IF(AND(OverRide = "On",NOT(ISBLANK(M237)),ISNUMBER(M237),M237>= 0),"*","") ->  | I237: 50 | J237: / SQ YD | K237: =ROUND((F237*I237),0) -> 266650
B238: PAVEMENT REINFORCEMENT | F238: =IF(H238= "*",M238,IF(LC_RigidBaseSupp = "CRCP",LCPavementSQYD,0)) -> 0 | G238: SQ YD | H238: =IF(AND(OverRide = "On",NOT(ISBLANK(M238)),ISNUMBER(M238),M238>= 0),"*","") ->  | I238: =I131 -> 22 | J238: =IF(G238= "","","/ " & G238) -> / SQ YD | K238: =ROUND((F238*I238),0) -> 0
B240: PCC SHOULDERS | C240: =IF(LCShldRigidTSupp="NA","", FIXED(LCShldRigidTSupp,2)) -> 11.00 | D240: =IF(LCShldT=PCC_ShldTaperT,C240,LCShldOutEdge_T) -> 11.00 | F240: =IF(H240= "*",M240,ROUND(LCProjectLen*(LCShldIW+LCShldOW)*(LCEdgesN/2)/9,0)) -> 3556 | G240: SQ YD | H240: =IF(AND(OverRide = "On",NOT(ISBLANK(M240)),ISNUMBER(M240),M240>= 0),"*","") ->  | I240: =I134 -> 40 | J240: / SQ YD | K240: =ROUND((F240*I240),0) -> 142240
B242: Reserved For User Supplied Item | F242: =IF(H242= "*",M242,ROUND( 0,0)) -> 0 | G242: UNITS | H242: =IF(AND(OverRide = "On",NOT(ISBLANK(M242)),ISNUMBER(M242),M242>= 0),"*","") ->  | I242: 0 | J242: =IF(G242= "","","/ " & G242) -> / UNITS | K242: =ROUND((F242*I242),0) -> 0
B243: Reserved For User Supplied Item | F243: =IF(H243= "*",M243,ROUND( 0,0)) -> 0 | G243: UNITS | H243: =IF(AND(OverRide = "On",NOT(ISBLANK(M243)),ISNUMBER(M243),M243>= 0),"*","") ->  | I243: 0 | J243: =IF(G243= "","","/ " & G243) -> / UNITS | K243: =ROUND((F243*I243),0) -> 0
B245: EARTHWORK | F245: =IF(AND(H245= "*",M245>0),M245,0) -> 0 | G245: CU YD | H245: =IF(AND(OverRide = "On",NOT(ISBLANK(M245)),M245>= 0),"*","") ->  | I245: 0 | J245: / CU YD | K245: =IF(AND(M245<>"",M245= 0),0,ROUND((F245*I245),0) ) -> 0
B248: Note: * Denotes User Supplied Quantity | I248: UNBONDED CONSTRUCTION INITIAL COST | K248: =ROUND(SUM(K234:K245),0) -> 444446
I249: UNBONDED CONSTRUCTION ANNUAL COST PER MILE | K249: =ROUND(((K248*CRFn(II,LifeCycle)/(LCProjectLen/5280))),0) -> 95710
I251: UNBONDED MAINTENANCE LIFE-CYCLE COST | K251: =IF($K$227="CRCP", Rehab_CRCPSum,Rehab_JPCPSum) -> 130146
I252: UNBONDED MAINTENANCE ANNUAL COST PER MILE | K252: =IF(LC_RigidBaseSupp="CRCP", REHAB_CRCP!$K$55, REHAB_JPCP!$K$58 ) -> 28026
... 24 more rows

Sheet Variables
B1: =Version -> BDE 5401 Template (Rev. 09/05/2013)
B2: Printed: | C2: =NOW() -> 2017-05-04T11:05:27.110 | E2: Lifecycle = | F2: 45 | G2: Years | I2: Interest Rate = | J2: 0.03 | P2: Standard Surface Thickness = | Q2: 2 | R2: IN
O4: HMA Surface (New Pavement) | Q4: 2 | R4: IN | V4: Thermal / Random Crack Route & Seal | W4: =110 -> 110 | X4: FT / Sta / Lane
O5: HMA Top Binder Course | Q5: 2.25 | R5: IN | V5: Random Crack Route & Seal | W5: =100 -> 100 | X5: FT / Sta / Lane
O6: HMA Lower Binder Course | Q6: =LCPaveFlexT-HMA_Surf-HMA_TopBinder -> 7.75 | R6: IN | T6: Patching: | V6: Additional Labor Cost = | W6: 67 | X6: / SQ YD
E7: Standard Pavement Slope = | F7: =-3/16 /12 -> -0.015625 | G7: FT/FT
E8: Standard Shoulder Slope = | F8: =-1/2 /12 -> -0.04166666667 | G8: FT/FT | O8: HMA Policy Overlay for LSCD | Q8: 2 | R8: IN
E9: Tied PCC Shoulder Outside Edge Thickness = | F9: =LCShldT -> 10 | G9: IN | I9: Outside Edge ShldT = | J9: =IF(LC_SHLDTYPE="TIED SHLD",PCC_ShldTaperT,LCShldT) -> 10 | K9: IN
E10: Standard Stabilized Subbase Thickness = | F10: 4 | G10: IN | H10: <=== (See Dark Orange Color in Diagrams Below) | O10: Interstate HMA Policy Overlay | Q10: 3.75 | R10: IN
E11: Standard Pavement Subbase Outhang = | F11: 1.5 | G11: FT | H11: <=== (See Dark Orange Color in Diagrams Below) | O11: Surface | Q11: 1.5 | R11: IN
E12: Standard Shoulder Subbase Outhang = | F12: 6 | G12: IN | H12: <=== (See Yellow Color in Diagrams Below) | O12: Top Binder Mix | Q12: =Q10-Q11 -> 2.25 | R12: IN
Q13: Over HMA | S13: Over PCC
E14: Standard Foreslope = | F14: 4 | G14: :1 FT/FT | O14: Non-Interstate HMA Policy Overlay | Q14: 2.25 | R14: IN | S14: 2.5 | T14: IN
E15: Standard Wedge = | F15: 1 | G15: :1 FT/FT | O15: Surface | Q15: 1.5 | R15: IN | S15: 1.5 | T15: IN
E16: (PCC Pavement) Shoulder Wedge = | F16: =IF(LC_SHLDTYPE="TIED SHLD", (1/10^4), Wedge_Std) -> 0.0001 | G16: :1 FT/FT | M16: WorkSheet Setting | O16: Leveling Binder Mix | Q16: =Q14-Q15 -> 0.75 | R16: IN | S16: =S14-S15 -> 1 | T16: IN | Y16: Mirror
M17: =IF(LC_FlexBase="HMA_SD","Standard Design","LSC Design") -> Standard Design | Y17: =IF($Y$18="HMA_SD","Standard Design","LSC Design") -> LSC Design
E18: Standard Surface & Binder SW = | F18: 2.016 | G18: TONS / CU YD ==> | I18: =BinderSW*2000/36 -> 112 | J18: LB per SQYD IN | M18: =IF(LC_FlexBase="HMA_SD","HMA_SD","HMA_LSCD") -> HMA_SD | O18: HMA Policy Overlay | Q18: =IF(LC_FlexBase="HMA_SD",IF(LC_FacilityType="INTERSTATE",HMA_PolicyOverlay_Int,HMA_PolicyOverlay_Non),HMA_PolicyOverlay_LSCD) -> 3.75 | R18: IN | S18: =IF(LC_FacilityType="INTERSTATE",HMA_PolicyOverlay_Int,$S$14) -> 3.75 | T18: IN | U18: =IF($Y$18="HMA_SD",IF(LC_FacilityType="INTERSTATE",HMA_PolicyOverlay_Int,HMA_PolicyOverlay_Non),HMA_PolicyOverlay_LSCD) -> 2 | V18: IN | W18: HMA Policy Overlay | Y18: =IF(LC_FlexBase="HMA_SD","HMA_LSCD","HMA_SD") -> HMA_LSCD
E19: Standard Shoulder Subbase SW = | F19: 2.05 | G19: TONS / CU YD ==> | I19: =ShldSubSW*2000/36 -> 113.8888889 | J19: LB per SQYD IN | M19: =LC_FacilityType -> INTERSTATE | O19: Surface | Q19: =IF(LC_FlexBase="HMA_SD",IF(LC_FacilityType="INTERSTATE",$Q$11,$Q$15),HMA_PolicyOverlay_LSCD) -> 1.5 | R19: IN | S19: =$S$15 -> 1.5 | T19: IN | U19: =IF($Y$18="HMA_SD",IF(LC_FacilityType="INTERSTATE",$Q$11,$Q$15),HMA_PolicyOverlay_LSCD) -> 2 | V19: IN | W19: Surface | Y19: =LC_FacilityType -> INTERSTATE
O20: =IF(AND(LC_FacilityType="INTERSTATE",LC_FlexBase="HMA_SD"),$O$12,$O$16) -> Top Binder Mix | Q20: =HMA_PolicyOverlay-HMA_OverlaySurf -> 2.25 | R20: IN | S20: =S18-S19 -> 2.25 | T20: IN | U20: =U18-U19 -> 0 | V20: IN | W20: =IF(AND(Y19="INTERSTATE",$Y$18="HMA_SD"),$O$12,$O$16) -> Leveling Binder Mix
M23: =REPT(" No User Data Below This Line ", 7) -> No User Data Below This Line No User Data Below This Line No User Data Below This Line No User Data Below This Line No User Data Below This Line No User Data Below This Line No User Data Below This Line | AA23: DO NOT DELETE THIS BLOCK! | AE23: Use Projected Unit Costs = | AF23: No | AI23: PCU Interest Rate = | AJ23: =IF(LCUPC= "Yes",0,0) -> 0 | AK23: =FVFn(Iprj,LifeCycle) -> 1 | AM23: Format = | AN23: ;;;
AA25: HMA SHLDER WIDTH | AB25: AGG | AC25: Inside | AE25: 2 | AF25: FT | AH25: PCC SHLDER WIDTH | AJ25: AGG | AK25: Inside | AM25: =LCShldIWf_Agg -> 2 | AN25: FT
N26: SUM | P26: PROJECT | AB26: AGG | AC26: Outside | AE26: 2 | AF26: FT | AJ26: AGG | AK26: Outside | AM26: =LCShldOWf_Agg -> 2 | AN26: FT
B27: Rigid Pavement Shoulder Area | I27: Shoulder Area = | J27: =K42 -> 5.000034722 | K27: SQ FT | N27: =(J27+V27) -> 13.33340278 | O27: =((G37-E37)+(S37-Q37))*(LCEdgesNf/2)*LCProjectLen/9 -> 3555.555556 | P27: SQ Yds | U27: Shoulder Area = | V27: =W42 -> 8.333368056 | W27: SQ FT
I28: Agg Shoulder Area = | J28: =K63 -> 3.333298611 | K28: SQ FT | N28: =(J28+V28) -> 6.666597222 | O28: =(N28)*LCProjectLen*(LCEdgesNf/2)/27*ShldSubSW -> 1012.335134 | P28: Tons | U28: Agg Shoulder Area = | V28: =W63 -> 3.333298611 | W28: SQ FT | AA28: ="SHOULDER - AGG" -> SHOULDER - AGG | AC28: =IF(AB28>0,AB28,LCShldTf) -> 8 | AD28: =( IF(LCShldIWf_Agg>0, 1/ (ShldSlope + 1/ForeSlopeRatio) - 1/ (ShldSlope + 1/Wedge_Std),0) + IF(LCShldOWf_Agg>0,1/ (ShldSlope + 1/ForeSlopeRatio) - 1/ (ShldSlope + 1/Wedge_Std),0) ) *AC28/12/2 -> 2.504347826 | AE28: =IF(AND(AG28= "*",AL28>=0),AL28,ROUND(( LCProjectLenf * (LCShldIWf_Agg+LCShldOWf_Agg+AD28) * AC28/12 * LCEdgesNf/2)/27*ShldSubSW,0)) -> 658 | AF28: TONS | AG28: =IF(AND(OverRide = "On",NOT(ISBLANK(AL28)),AL28>= 0),"*","") ->  | AH28: 25 | AI28: / TON | AJ28: =IF(AND(AL28<>"",AL28= 0),0,ROUND((AE28*AH28),0) ) -> 16450 | AN28: HMA
I29: Shoulder Sub Base Area = | J29: =IF(K49-K56>0,K49-K56,0) -> 1.15947522 | K29: SQ FT | N29: =(J29+V29) -> 2.755009009 | O29: =(N29)*LCProjectLen*(LCEdgesNf/2)/27*ShldSubSW -> 418.3532198 | P29: Tons | U29: Shoulder Sub Base Area = | V29: =IF(W49-W56>0,W49-W56,0) -> 1.595533789 | W29: SQ FT | AA29: ="SHOULDER - AGG" -> SHOULDER - AGG | AC29: =IF(AB29>0,AB29,LCShldOutEdge_T) -> 10 | AD29: =( IF($F$113>0, 1/ (ShldSlope + 1/ForeSlopeRatio) - 1/ (ShldSlope + 1/Wedge_Spc),0) + IF(LCShldOWr_Agg>0,1/ (ShldSlope + 1/ForeSlopeRatio) - 1/ (ShldSlope + 1/Wedge_Spc),0) ) *AC29/12 /2 -> 3.999916666 | AE29: =IF(AND(AG29= "*",AL29>=0),AL29,ROUND((LCProjectLenf*(LCShldIWr_Agg+LCShldOWr_Agg+AD29)*AC29/12*(LCEdgesN/2) )/27*ShldSubSW,0)) -> 1012 | AF29: TONS | AG29: =IF(AND(OverRide = "On",NOT(ISBLANK(AL29)),AL29>= 0),"*","") ->  | AH29: 25 | AI29: / TON | AJ29: =IF(AND(AL29<>"",AL29= 0),0,ROUND((AE29*AH29),0) ) -> 25300 | AN29: PCC
C30: =LC_SHLDTYPE -> TIED SHLD | I30: Pavement Sub Base Area= | J30: =IF(K56>0,K56,0) -> 0.4707464233 | K30: SQ FT | N30: =(J30+V30) -> 0.9414928467 | O30: =(N30)*LCProjectLen*(LCEdgesNf/2)/27*ShldSubSW -> 142.9674323 | P30: Tons | U30: Pavement Sub Base Area= | V30: =IF(W56>0,W56,0) -> 0.4707464233 | W30: SQ FT | AA30: ="SHOULDER - AGG" -> SHOULDER - AGG | AC30: =IF(AB30>0,AB30,LCShldFlexTSupp) -> 5 | AD30: =( IF(LCShldIWf_Agg>0, 1/ (ShldSlope + 1/ForeSlopeRatio) - 1/ (ShldSlope + 1/Wedge_Std),0) + IF(LCShldOWf_Agg>0,1/ (ShldSlope + 1/ForeSlopeRatio) - 1/ (ShldSlope + 1/Wedge_Std),0) ) *AC30/12 /2 -> 1.565217391 | AE30: =IF(AND(AG30= "*",AL30>=0),AL30,ROUND((LCProjectLenf*(LCShldIWf_Agg+LCShldOWf_Agg+AD30)*AC30/12*LCEdgesNf/2)/27*ShldSubSW,0)) -> 352 | AF30: TONS | AG30: =IF(AND(OverRide = "On",NOT(ISBLANK(AL30)),AL30>= 0),"*","") ->  | AH30: =AH28 -> 25 | AI30: / TON | AJ30: =IF(AND(AL30<>"",AL30= 0),0,ROUND((AE30*AH30),0) ) -> 8800 | AN30: HMA_Supp
AA31: ="SHOULDER - AGG" -> SHOULDER - AGG | AC31: =IF(AB31>0,AB31,LCShldRigidTSupp) -> 11 | AD31: =( IF($F$113>0, 1/ (ShldSlope + 1/ForeSlopeRatio) - 1/ (ShldSlope + 1/Wedge_Spc),0) + IF(LCShldOWr_Agg>0,1/ (ShldSlope + 1/ForeSlopeRatio) - 1/ (ShldSlope + 1/Wedge_Spc),0) ) *AC31/12 /2 -> 4.399908333 | AE31: =IF(AND(AG31= "*",AL31>=0),AL31,ROUND((LCProjectLenf*(LCShldIWr_Agg+LCShldOWr_Agg+AD31)*AC31/12*(LCEdgesN/2) )/27*ShldSubSW,0)) -> 1169 | AF31: TONS | AG31: =IF(AND(OverRide = "On",NOT(ISBLANK(AL31)),AL31>= 0),"*","") ->  | AH31: =AH29 -> 25 | AI31: / TON | AJ31: =IF(AND(AL31<>"",AL31= 0),0,ROUND((AE31*AH31),0) ) -> 29225 | AN31: PCC_Supp
L33: =G45-E37 -> 6.666747796 | X33: =S45-Q37 -> 10.56092769
C34: Inside Shoulder | L34: =L33-LCShldIW-0.5 -> 0.1667477958 | O34: Outside Shoulder | X34: =X33-LCShldOW-0.5 -> 0.06092768993 | AA34: Test Values
E35: X1 | F35: Y1 | G35: X2 | H35: Y2 | I35: m | J35: b | K35: Area | Q35: X1 | R35: Y1 | S35: X2 | T35: Y2 | U35: m | V35: b | W35: Area
AA36: =(2*(LCPaveRigidT+SubBaseT)/12 - (PaveSlope-ShldSlope)*(LCShldIW + LCShldOW + 1))*(1/(1+PaveSlope)) -> 1.920634921
B37: Shoulder Area: | C37: Top Line 1 | E37: 10 | F37: 10 | G37: =E37+LCShldIW -> 16 | H37: =I37*G37+J37 -> 9.75 | I37: =ShldSlope -> -0.04166666667 | J37: =F37-I37*E37 -> 10.41666667 | K37: =(H37+F37)*(G37-E37)/2 -> 59.25 | N37: Shoulder Area: | O37: Top Line 1 | Q37: 10 | R37: 10 | S37: =Q37+LCShldOW -> 20 | T37: =U37*S37+V37 -> 9.583333333 | U37: =ShldSlope -> -0.04166666667 | V37: =R37-U37*Q37 -> 10.41666667 | W37: =(T37+R37)*(S37-Q37)/2 -> 97.91666667
C38: Top Line 2 | E38: =G37 -> 16 | F38: =H37 -> 9.75 | G38: =-1*(J41-J38)/(I41-I38) -> 16.00008333 | H38: =I38*G38+J38 -> 8.916663194 | I38: =-1/Wedge_Spc -> -10000 | J38: =F38-I38*E38 -> 160009.75 | K38: =(H38+F38)*(G38-E38)/2 -> 0.0007777808738 | O38: Top Line 2 | Q38: =S37 -> 20 | R38: =T37 -> 9.583333333 | S38: =-1*(V41-V38)/(U41-U38) -> 20.00008333 | T38: =U38*S38+V38 -> 8.749996528 | U38: =-1/Wedge_Spc -> -10000 | V38: =R38-U38*Q38 -> 200009.5833 | W38: =(T38+R38)*(S38-Q38)/2 -> 0.0007638919271 | AA38: =((2*(LCPaveRigidT+SubBaseT)/12 - (PaveSlope-ShldSlope)*(LCShldIW + LCShldOW + 1))*(1-PaveSlope+PaveSlope^2-PaveSlope^3) ) -> 1.920634806
AA39: =((2*(LCPaveRigidT+SubBaseT)/12 - (PaveSlope-ShldSlope)*(LCShldIW + LCShldOW + 1))*(1-PaveSlope+PaveSlope^2) ) -> 1.920627594
C40: Bottom Line 1 | E40: =E37 -> 10 | F40: =F37-(LCShldT)/12 -> 9.166666667 | G40: =G37 -> 16 | H40: =I40*G40+J40 -> 8.916666667 | I40: =(H37-IF(LC_SHLDTYPE="TIED SHLD",PCC_ShldTaperT,LCShldT)/12-F40) / (IF(LCShldIW>0,LCShldIW,0.0001)) -> -0.04166666667 | J40: =F40-I40*E40 -> 9.583333333 | K40: =(H40+F40)*(G40-E40)/2 -> 54.25 | O40: Bottom Line 1 | Q40: =Q37 -> 10 | R40: =R37-(LCShldT)/12 -> 9.166666667 | S40: =S37 -> 20 | T40: =U40*S40+V40 -> 8.75 | U40: =(T37-IF(LC_SHLDTYPE="TIED SHLD",PCC_ShldTaperT,LCShldT)/12-R40) / (IF(LCShldOW>0,LCShldOW,0.0001)) -> -0.04166666667 | V40: =R40-U40*Q40 -> 9.583333333 | W40: =(T40+R40)*(S40-Q40)/2 -> 89.58333333 | AA40: =((2*(LCPaveRigidT+SubBaseT)/12 - (PaveSlope-ShldSlope)*(LCShldIW + LCShldOW + 1))*(1-PaveSlope) ) -> 1.920166016
C41: Bottom Line 2 | E41: =G40 -> 16 | F41: =H40 -> 8.916666667 | G41: =G38 -> 16.00008333 | H41: =I41*G41+J41 -> 8.916663194 | I41: =I40 -> -0.04166666667 | J41: =F41-I41*E41 -> 9.583333333 | K41: =(H41+F41)*(G41-E41)/2 -> 0.0007430585069 | O41: Bottom Line 2 | Q41: =S40 -> 20 | R41: =T40 -> 8.75 | S41: =S38 -> 20.00008333 | T41: =U41*S41+V41 -> 8.749996528 | U41: =U40 -> -0.04166666667 | V41: =R41-U41*Q41 -> 9.583333333 | W41: =(T41+R41)*(S41-Q41)/2 -> 0.0007291695602 | AA41: =L34+X34 -> 0.2276754857
K42: =(K37-K40)+(K38-K41) -> 5.000034722 | L42: SQ FT | W42: =(W37-W40)+(W38-W41) -> 8.333368056 | X42: SQ FT
AA43: =(2*LCPaveRigidT+SubBaseT)/12 -> 2
B44: Pavement & Shoulder | C44: Top Line 1 | E44: =E37 -> 10 | F44: =F37-LCShldT/12 -> 9.166666667 | G44: =G41+ShldSubOutHang/12 -> 16.50008333 | H44: =I44*G44+J44 -> 8.895829861 | I44: =I40 -> -0.04166666667 | J44: =F44-I44*E44 -> 9.583333333 | K44: =(H44+F44)*(G44-E44)/2 -> 58.70386632 | N44: Pavement & Shoulder | O44: Top Line 1 | Q44: =Q37 -> 10 | R44: =R37-LCShldT/12 -> 9.166666667 | S44: =S41+ShldSubOutHang/12 -> 20.50008333 | T44: =U44*S44+V44 -> 8.729163194 | U44: =U40 -> -0.04166666667 | V44: =R44-U44*Q44 -> 9.583333333 | W44: =(T44+R44)*(S44-Q44)/2 -> 93.95385243
B45: Subbase Area: | C45: Top Line 2 | E45: =G44 -> 16.50008333 | F45: =H44 -> 8.895829861 | G45: =-1*(J48-J45)/(I48-I45) -> 16.6667478 | H45: =I45*G45+J45 -> 8.729165399 | I45: =-1/Wedge_Std -> -1 | J45: =F45-I45*E45 -> 25.39591319 | K45: =(H45+F45)*(G45-E45)/2 -> 1.468730177 | N45: Subbase Area: | O45: Top Line 2 | Q45: =S44 -> 20.50008333 | R45: =T44 -> 8.729163194 | S45: =-1*(V48-V45)/(U48-U45) -> 20.56092769 | T45: =U45*S45+V45 -> 8.668318838 | U45: =-1/Wedge_Std -> -1 | V45: =R45-U45*Q45 -> 29.22924653 | W45: =(T45+R45)*(S45-Q45)/2 -> 0.5292692973
AA46: =1/(1 + PaveSlope) -> 1.015873016
C47: Bottom Line 1 | E47: =E44 -> 10 | F47: =F37-(LCPaveRigidT+SubBaseT)/12 -> 8.833333333 | G47: =G44 -> 16.50008333 | H47: =I47*G47+J47 -> 8.731769531 | I47: =PaveSlope -> -0.015625 | J47: =F47-I47*E47 -> 8.989583333 | K47: =(H47+F47)*(G47-E47)/2 -> 57.08731619 | O47: Bottom Line 1 | Q47: =Q44 -> 10 | R47: =R37-(LCPaveRigidT+SubBaseT)/12 -> 8.833333333 | S47: =S44 -> 20.50008333 | T47: =U47*S47+V47 -> 8.669269531 | U47: =PaveSlope -> -0.015625 | V47: =R47-U47*Q47 -> 8.989583333 | W47: =(T47+R47)*(S47-Q47)/2 -> 91.88939432
C48: Bottom Line 2 | E48: =G47 -> 16.50008333 | F48: =H47 -> 8.731769531 | G48: =G45 -> 16.6667478 | H48: =I48*G48+J48 -> 8.729165399 | I48: =PaveSlope -> -0.015625 | J48: =F48-I48*E48 -> 8.989583333 | K48: =(H48+F48)*(G48-E48)/2 -> 1.455058664 | O48: Bottom Line 2 | Q48: =S47 -> 20.50008333 | R48: =T47 -> 8.669269531 | S48: =S45 -> 20.56092769 | T48: =U48*S48+V48 -> 8.668318838 | U48: =PaveSlope -> -0.015625 | V48: =R48-U48*Q48 -> 8.989583333 | W48: =(T48+R48)*(S48-Q48)/2 -> 0.5274472016 | AA48: =(1 - PaveSlope + PaveSlope^2 - PaveSlope^3) -> 1.015872955
K49: =(K44-K47)+(K45-K48) -> 1.630221643 | L49: SQ FT | W49: =(W44-W47)+(W45-W48) -> 2.066280212 | X49: SQ FT | AA49: =(1 - PaveSlope + PaveSlope^2) -> 1.015869141
AA50: =(1 - PaveSlope) -> 1.015625
B51: Pavement Subbase Area: | C51: Top Line 1 | E51: =E37 -> 10 | F51: =F37-(LCPaveRigidT)/12 -> 9.166666667 | G51: =E51+SubBaseOutHang -> 11.5 | H51: =I51*G51+J51 -> 9.104166667 | I51: =I40 -> -0.04166666667 | J51: =F51-I51*E51 -> 9.583333333 | K51: =(H51+F51)*(G51-E51)/2 -> 13.703125 | N51: Pavement Subbase Area: | O51: Top Line 1 | Q51: =Q37 -> 10 | R51: =R37-(LCPaveRigidT)/12 -> 9.166666667 | S51: =Q51+SubBaseOutHang -> 11.5 | T51: =U51*S51+V51 -> 9.104166667 | U51: =U40 -> -0.04166666667 | V51: =R51-U51*Q51 -> 9.583333333 | W51: =(T51+R51)*(S51-Q51)/2 -> 13.703125
C52: Top Line 2 | E52: =G51 -> 11.5 | F52: =H51 -> 9.104166667 | G52: =-1*(J55-J52)/(I55-I52) -> 11.50029428 | H52: =I52*G52+J52 -> 8.809891235 | I52: -1000 | J52: =F52-I52*E52 -> 11509.10417 | K52: =(H52+F52)*(G52-E52)/2 -> 0.002635833558 | O52: Top Line 2 | Q52: =S51 -> 11.5 | R52: =T51 -> 9.104166667 | S52: =-1*(V55-V52)/(U55-U52) -> 11.50029428 | T52: =U52*S52+V52 -> 8.809891235 | U52: -1000 | V52: =R52-U52*Q52 -> 11509.10417 | W52: =(T52+R52)*(S52-Q52)/2 -> 0.002635833558
C54: Bottom Line 1 | E54: =E51 -> 10 | F54: =F51-SubBaseT/12 -> 8.833333333 | G54: =G51 -> 11.5 | H54: =I54*G54+J54 -> 8.809895833 | I54: =PaveSlope -> -0.015625 | J54: =F54-I54*E54 -> 8.989583333 | K54: =(H54+F54)*(G54-E54)/2 -> 13.23242187 | O54: Bottom Line 1 | Q54: =Q51 -> 10 | R54: =R51-SubBaseT/12 -> 8.833333333 | S54: =S51 -> 11.5 | T54: =U54*S54+V54 -> 8.809895833 | U54: =PaveSlope -> -0.015625 | V54: =R54-U54*Q54 -> 8.989583333 | W54: =(T54+R54)*(S54-Q54)/2 -> 13.23242187
C55: Bottom Line 2 | E55: =G54 -> 11.5 | F55: =H54 -> 8.809895833 | G55: =G52 -> 11.50029428 | H55: =I55*G55+J55 -> 8.809891235 | I55: =PaveSlope -> -0.015625 | J55: =F55-I55*E55 -> 8.989583333 | K55: =(H55+F55)*(G55-E55)/2 -> 0.00259253522 | O55: Bottom Line 2 | Q55: =S54 -> 11.5 | R55: =T54 -> 8.809895833 | S55: =S52 -> 11.50029428 | T55: =U55*S55+V55 -> 8.809891235 | U55: =PaveSlope -> -0.015625 | V55: =R55-U55*Q55 -> 8.989583333 | W55: =(T55+R55)*(S55-Q55)/2 -> 0.00259253522
K56: =(K51-K54)+(K52-K55) -> 0.4707464233 | L56: SQ FT | W56: =(W51-W54)+(W52-W55) -> 0.4707464233 | X56: SQ FT
B58: Agg Shld Area: | C58: Top Line 1 | E58: =E38 -> 16 | F58: =F38 -> 9.75 | G58: =E58+LCShldIWf_Agg -> 18 | H58: =I58*G58+J58 -> 9.666666667 | I58: =ShldSlope -> -0.04166666667 | J58: =F58-I58*E58 -> 10.41666667 | K58: =(H58+F58)*(G58-E58)/2 -> 19.41666667 | N58: Agg Shld Area: | O58: Top Line 1 | Q58: =Q38 -> 20 | R58: =R38 -> 9.583333333 | S58: =Q58+LCShldIWf_Agg -> 22 | T58: =U58*S58+V58 -> 9.5 | U58: =ShldSlope -> -0.04166666667 | V58: =R58-U58*Q58 -> 10.41666667 | W58: =(T58+R58)*(S58-Q58)/2 -> 19.08333333
C59: Top Line 2 | E59: =G58 -> 18 | F59: =H58 -> 9.666666667 | G59: =-1*(J62-J59)/(I62-I59) -> 22 | H59: =I59*G59+J59 -> 8.666666667 | I59: =IF(G58-E58=0,-1000,-1/ForeSlopeRatio) -> -0.25 | J59: =F59-I59*E59 -> 14.16666667 | K59: =(H59+F59)*(G59-E59)/2 -> 36.66666667 | L59: =G59-E59 -> 4 | N59: =S59-Q59 -> 4 | O59: Top Line 2 | Q59: =S58 -> 22 | R59: =T58 -> 9.5 | S59: =-1*(V62-V59)/(U62-U59) -> 26 | T59: =U59*S59+V59 -> 8.5 | U59: =IF(S58-Q58=0,-1000,-1/ForeSlopeRatio) -> -0.25 | V59: =R59-U59*Q59 -> 15 | W59: =(T59+R59)*(S59-Q59)/2 -> 36
C61: Bottom Line 1 | E61: =E38 -> 16 | F61: =F38 -> 9.75 | G61: =G38 -> 16.00008333 | H61: =H38 -> 8.916663194 | I61: =-1/Wedge_Spc -> -10000 | J61: =F61-I61*E61 -> 160009.75 | K61: =(H61+F61)*(G61-E61)/2 -> 0.0007777808738 | O61: Bottom Line 1 | Q61: =Q38 -> 20 | R61: =R38 -> 9.583333333 | S61: =S38 -> 20.00008333 | T61: =T38 -> 8.749996528 | U61: =-1/Wedge_Spc -> -10000 | V61: =R61-U61*Q61 -> 200009.5833 | W61: =(T61+R61)*(S61-Q61)/2 -> 0.0007638919271
C62: Bottom Line 2 | E62: =G61 -> 16.00008333 | F62: =H61 -> 8.916663194 | G62: =G59 -> 22 | H62: =I62*G62+J62 -> 8.666666667 | I62: =ShldSlope -> -0.04166666667 | J62: =F62-I62*E62 -> 9.583333333 | K62: =(H62+F62)*(G62-E62)/2 -> 52.74925694 | L62: =G61-E61 -> 8.333368055e-05 | N62: =S61-Q61 -> 8.333368056e-05 | O62: Bottom Line 2 | Q62: =S61 -> 20.00008333 | R62: =T61 -> 8.749996528 | S62: =S59 -> 26 | T62: =U62*S62+V62 -> 8.5 | U62: =ShldSlope -> -0.04166666667 | V62: =R62-U62*Q62 -> 9.583333333 | W62: =(T62+R62)*(S62-Q62)/2 -> 51.74927083
K63: =(K58-K61)+(K59-K62) -> 3.333298611 | L63: SQ FT | W63: =(W58-W61)+(W59-W62) -> 3.333298611 | X63: SQ FT
L71: Wedge_X
L72: =(G59-E59) - (G61-E61) -> 3.999916666 | N72: =(S59-Q59) - (S61-Q61) -> 3.999916666
L73: =(LCShldOutEdge_T/12)/(ShldSlope - 1/-ForeSlopeRatio) -> 4
L74: =(LCShldOutEdge_T/12) / (ShldSlope-(IF(LC_SHLDTYPE="Tied SHLD",-100000,-1))) -> 8.333336806e-06
L75: =L73-L74 -> 3.999991667
L76: =(LCShldOutEdge_T/12) * ( 1/(ShldSlope - 1/-ForeSlopeRatio) - 1/(ShldSlope-(IF(LC_SHLDTYPE="Tied SHLD",-100000,-1)))) -> 3.999991667
N83: SUM
B84: Flexible Pavement Shoulder Area | I84: Shoulder Area = | J84: =K99 -> 4 | K84: SQ FT | N84: =(J84+V84) -> 10.66666667 | O84: =(N84)*LCProjectLen*(LCEdgesNf/2)/27*BinderSW -> 1592.888889 | P84: Tons | U84: Shoulder Area = | V84: =W99 -> 6.666666667 | W84: SQ FT
I85: Agg Shoulder Area = | J85: =K117 -> 2.168115942 | K85: SQ FT | N85: =(J85+V85) -> 4.336231884 | O85: =(N85)*LCProjectLen*(LCEdgesNf/2)/27*ShldSubSW -> 658.4648417 | P85: Tons | U85: Agg Shoulder Area = | V85: =W117 -> 2.168115942 | W85: SQ FT
I86: Shoulder Sub Base Area = | J86: =IF(K106>0,K106,0) -> 1.459132496 | K86: SQ FT | N86: =(J86+V86) -> 3.283785273 | O86: =(N86)*LCProjectLen*(LCEdgesNf/2)/27*ShldSubSW -> 498.6488748 | P86: Tons | U86: Shoulder Sub Base Area = | V86: =IF(W106>0,W106,0) -> 1.824652778 | W86: SQ FT | AA86: =((2*LCPaveFlexT/12 - (PaveSlope-ShldSlope)*(LCShldIWf + LCShldOWf + 1))*(1/(1+PaveSlope))) -> 1.582010582
AA88: =((2*LCPaveFlexT/12 - (PaveSlope-ShldSlope)*(LCShldIWf + LCShldOWf + 1))*(1-PaveSlope+ PaveSlope^2-PaveSlope^3)) -> 1.582010488
AA89: =((2*LCPaveFlexT/12 - (PaveSlope-ShldSlope)*(LCShldIWf + LCShldOWf + 1))*(1-PaveSlope+ PaveSlope^2)) -> 1.582004547
L90: =G102-E94 -> 7.343915344 | X90: =S102-Q94 -> 11.23809524 | AA90: =((2*LCPaveFlexT/12 - (PaveSlope-ShldSlope)*(LCShldIWf + LCShldOWf + 1))*(1-PaveSlope) ) -> 1.581624349
B91: Inside Shoulder | L91: =L90-LCShldIWf -0.5 -> 0.8439153439 | N91: Outside Shoulder | X91: =X90-LCShldOWf-0.5 -> 0.7380952381 | AA91: =L91+X91 -> 1.582010582
E92: X1 | F92: Y1 | G92: X2 | H92: Y2 | I92: m | J92: b | K92: Area | Q92: X1 | R92: Y1 | S92: X2 | T92: Y2 | U92: m | V92: b | W92: Area
B94: Shoulder Area: | C94: Top Line 1 | E94: 10 | F94: 10 | G94: =E94+LCShldIWf -> 16 | H94: =I94*G94+J94 -> 9.75 | I94: =ShldSlope -> -0.04166666667 | J94: =F94-I94*E94 -> 10.41666667 | K94: =(H94+F94)*(G94-E94)/2 -> 59.25 | N94: Shoulder Area: | O94: Top Line 1 | Q94: 10 | R94: 10 | S94: =Q94+LCShldOWf -> 20 | T94: =U94*S94+V94 -> 9.583333333 | U94: =ShldSlope -> -0.04166666667 | V94: =R94-U94*Q94 -> 10.41666667 | W94: =(T94+R94)*(S94-Q94)/2 -> 97.91666667
C95: Top Line 2 | E95: =G94 -> 16 | F95: =H94 -> 9.75 | G95: =-1*(J98-J95)/(I98-I95) -> 16.69565217 | H95: =I95*G95+J95 -> 9.054347826 | I95: =-1/Wedge_Std -> -1 | J95: =F95-I95*E95 -> 25.75 | K95: =(H95+F95)*(G95-E95)/2 -> 6.540642722 | O95: Top Line 2 | Q95: =S94 -> 20 | R95: =T94 -> 9.583333333 | S95: =-1*(V98-V95)/(U98-U95) -> 20.69565217 | T95: =U95*S95+V95 -> 8.887681159 | U95: =-1/Wedge_Std -> -1 | V95: =R95-U95*Q95 -> 29.58333333 | W95: =(T95+R95)*(S95-Q95)/2 -> 6.424700693
C97: Bottom Line 1 | E97: =E94 -> 10 | F97: 10 | G97: =-1*(J108-J97)/(I108-I97) -> 10.69565217 | H97: =I97*G97+J97 -> 9.304347826 | I97: =-1/Wedge_Std -> -1 | J97: =F97-I97*E97 -> 20 | K97: =(H97+F97)*(G97-E97)/2 -> 6.714555766 | O97: Bottom Line 1 | Q97: =Q94 -> 10 | R97: 10 | S97: =-1*(V108-V97)/(U108-U97) -> 10.69565217 | T97: =U97*S97+V97 -> 9.304347826 | U97: =-1/Wedge_Std -> -1 | V97: =R97-U97*Q97 -> 20 | W97: =(T97+R97)*(S97-Q97)/2 -> 6.714555766
C98: Bottom Line 2 | E98: =G97 -> 10.69565217 | F98: =H97 -> 9.304347826 | G98: =G95 -> 16.69565217 | H98: =I98*G98+J98 -> 9.054347826 | I98: =ShldSlope -> -0.04166666667 | J98: =F98-I98*E98 -> 9.75 | K98: =(H98+F98)*(G98-E98)/2 -> 55.07608696 | O98: Bottom Line 2 | Q98: =S97 -> 10.69565217 | R98: =T97 -> 9.304347826 | S98: =S95 -> 20.69565217 | T98: =U98*S98+V98 -> 8.887681159 | U98: =ShldSlope -> -0.04166666667 | V98: =R98-U98*Q98 -> 9.75 | W98: =(T98+R98)*(S98-Q98)/2 -> 90.96014493
K99: =(K94-K97)+(K95-K98) -> 4 | L99: SQ FT | W99: =(W94-W97)+(W95-W98) -> 6.666666667 | X99: SQ FT
B101: Shoulder Subbase Area: | C101: Top Line 1 | E101: =G97 -> 10.69565217 | F101: =H97 -> 9.304347826 | G101: =G98+ShldSubOutHang/12 -> 17.19565217 | H101: =I101*G101+J101 -> 9.033514493 | I101: =ShldSlope -> -0.04166666667 | J101: =F101-I101*E101 -> 9.75 | K101: =(H101+F101)*(G101-E101)/2 -> 59.59805254 | N101: Shoulder Subbase Area: | O101: Top Line 1 | Q101: =Q98 -> 10.69565217 | R101: =R98 -> 9.304347826 | S101: =S98+ShldSubOutHang/12 -> 21.19565217 | T101: =U101*S101+V101 -> 8.866847826 | U101: =ShldSlope -> -0.04166666667 | V101: =R101-U101*Q101 -> 9.75 | W101: =(T101+R101)*(S101-Q101)/2 -> 95.39877717
C102: Top Line 2 | E102: =G101 -> 17.19565217 | F102: =H101 -> 9.033514493 | G102: =-1*(J105-J102)/(I105-I102) -> 17.34391534 | H102: =I102*G102+J102 -> 8.885251323 | I102: =-1/Wedge_Std -> -1 | J102: =F102-I102*E102 -> 26.22916667 | K102: =(H102+F102)*(G102-E102)/2 -> 1.328346511 | O102: Top Line 2 | Q102: =S101 -> 21.19565217 | R102: =T101 -> 8.866847826 | S102: =-1*(V105-V102)/(U105-U102) -> 21.23809524 | T102: =U102*S102+V102 -> 8.824404762 | U102: =-1/Wedge_Std -> -1 | V102: =R102-U102*Q102 -> 30.0625 | W102: =(T102+R102)*(S102-Q102)/2 -> 0.3754354845
C104: Bottom Line 1 | E104: =E98 -> 10.69565217 | F104: =F98 -> 9.304347826 | G104: =-1*(J109-J104)/(I109-I104) -> 11.01587302 | H104: =I104*G104+J104 -> 8.984126984 | I104: =-1/Wedge_Std -> -1 | J104: =F104-I104*E104 -> 20 | K104: =(H104+F104)*(G104-E104)/2 -> 2.928175401 | O104: Bottom Line 1 | Q104: =Q98 -> 10.69565217 | R104: =R98 -> 9.304347826 | S104: =-1*(V109-V104)/(U109-U104) -> 11.01587302 | T104: =U104*S104+V104 -> 8.984126984 | U104: =-1/Wedge_Std -> -1 | V104: =R104-U104*Q104 -> 20 | W104: =(T104+R104)*(S104-Q104)/2 -> 2.928175401
C105: Bottom Line 2 | E105: =G104 -> 11.01587302 | F105: =H104 -> 8.984126984 | G105: =G102 -> 17.34391534 | H105: =I105*G105+J105 -> 8.885251323 | I105: =PaveSlope -> -0.015625 | J105: =F105-I105*E105 -> 9.15625 | K105: =(H105+F105)*(G105-E105)/2 -> 56.53909115 | O105: Bottom Line 2 | Q105: =S104 -> 11.01587302 | R105: =T104 -> 8.984126984 | S105: =S102 -> 21.23809524 | T105: =U105*S105+V105 -> 8.824404762 | U105: =PaveSlope -> -0.015625 | V105: =R105-U105*Q105 -> 9.15625 | W105: =(T105+R105)*(S105-Q105)/2 -> 91.02138448
K106: =(K101-K104)+(K102-K105) -> 1.459132496 | L106: SQ FT | W106: =(W101-W104)+(W102-W105) -> 1.824652778 | X106: SQ FT
C108: Base Line 1 | E108: =E94 -> 10 | F108: =F94-LCShldTf/12 -> 9.333333333 | G108: =G97 -> 10.69565217 | H108: =I108*G108+J108 -> 9.304347826 | I108: =ShldSlope -> -0.04166666667 | J108: =F108-I108*E108 -> 9.75 | K108: =(H108+F108)*(G108-E108)/2 -> 6.482671708 | O108: Base Line 1 | Q108: =Q94 -> 10 | R108: =R94-LCShldTf/12 -> 9.333333333 | S108: =S97 -> 10.69565217 | T108: =U108*S108+V108 -> 9.304347826 | U108: =ShldSlope -> -0.04166666667 | V108: =R108-U108*Q108 -> 9.75 | W108: =(T108+R108)*(S108-Q108)/2 -> 6.482671708
C109: Base Line 2 | E109: =E94 -> 10 | F109: =F94-LCPaveFlexT/12 -> 9 | G109: =G104 -> 11.01587302 | H109: =I109*G109+J109 -> 8.984126984 | I109: =PaveSlope -> -0.015625 | J109: =F109-I109*E109 -> 9.15625 | K109: =(H109+F109)*(G109-E109)/2 -> 9.134794659 | O109: Base Line 2 | Q109: =Q94 -> 10 | R109: =R94-LCPaveFlexT/12 -> 9 | S109: =S104 -> 11.01587302 | T109: =U109*S109+V109 -> 8.984126984 | U109: =PaveSlope -> -0.015625 | V109: =R109-U109*Q109 -> 9.15625 | W109: =(T109+R109)*(S109-Q109)/2 -> 9.134794659
B112: Agg Shld Area: | C112: Top Line 1 | E112: =E95 -> 16 | F112: =F95 -> 9.75 | G112: =E112+LCShldIWf_Agg -> 18 | H112: =I112*G112+J112 -> 9.666666667 | I112: =ShldSlope -> -0.04166666667 | J112: =F112-I112*E112 -> 10.41666667 | K112: =(H112+F112)*(G112-E112)/2 -> 19.41666667 | N112: Agg Shld Area: | O112: Top Line 1 | Q112: =Q95 -> 20 | R112: =R95 -> 9.583333333 | S112: =Q112+LCShldIWf_Agg -> 22 | T112: =U112*S112+V112 -> 9.5 | U112: =ShldSlope -> -0.04166666667 | V112: =R112-U112*Q112 -> 10.41666667 | W112: =(T112+R112)*(S112-Q112)/2 -> 19.08333333
C113: Top Line 2 | E113: =G112 -> 18 | F113: =H112 -> 9.666666667 | G113: =-1*(J116-J113)/(I116-I113) -> 21.2 | H113: =I113*G113+J113 -> 8.866666667 | I113: =IF(G112-E112=0,-1000,-1/ForeSlopeRatio) -> -0.25 | J113: =F113-I113*E113 -> 14.16666667 | K113: =(H113+F113)*(G113-E113)/2 -> 29.65333333 | O113: Top Line 2 | Q113: =S112 -> 22 | R113: =T112 -> 9.5 | S113: =-1*(V116-V113)/(U116-U113) -> 25.2 | T113: =U113*S113+V113 -> 8.7 | U113: =IF(S112-Q112=0,-1000,-1/ForeSlopeRatio) -> -0.25 | V113: =R113-U113*Q113 -> 15 | W113: =(T113+R113)*(S113-Q113)/2 -> 29.12
C115: Bottom Line 1 | E115: =E95 -> 16 | F115: =F95 -> 9.75 | G115: =G95 -> 16.69565217 | H115: =H95 -> 9.054347826 | I115: =-1/Wedge_Std -> -1 | J115: =F115-I115*E115 -> 25.75 | K115: =(H115+F115)*(G115-E115)/2 -> 6.540642722 | O115: Bottom Line 1 | Q115: =Q95 -> 20 | R115: =R95 -> 9.583333333 | S115: =S95 -> 20.69565217 | T115: =T95 -> 8.887681159 | U115: =-1/Wedge_Std -> -1 | V115: =R115-U115*Q115 -> 29.58333333 | W115: =(T115+R115)*(S115-Q115)/2 -> 6.424700693
C116: Bottom Line 2 | E116: =G115 -> 16.69565217 | F116: =H115 -> 9.054347826 | G116: =G113 -> 21.2 | H116: =I116*G116+J116 -> 8.866666667 | I116: =ShldSlope -> -0.04166666667 | J116: =F116-I116*E116 -> 9.75 | K116: =(H116+F116)*(G116-E116)/2 -> 40.36124134 | O116: Bottom Line 2 | Q116: =S115 -> 20.69565217 | R116: =T115 -> 8.887681159 | S116: =S113 -> 25.2 | T116: =U116*S116+V116 -> 8.7 | U116: =ShldSlope -> -0.04166666667 | V116: =R116-U116*Q116 -> 9.75 | W116: =(T116+R116)*(S116-Q116)/2 -> 39.6105167
K117: =(K112-K115)+(K113-K116) -> 2.168115942 | L117: SQ FT | W117: =(W112-W115)+(W113-W116) -> 2.168115942 | X117: SQ FT
L123: Wedge_X
L124: =(G113-E113) - (G115-E115) -> 2.504347826 | N124: =(S113-Q113) - (S115-Q115) -> 2.504347826
L125: =(LCShldTf/12)/(ShldSlope - 1/-ForeSlopeRatio) -> 3.2
L126: =(LCShldTf/12)/(ShldSlope+1/Wedge_Std) -> 0.6956521739
L127: =L125-L126 -> 2.504347826
L128: =(LCShldTf/12) * ( 1/(ShldSlope - 1/-ForeSlopeRatio) - 1/(ShldSlope+1/Wedge_Std)) -> 2.504347826

Sheet REHAB_JPCP (hidden)
B1: JPCP | E1: MAINTENANCE AND REHABILITATION ACTIVITY SCHEDULE | K1: =NOW() -> 2017-05-04T11:05:27.110
E2: =IF(LC_RigidRehabType<>LC_RigidBase,IF(LCPaveTypeo= "","WARNING: INCORRECT MAINTENANCE SCHEDULE for CURRENT TRAFFIC FACTOR!","WARNING: INCORRECT MAINTENANCE SCHEDULE for USER SET PAVEMENT TYPE!")," - ") -> -
E4: JOINTED PLAIN CONCRETE PAVEMENT
E5: UNBONDED JOINTED PLAIN CONCRETE OVERLAY
E6: Figure 54-7.A
H8: =IF(LCUPC= "Yes","PROJECTED","") ->  | J8: =IF(LCUPC= "Yes","PROJECTED","") ->  | K8: PRESENT
B9: MAINTENANCE COSTS: | D9: ITEM | E9: % | F9: QUANTITY | G9: UNIT | H9: UNIT COST | J9: COST | K9: WORTH
B11: YEAR | C11: 10 | G11: FVFn = | H11: 1
D12: PAVEMENT PATCH CLASS B | E12: 0.001 | F12: =ROUND(LCPavementSQYD*E12,0) -> 5 | G12: SQ YD | H12: =H11*LifeCycleCost!$I$162 -> 150 | J12: =IF( C12= "X",0,ROUND((F12*H12),0)) -> 750
D13: PWFn = | E13: =PVFn(II,C11) -> 0.7440939149 | G13: PW = | H13: =E13 -> 0.7440939149 | I13: X | J13: =(J12) -> 750 | K13: =ROUND(((J13)*H13),0) -> 558
B15: YEAR | C15: 15 | G15: FVFn = | H15: 1
D16: PAVEMENT PATCH CLASS B | E16: 0.002 | F16: =ROUND(LCPavementSQYD*E16,0) -> 11 | G16: SQ YD | H16: =H15*LifeCycleCost!$I$162 -> 150 | J16: =IF( C16= "X",0,ROUND((F16*H16),0)) -> 1650
D17: PWFn = | E17: =PVFn(II,C15) -> 0.6418619474 | G17: PW = | H17: =E17 -> 0.6418619474 | I17: X | J17: =(J16) -> 1650 | K17: =ROUND(((J17)*H17),0) -> 1059
B19: YEAR | C19: 20 | G19: FVFn = | H19: 1
D20: PAVEMENT PATCH CLASS B | E20: 0.02 | F20: =ROUND(LCPavementSQYD*E20,0) -> 107 | G20: SQ YD | H20: =H19*LifeCycleCost!$I$162 -> 150 | J20: =IF( C20= "X",0,ROUND((F20*H20),0)) -> 16050
D21: SHOULDER PATCH CLASS C | E21: 0.005 | F21: =ROUND(LCShoulderSQYD*E21,0) -> 18 | G21: SQ YD | H21: =H19*LifeCycleCost!$I$163 -> 145 | J21: =IF( C21= "X",0,ROUND((F21*H21),0)) -> 2610
D22: LONGITUDINAL SHLD JT R&S | E22: 1 | F22: =ROUND(LCEdgesN*LCProjectLen*E22,0) -> 4000 | G22: LIN FT | H22: =H19*LifeCycleCost!$I$168 -> 2 | J22: =IF( C22= "X",0,ROUND((F22*H22),0)) -> 8000
D23: CENTERLINE JT R&S | E23: 1 | F23: =ROUND(LCCLN*LCProjectLen*E23,0) -> 2000 | G23: LIN FT | H23: =H19*LifeCycleCost!$I$169 -> 2 | J23: =IF( C23= "X",0,ROUND((F23*H23),0)) -> 4000
D24: PWFn = | E24: =PVFn(II,C19) -> 0.5536757542 | G24: PW = | H24: =E24 -> 0.5536757542 | I24: X | J24: =ROUND(SUM(J20:J23),0) -> 30660 | K24: =ROUND(((J24)*H24),0) -> 16976
B26: YEAR | C26: 25 | G26: FVFn = | H26: 1
D27: PAVEMENT PATCH CLASS B | E27: 0.03 | F27: =ROUND(LCPavementSQYD*E27,0) -> 160 | G27: SQ YD | H27: =H26*LifeCycleCost!$I$162 -> 150 | J27: =IF( C27= "X",0,ROUND((F27*H27),0)) -> 24000
D28: SHOULDER PATCH CLASS C | E28: 0.01 | F28: =ROUND(LCShoulderSQYD*E28,0) -> 36 | G28: SQ YD | H28: =H26*LifeCycleCost!$I$163 -> 145 | J28: =IF( C28= "X",0,ROUND((F28*H28),0)) -> 5220
D29: PWFn = | E29: =PVFn(II,C26) -> 0.4776055693 | G29: PW = | H29: =E29 -> 0.4776055693 | I29: X | J29: =ROUND(SUM(J27:J28),0) -> 29220 | K29: =ROUND(((J29)*H29),0) -> 13956
B31: YEAR | C31: 30 | D31: =LC_FacilityType -> INTERSTATE | G31: FVFn = | H31: 1
D32: PAVEMENT PATCH CLASS B | E32: 0.04 | F32: =ROUND(LCPavementSQYD*E32,0) -> 213 | G32: SQ YD | H32: =H31*LifeCycleCost!$I$162 -> 150 | J32: =IF( C32= "X",0,ROUND((F32*H32),0)) -> 31950
D33: SHOULDER PATCH CLASS C | E33: 0.015 | F33: =ROUND(LCShoulderSQYD*E33,0) -> 53 | G33: SQ YD | H33: =H31*LifeCycleCost!$I$163 -> 145 | J33: =IF( C33= "X",0,ROUND((F33*H33),0)) -> 7685
D34: ="HMA POLICY OVERLAY " & LifeCycleCost!$F$121 & """ ( PVMT )" -> HMA POLICY OVERLAY 3.75" ( PVMT ) | E34: 1 | F34: =ROUND(LifeCycleCost!$M$156*E34,2) -> 5333.33 | G34: =MID(LifeCycleCost!$J$156,3,5) -> SQ YD | H34: =H31*LifeCycleCost!$I$156 -> 20.20976563 | J34: =IF( C34= "X",0,ROUND((F34*H34),0)) -> 107785
D35: ="HMA POLICY OVERLAY " & LifeCycleCost!$F$121 & """ ( SHLD )" -> HMA POLICY OVERLAY 3.75" ( SHLD ) | E35: 1 | F35: =ROUND(LifeCycleCost!$M$159*E35,2) -> 3555.56 | G35: =MID(LifeCycleCost!$J$159,3,5) -> SQ YD | H35: =H31*LifeCycleCost!$I$159 -> 15.12 | J35: =IF( C35= "X",0,ROUND((F35*H35),0)) -> 53760
D36: PWFn = | E36: =PVFn(II,C31) -> 0.4119867595 | G36: PW = | H36: =E36 -> 0.4119867595 | I36: X | J36: =ROUND(SUM(J32:J35),0) -> 201180 | K36: =ROUND(((J36)*H36),0) -> 82883
B38: YEAR | C38: 35 | D38: =LC_FacilityType -> INTERSTATE | G38: FVFn = | H38: 1
D39: LONGITUDINAL SHLD JT R&S | E39: 1 | F39: =ROUND(LCEdgesN*LCProjectLen*E39,0) -> 4000 | G39: LIN FT | H39: =H38*LifeCycleCost!$I$168 -> 2 | J39: =IF( C39= "X",0,ROUND((F39*H39),0)) -> 8000
D40: CENTERLINE JT R&S | E40: 1 | F40: =ROUND(LCCLN*LCProjectLen*E40,0) -> 2000 | G40: LIN FT | H40: =H38*LifeCycleCost!$I$169 -> 2 | J40: =IF( C40= "X",0,ROUND((F40*H40),0)) -> 4000
D41: RANDOM CRACK R&S | E41: 0.5 | F41: =ROUND(LCLanesN*(LCProjectLen/100)*LCCrackRater*E41,0) -> 2000 | G41: LIN FT | H41: =H38*LifeCycleCost!$I$171 -> 2 | J41: =IF( C41= "X",0,ROUND((F41*H41),0)) -> 4000
D42: REFLECTIVE TRANSVERSE CRACK R&S | E42: 0.4 | F42: =ROUND(LCLaneW*LCLanesN*ROUND(LCProjectLen/15,0)*E42,0) -> 1286 | G42: LIN FT | H42: =H38*LifeCycleCost!$I$170 -> 2 | J42: =IF( C42= "X",0,ROUND((F42*H42),0)) -> 2572
D43: ="PD PVMT PATCH M&F HMA " & IF(LC_FacilityType="Interstate","SURF " & FIXED(LifeCycleCost!$G$165,2),FIXED(LifeCycleCost!$G$166,2)) & """ " -> PD PVMT PATCH M&F HMA SURF 1.50" | E43: 0.001 | F43: =ROUND(LCPavementSQYD*E43,0) -> 5 | G43: SQ YD | H43: =IF(LC_FacilityType="Interstate",H38*LifeCycleCost!$I$165,H38*LifeCycleCost!$I$166) -> 77.98 | J43: =IF( C43= "X",0,ROUND((F43*H43),0)) -> 390
D44: PWFn = | E44: =PVFn(II,C38) -> 0.3553833978 | G44: PW = | H44: =E44 -> 0.3553833978 | I44: X | J44: =ROUND(SUM(J39:J43),0) -> 18962 | K44: =ROUND(((J44)*H44),0) -> 6739
B46: YEAR | C46: 40 | D46: =LC_FacilityType -> INTERSTATE | G46: FVFn = | H46: 1
D47: PAVEMENT PATCH CLASS B | E47: 0.005 | F47: =ROUND(LCPavementSQYD*E47,0) -> 27 | G47: SQ YD | H47: =H46*LifeCycleCost!$I$162 -> 150 | J47: =IF( C47= "X",0,ROUND((F47*H47),0)) -> 4050
D48: LONGITUDINAL SHLD JT R&S | E48: 1 | F48: =ROUND(LCEdgesN*LCProjectLen*E48,0) -> 4000 | G48: LIN FT | H48: =H46*LifeCycleCost!$I$168 -> 2 | J48: 8000
D49: CENTERLINE JT R&S | E49: 1 | F49: =ROUND(LCCLN*LCProjectLen*E49,0) -> 2000 | G49: LIN FT | H49: =H46*LifeCycleCost!$I$169 -> 2 | J49: 4000
D50: REFLECTIVE TRANSVERSE CRACK R&S | E50: 0.6 | F50: =ROUND(LCLaneW*LCLanesN*ROUND(LCProjectLen/15,0)*E50,0) -> 1930 | G50: LIN FT | H50: =H46*LifeCycleCost!$I$170 -> 2 | J50: 3860
D51: RANDOM CRACK R&S | E51: 0.5 | F51: =ROUND(LCLanesN*(LCProjectLen/100)*LCCrackRater*E51,0) -> 2000 | G51: LIN FT | H51: =H46*LifeCycleCost!$I$171 -> 2 | J51: 4000
D52: ="PD PVMT PATCH M&F HMA " & IF(LC_FacilityType="Interstate","SURF " & FIXED(LifeCycleCost!$G$165,2),FIXED(LifeCycleCost!$G$166,2)) & """ " -> PD PVMT PATCH M&F HMA SURF 1.50" | E52: 0.005 | F52: =ROUND(LCPavementSQYD*E52,0) -> 27 | G52: SQ YD | H52: =IF(LC_FacilityType="Interstate",H46*LifeCycleCost!$I$165,H46*LifeCycleCost!$I$166) -> 77.98 | J52: 2105
D53: PWFn = | E53: =PVFn(II,C46) -> 0.3065568408 | G53: PW = | H53: =E53 -> 0.3065568408 | I53: X | J53: =ROUND(SUM(J47:J52),0) -> 26015 | K53: =ROUND(((J53)*H53),0) -> 7975
K54: =SUM(K11:K53) -> 130146
D56: ROUTINE MAINTENANCE ACTIVITY | F56: =LCLanesN*LCProjectLen/5280 -> 0.7575757576 | G56: Lane Miles | H56: =LCARMA -> 0 | J56: =IF( C56= "X",0,(F56*H56)) -> 0 | K56: =J56/CRFn(II,LifeCycle) -> 0
J57: MAINTENANCE LIFE-CYCLE COST | K57: =SUM(K54:K56) -> 130146
C58: =LifeCycle -> 45 | D58: =" YEAR LIFE CYCLE" & REPT(" ",20) & "CRFn = " & FIXED(CRFn(II,LifeCycle),7) -> YEAR LIFE CYCLE CRFn = 0.0407852 | J58: MAINTENANCE ANNUAL COST PER MILE | K58: =ROUND(((K57*CRFn(II,LifeCycle)/(LCProjectLen/5280))),0) -> 28026

Sheet REHAB_CRCP (hidden)
B1: CRCP | E1: MAINTENANCE AND REHABILITATION ACTIVITY SCHEDULE | K1: =NOW() -> 2017-05-04T11:05:27.110
E2: =IF(LC_RigidRehabType<>LC_RigidBase,IF(LCPaveTypeo= "","WARNING: INCORRECT MAINTENANCE SCHEDULE for CURRENT TRAFFIC FACTOR!","WARNING: INCORRECT MAINTENANCE SCHEDULE for USER SET PAVEMENT TYPE!")," - ") -> -
E4: CONTINUOUSLY REINFORCED CONCRETE PAVEMENT
E5: UNBONDED CONTINUOUSLY REINFORCED CONCRETE OVERLAY
E6: Figure 54-7.B
H8: =IF(LCUPC= "Yes","PROJECTED","") ->  | J8: =IF(LCUPC= "Yes","PROJECTED","") ->  | K8: PRESENT
B9: MAINTENANCE COSTS: | D9: ITEM | E9: % | F9: QUANTITY | G9: UNIT | H9: UNIT COST | J9: COST | K9: WORTH
B11: YEAR | C11: 10 | G11: FVFn = | H11: 1
D12: PAVEMENT PATCH CLASS A | E12: 0.001 | F12: =ROUND(LCPavementSQYD*E12,0) -> 5 | G12: SQ YD | H12: =H11*LifeCycleCost!$I$161 -> 195 | J12: =IF( C12= "X",0,ROUND((F12*H12),0)) -> 975
D13: PWFn = | E13: =PVFn(II,C11) -> 0.7440939149 | G13: PW = | H13: =E13 -> 0.7440939149 | I13: X | J13: =(J12) -> 975 | K13: =ROUND(((J13)*H13),0) -> 725
B15: YEAR | C15: 15 | G15: FVFn = | H15: 1
D16: PAVEMENT PATCH CLASS A | E16: 0.002 | F16: =ROUND(LCPavementSQYD*E16,0) -> 11 | G16: SQ YD | H16: =H15*LifeCycleCost!$I$161 -> 195 | J16: =IF( C16= "X",0,ROUND((F16*H16),0)) -> 2145
D17: PWFn = | E17: =PVFn(II,C15) -> 0.6418619474 | G17: PW = | H17: =E17 -> 0.6418619474 | I17: X | J17: =(J16) -> 2145 | K17: =ROUND(((J17)*H17),0) -> 1377
B19: YEAR | C19: 20 | G19: FVFn = | H19: 1
D20: PAVEMENT PATCH CLASS A | E20: 0.005 | F20: =ROUND(LCPavementSQYD*E20,0) -> 27 | G20: SQ YD | H20: =H19*LifeCycleCost!$I$161 -> 195 | J20: =IF( C20= "X",0,ROUND((F20*H20),0)) -> 5265
D21: LONGITUDINAL SHLD JT R&S | E21: 1 | F21: =ROUND(LCEdgesN*LCProjectLen*E21,0) -> 4000 | G21: LIN FT | H21: =H19*LifeCycleCost!$I$168 -> 2 | J21: =IF( C21= "X",0,ROUND((F21*H21),0)) -> 8000
D22: CENTERLINE JT R&S | E22: 1 | F22: =ROUND(LCCLN*LCProjectLen*E22,0) -> 2000 | G22: LIN FT | H22: =H19*LifeCycleCost!$I$169 -> 2 | J22: =IF( C22= "X",0,ROUND((F22*H22),0)) -> 4000
D23: PWFn = | E23: =PVFn(II,C19) -> 0.5536757542 | G23: PW = | H23: =E23 -> 0.5536757542 | I23: X | J23: =ROUND(SUM(J20:J22),0) -> 17265 | K23: =ROUND(((J23)*H23),0) -> 9559
B25: YEAR | C25: 25 | G25: FVFn = | H25: 1
D26: PAVEMENT PATCH CLASS A | E26: 0.0075 | F26: =ROUND(LCPavementSQYD*E26,0) -> 40 | G26: SQ YD | H26: =H25*LifeCycleCost!$I$161 -> 195 | J26: =IF( C26= "X",0,ROUND((F26*H26),0)) -> 7800
D27: SHOULDER PATCH CLASS C | E27: 0.005 | F27: =ROUND(LCShoulderSQYD*E27,0) -> 18 | G27: SQ YD | H27: =H25*LifeCycleCost!$I$163 -> 145 | J27: =IF( C27= "X",0,ROUND((F27*H27),0)) -> 2610
D28: PWFn = | E28: =PVFn(II,C25) -> 0.4776055693 | G28: PW = | H28: =E28 -> 0.4776055693 | I28: X | J28: =ROUND(SUM(J26:J27),0) -> 10410 | K28: =ROUND(((J28)*H28),0) -> 4972
B30: YEAR | C30: 30 | D30: =LC_FacilityType -> INTERSTATE | G30: FVFn = | H30: 1
D31: PAVEMENT PATCH CLASS A | E31: 0.03 | F31: =ROUND(LCPavementSQYD*E31,0) -> 160 | G31: SQ YD | H31: =H30*LifeCycleCost!$I$161 -> 195 | J31: =IF( C31= "X",0,ROUND((F31*H31),0)) -> 31200
D32: SHOULDER PATCH CLASS C | E32: 0.01 | F32: =ROUND(LCShoulderSQYD*E32,0) -> 36 | G32: SQ YD | H32: =H30*LifeCycleCost!$I$163 -> 145 | J32: =IF( C32= "X",0,ROUND((F32*H32),0)) -> 5220
D33: ="HMA POLICY OVERLAY " & LifeCycleCost!$G$156 & """ ( PVMT )" -> HMA POLICY OVERLAY 3.75" ( PVMT ) | E33: 1 | F33: =ROUND(LifeCycleCost!$M$156*E33,2) -> 5333.33 | G33: =MID( LifeCycleCost!$J$156,3,5) -> SQ YD | H33: =H30*LifeCycleCost!$I$156 -> 20.20976563 | J33: =IF( C33= "X",0,ROUND((F33*H33),0)) -> 107785
D34: ="HMA POLICY OVERLAY " & LifeCycleCost!$G$159 & """ ( SHLD )" -> HMA POLICY OVERLAY 3.75" ( SHLD ) | E34: 1 | F34: =ROUND(LifeCycleCost!$M$159*E34,2) -> 3555.56 | G34: =MID( LifeCycleCost!$J$159,3,5) -> SQ YD | H34: =H30*LifeCycleCost!$I$159 -> 15.12 | J34: =IF( C34= "X",0,ROUND((F34*H34),0)) -> 53760
D35: PWFn = | E35: =PVFn(II,C30) -> 0.4119867595 | G35: PW = | H35: =E35 -> 0.4119867595 | I35: X | J35: =ROUND(SUM(J31:J34),0) -> 197965 | K35: =ROUND(((J35)*H35),0) -> 81559
B37: YEAR | C37: 35 | G37: FVFn = | H37: 1
D38: LONGITUDINAL SHLD JT R&S | E38: 1 | F38: =ROUND(LCEdgesN*LCProjectLen*E38,0) -> 4000 | G38: LIN FT | H38: =H37*LifeCycleCost!$I$168 -> 2 | J38: =IF( C38= "X",0,ROUND((F38*H38),0)) -> 8000
D39: CENTERLINE JT R&S | E39: 1 | F39: =ROUND(LCCLN*LCProjectLen*E39,0) -> 2000 | G39: LIN FT | H39: =H37*LifeCycleCost!$I$169 -> 2 | J39: =IF( C39= "X",0,ROUND((F39*H39),0)) -> 4000
D40: RANDOM CRACK R&S | E40: 0.5 | F40: =ROUND(LCLanesN*(LCProjectLen/100)*LCCrackRater*E40,0) -> 2000 | G40: LIN FT | H40: =H37*LifeCycleCost!$I$171 -> 2 | J40: =IF( C40= "X",0,ROUND((F40*H40),0)) -> 4000
D41: PD PVMT PATCH M&F HMA SURF | E41: 0.001 | F41: =ROUND(LCPavementSQYD*E41,0) -> 5 | G41: SQ YD | H41: =H37*LifeCycleCost!$I$165 -> 77.98 | J41: =IF( C41= "X",0,ROUND((F41*H41),0)) -> 390
D42: PWFn = | E42: =PVFn(II,C37) -> 0.3553833978 | G42: PW = | H42: =E42 -> 0.3553833978 | I42: X | J42: =ROUND(SUM(J38:J41),0) -> 16390 | K42: =ROUND(((J42)*H42),0) -> 5825
B44: YEAR | C44: 40 | G44: FVFn = | H44: 1
D45: LONGITUDINAL SHLD JT R&S | E45: 1 | F45: =ROUND(LCEdgesN*LCProjectLen*E45,0) -> 4000 | G45: LIN FT | H45: =H44*LifeCycleCost!$I$168 -> 2 | J45: =IF( C45= "X",0,ROUND((F45*H45),0)) -> 8000
D46: CENTERLINE JT R&S | E46: 1 | F46: =ROUND(LCCLN*LCProjectLen*E46,0) -> 2000 | G46: LIN FT | H46: =H44*LifeCycleCost!$I$169 -> 2 | J46: =IF( C46= "X",0,ROUND((F46*H46),0)) -> 4000
D47: RANDOM CRACK R&S | E47: 0.5 | F47: =ROUND(LCLanesN*(LCProjectLen/100)*LCCrackRater*E47,0) -> 2000 | G47: LIN FT | H47: =H44*LifeCycleCost!$I$171 -> 2 | J47: =IF( C47= "X",0,ROUND((F47*H47),0)) -> 4000
D48: PAVEMENT PATCH CLASS A | E48: 0.005 | F48: =ROUND(LCPavementSQYD*E48,0) -> 27 | G48: SQ YD | H48: =H44*LifeCycleCost!$I$161 -> 195 | J48: =IF( C48= "X",0,ROUND((F48*H48),0)) -> 5265
D49: PD PVMT PATCH M&F HMA SURF | E49: 0.005 | F49: =ROUND(LCPavementSQYD*E49,0) -> 27 | G49: SQ YD | H49: =H44*LifeCycleCost!$I$165 -> 77.98 | J49: =IF(C49= "X",0,ROUND((F49*H49),0)) -> 2105
D50: PWFn = | E50: =PVFn(II,C44) -> 0.3065568408 | G50: PW = | H50: =E50 -> 0.3065568408 | I50: X | J50: =ROUND(SUM(J45:J49),0) -> 23370 | K50: =ROUND(((J50)*H50),0) -> 7164
K51: =SUM(K11:K50) -> 111181
D53: ROUTINE MAINTENANCE ACTIVITY | F53: =LCLanesN*LCProjectLen/5280 -> 0.7575757576 | G53: Lane Miles | H53: =LCARMA -> 0 | J53: =IF( C53= "X",0,(F53*H53)) -> 0 | K53: =J53/CRFn(II,LifeCycle) -> 0
J54: MAINTANANCE LIFE-CYCLE COST | K54: =SUM(K51:K53) -> 111181
C55: =LifeCycle -> 45 | D55: =" YEAR LIFE CYCLE" & REPT(" ",20) & "CRFn = " & FIXED(CRFn(II,LifeCycle),7) -> YEAR LIFE CYCLE CRFn = 0.0407852 | J55: MAINTANANCE ANNUAL COST PER MILE | K55: =ROUND(((K54*CRFn(II,LifeCycle)/(LCProjectLen/5280))),0) -> 23942

Sheet REHAB_HMA01 (hidden)
B1: HMA_SD | E1: MAINTENANCE AND REHABILITATION ACTIVITY SCHEDULE | K1: =NOW() -> 2017-05-04T11:05:27.110
E2: =IF(AND(CELL("col",A1)>10,LC_FlexRehabType<>LC_FlexBase),"WARNING: INCORRECT MAINTENANCE SCHEDULE for CURRENT PAVEMENT THICKNESS!"," - ") -> -
E4: FULL-DEPTH HMA PAVEMENT
E5: HMA OVERLAY OF RUBBLIZED PCC PAVEMENT
E6: Figure 54-7.C
E7: STANDARD DESIGN
H8: =IF(LCUPC= "Yes","PROJECTED","") ->  | J8: =IF(LCUPC= "Yes","PROJECTED","") ->  | K8: PRESENT
B9: MAINTENANCE COSTS: | D9: ITEM | E9: % | F9: QUANTITY | G9: UNIT | H9: UNIT COST | J9: COST | K9: WORTH
B11: YEAR | C11: 5 | G11: FVFn = | H11: 1
D12: LONG SHLD JT R&S | E12: 1 | F12: =ROUND((LCProjectLenf*LCEdgesNf)*E12,0) -> 4000 | G12: LIN FT | H12: =H11*LCFlexShldJTS -> 2 | J12: =IF( C12= "X",0,ROUND((F12*H12),0)) -> 8000
D13: CNTR LINE JOINT R&S | E13: 1 | F13: =ROUND(LCProjectLenf*LCCLNf*E13,0) -> 2000 | G13: LIN FT | H13: =H11*LCFlexCentJTS -> 2 | J13: =IF( C13= "X",0,ROUND((F13*H13),0)) -> 4000
D14: RNDM / THRM CRACK R&S | E14: 0.5 | F14: =ROUND((LCLanesNf*(LCProjectLenf/100)*LCCrackRatef)*E14,0) -> 2200 | G14: LIN FT | H14: =H11*LCFlexThermCRS -> 2 | J14: =IF( C14= "X",0,ROUND((F14*H14),0)) -> 4400
D15: PD PVMT PATCH M&F SURF | E15: 0.001 | F15: =ROUND(LCPavementSQYDf*E15,0) -> 5 | G15: SQ YD | H15: =H11*LCFlexPavPatchS -> 80.64 | J15: =IF( C15= "X",0,ROUND((F15*H15),0)) -> 403
D16: PWFn = | E16: =PVFn(II,C11) -> 0.8626087844 | G16: PW = | H16: =E16 -> 0.8626087844 | I16: X | J16: =SUM(J12:J15) -> 16803 | K16: =ROUND(((J16)*H16),0) -> 14494
B18: YEAR | C18: 10 | G18: FVFn = | H18: 1
D19: LONG SHLD JT R&S | E19: 1 | F19: =ROUND((LCProjectLenf*LCEdgesNf)*E19,0) -> 4000 | G19: LIN FT | H19: =H18*LCFlexShldJTS -> 2 | J19: =IF( C19= "X",0,ROUND((F19*H19),0)) -> 8000
D20: CNTR LINE JOINT R&S | E20: 1 | F20: =ROUND(LCProjectLenf*LCCLNf*E20,0) -> 2000 | G20: LIN FT | H20: =H18*LCFlexCentJTS -> 2 | J20: =IF( C20= "X",0,ROUND((F20*H20),0)) -> 4000
D21: RNDM / THRM CRACK R&S | E21: 0.5 | F21: =ROUND((LCLanesNf*(LCProjectLenf/100)*LCCrackRatef)*E21,0) -> 2200 | G21: LIN FT | H21: =H18*LCFlexThermCRS -> 2 | J21: =IF( C21= "X",0,ROUND((F21*H21),0)) -> 4400
D22: PD PVMT PATCH M&F SURF | E22: 0.005 | F22: =ROUND(LCPavementSQYDf*E22,0) -> 27 | G22: SQ YD | H22: =H18*LCFlexPavPatchS -> 80.64 | J22: =IF( C22= "X",0,ROUND((F22*H22),0)) -> 2177
D23: PWFn = | E23: =PVFn(II,C18) -> 0.7440939149 | G23: PW = | H23: =E23 -> 0.7440939149 | I23: X | J23: =SUM(J19:J22) -> 18577 | K23: =ROUND(((J23)*H23),0) -> 13823
B25: YEAR | C25: 15 | G25: FVFn = | H25: 1
D26: ="MILL PVMT & SHLD " & FIXED(LifeCycleCost!$G$79,2) & """ " -> MILL PVMT & SHLD 2.00" | E26: 1 | F26: =ROUND((LCPavementSQYDf+LCShoulderSQYDf)*E26,0) -> 8889 | G26: SQ YD | H26: =H25*LCFlexMillingS -> 3 | J26: =IF( C26= "X",0,ROUND((F26*H26),0)) -> 26667
D27: ="PD PVMT PATCH M&F ADD'L " & FIXED(LifeCycleCost!$G$84,2) & """ " -> PD PVMT PATCH M&F ADD'L 2.00" | E27: 0.01 | F27: =ROUND(LCPavementSQYDf*E27,0) -> 53 | G27: SQ YD | H27: =H25*LifeCycleCost!$I$84 -> 79.52 | J27: =IF( C27= "X",0,ROUND((F27*H27),0)) -> 4215
D28: ="HMA OVERLAY PVMT " & FIXED(LifeCycleCost!$G$72,2) & """ " -> HMA OVERLAY PVMT 2.00" | E28: 1 | F28: =IF(LC_FlexBase="HMA_SD",LifeCycleCost!$M$72,LifeCycleCost!$M$72) -> 5333.3333 | G28: =MID( IF(LC_FlexBase="HMA_SD",LifeCycleCost!$J$72,LifeCycleCost!$J$72), 3,5) -> SQ YD | H28: =H25*LifeCycleCost!$I$72 -> 10.71388889 | J28: =IF( C28= "X",0,ROUND((F28*H28),0)) -> 57141
D29: ="HMA OVERLAY SHLD " & FIXED(LifeCycleCost!$G$77,2) &" "" " -> HMA OVERLAY SHLD 2.00 " | E29: 1 | F29: =IF(LC_FlexBase="HMA_SD",LifeCycleCost!$M$77,LifeCycleCost!$M$77) -> 3555.55558 | G29: =MID( IF(LC_FlexBase="HMA_SD",LifeCycleCost!$J$77,LifeCycleCost!$J$77),3,5) -> SQ YD | H29: =H25*LifeCycleCost!$I$77 -> 8.064 | J29: =IF( C29= "X",0,ROUND((F29*H29),0)) -> 28672
D30: PWFn = | E30: =PVFn(II,C25) -> 0.6418619474 | G30: PW = | H30: =E30 -> 0.6418619474 | I30: X | J30: =SUM(J26:J29) -> 116695 | K30: =ROUND(((J30)*H30),0) -> 74902
B32: YEAR | C32: 20 | G32: FVFn = | H32: 1
D33: LONG SHLD JT R&S | E33: 1 | F33: =ROUND((LCProjectLenf*LCEdgesNf)*E33,0) -> 4000 | G33: LIN FT | H33: =H32*LCFlexShldJTS -> 2 | J33: =IF( C33= "X",0,ROUND((F33*H33),0)) -> 8000
D34: CNTR LINE JOINT R&S | E34: 1 | F34: =ROUND(LCProjectLenf*LCCLNf*E34,0) -> 2000 | G34: LIN FT | H34: =H32*LCFlexCentJTS -> 2 | J34: =IF( C34= "X",0,ROUND((F34*H34),0)) -> 4000
D35: RNDM / THRM CRACK R&S | E35: 0.5 | F35: =ROUND((LCLanesNf*(LCProjectLenf/100)*LCCrackRatef)*E35,0) -> 2200 | G35: LIN FT | H35: =H32*LCFlexThermCRS -> 2 | J35: =IF( C35= "X",0,ROUND((F35*H35),0)) -> 4400
D36: PD PVMT PATCH M&F SURF | E36: 0.001 | F36: =ROUND(LCPavementSQYDf*E36,0) -> 5 | G36: SQ YD | H36: =H32*LCFlexPavPatchS -> 80.64 | J36: =IF( C36= "X",0,ROUND((F36*H36),0)) -> 403
D37: PWFn = | E37: =PVFn(II,C32) -> 0.5536757542 | G37: PW = | H37: =E37 -> 0.5536757542 | I37: X | J37: =SUM(J33:J36) -> 16803 | K37: =ROUND(((J37)*H37),0) -> 9303
B39: YEAR | C39: 25 | G39: FVFn = | H39: 1
D40: LONG SHLD JT R&S | E40: 1 | F40: =ROUND((LCProjectLenf*LCEdgesNf)*E40,0) -> 4000 | G40: LIN FT | H40: =H39*LCFlexShldJTS -> 2 | J40: =IF( C40= "X",0,ROUND((F40*H40),0)) -> 8000
D41: CNTR LINE JOINT R&S | E41: 1 | F41: =ROUND(LCProjectLenf*LCCLNf*E41,0) -> 2000 | G41: LIN FT | H41: =H39*LCFlexCentJTS -> 2 | J41: =IF( C41= "X",0,ROUND((F41*H41),0)) -> 4000
D42: RNDM / THRM CRACK R&S | E42: 0.5 | F42: =ROUND((LCLanesNf*(LCProjectLenf/100)*LCCrackRatef)*E42,0) -> 2200 | G42: LIN FT | H42: =H39*LCFlexThermCRS -> 2 | J42: =IF( C42= "X",0,ROUND((F42*H42),0)) -> 4400
D43: PD PVMT PATCH M&F SURF | E43: 0.005 | F43: =ROUND(LCPavementSQYDf*E43,0) -> 27 | G43: SQ YD | H43: =H39*LCFlexPavPatchS -> 80.64 | J43: =IF( C43= "X",0,ROUND((F43*H43),0)) -> 2177
D44: PWFn = | E44: =PVFn(II,C39) -> 0.4776055693 | G44: PW = | H44: =E44 -> 0.4776055693 | I44: X | J44: =SUM(J40:J43) -> 18577 | K44: =ROUND(((J44)*H44),0) -> 8872
D45: =LC_FlexBase -> HMA_SD
B46: YEAR | C46: 30 | D46: =LC_FacilityType -> INTERSTATE | G46: FVFn = | H46: 1
D47: =IF(LC_FacilityType= "Interstate", "MILL PVMT ONLY " & FIXED(LifeCycleCost!$G$79,2) & """ ", "MILL PVMT & SHLD " & FIXED(LifeCycleCost!$G$79,2) & """ ") -> MILL PVMT ONLY 2.00" | E47: 1 | F47: =IF(LC_FacilityType= "Interstate", ROUND((LCPavementSQYDf)*E47,0), ROUND((LCPavementSQYDf+LCShoulderSQYDf)*E47,0) ) -> 5333 | G47: SQ YD | H47: =H46*LCFlexMillingS -> 3 | J47: =IF( C47= "X",0,ROUND((F47*H47),0)) -> 15999
D48: ="PD PVMT PATCH M&F ADD'L " & FIXED(LifeCycleCost!$G$84,2) & """ " -> PD PVMT PATCH M&F ADD'L 2.00" | E48: 0.02 | F48: =ROUND((LCPavementSQYDf)*E48,0) -> 107 | G48: SQ YD | H48: =H46*LifeCycleCost!$I$84 -> 79.52 | J48: =IF( C48= "X",0,ROUND((F48*H48),0)) -> 8509
D49: =IF(LC_FacilityType= "Interstate","PD SHLD PATCH M&F SURF " & FIXED(LifeCycleCost!$G$85,2) & """ ","PD SHLD PATCH M&F ADD'L " & FIXED(LifeCycleCost!$G$85,2) & """ ") -> PD SHLD PATCH M&F SURF 2.00" | E49: 0.01 | F49: =ROUND((LCShoulderSQYDf)*E49,0) -> 36 | G49: SQ YD | H49: =H46*LifeCycleCost!$I$85 -> 78.064 | J49: =IF( C49= "X",0,ROUND((F49*H49),0)) -> 2810
D50: ="HMA OVERLAY PVMT " & FIXED( IF(LC_FlexBase="HMA_SD",LifeCycleCost!$G$73,LifeCycleCost!$G$210), 2) & " "" " -> HMA OVERLAY PVMT 3.75 " | E50: 1 | F50: =IF(LC_FlexBase="HMA_SD",LifeCycleCost!$M$73,LifeCycleCost!$M$210) -> 5333.3333 | G50: =MID( IF(LC_FlexBase="HMA_SD",LifeCycleCost!$J$73,LifeCycleCost!$J$210),3,5) -> SQ YD | H50: =IF(LC_FlexBase="HMA_SD",LifeCycleCost!$I$73,LifeCycleCost!$I$210) -> 20.20976563 | J50: =IF( C50= "X",0,ROUND((F50*H50),0)) -> 107785
D51: ="HMA OVERLAY SHLD " & FIXED( IF(LC_FlexBase="HMA_SD",LifeCycleCost!$G$76,LifeCycleCost!$G$213), 2) &" "" " -> HMA OVERLAY SHLD 1.75 " | E51: 1 | F51: =IF(LC_FlexBase="HMA_SD",LifeCycleCost!$M$76,LifeCycleCost!$M$213) -> 3555.55558 | G51: =MID( IF(LC_FlexBase="HMA_SD",LifeCycleCost!$J$76,LifeCycleCost!$J$213),3,5) -> SQ YD | H51: =IF(LC_FlexBase="HMA_SD",LifeCycleCost!$I$76,LifeCycleCost!$I$213) -> 7.056 | J51: =IF( C51= "X",0,ROUND((F51*H51),0)) -> 25088
D52: PWFn = | E52: =PVFn(II,C46) -> 0.4119867595 | G52: PW = | H52: =E52 -> 0.4119867595 | I52: X | J52: =SUM(J47:J51) -> 160191 | K52: =ROUND(((J52)*H52),0) -> 65997
B54: YEAR | C54: 35 | G54: FVFn = | H54: 1
D55: LONG SHLD JT R&S | E55: 1 | F55: =ROUND((LCProjectLenf*LCEdgesNf)*E55,0) -> 4000 | G55: LIN FT | H55: =H54*LCFlexShldJTS -> 2 | J55: =IF( C55= "X",0,ROUND((F55*H55),0)) -> 8000
D56: CNTR LINE JOINT R&S | E56: 1 | F56: =ROUND(LCProjectLenf*LCCLNf*E56,0) -> 2000 | G56: LIN FT | H56: =H54*LCFlexCentJTS -> 2 | J56: =IF( C56= "X",0,ROUND((F56*H56),0)) -> 4000
D57: RNDM / THRM CRACK R&S | E57: 0.5 | F57: =ROUND((LCLanesNf*(LCProjectLenf/100)*LCCrackRatef)*E57,0) -> 2200 | G57: LIN FT | H57: =H54*LCFlexThermCRS -> 2 | J57: =IF( C57= "X",0,ROUND((F57*H57),0)) -> 4400
D58: PD PVMT PATCH M&F SURF | E58: 0.001 | F58: =ROUND(LCPavementSQYDf*E58,0) -> 5 | G58: SQ YD | H58: =H54*LCFlexPavPatchS -> 80.64 | J58: =IF( C58= "X",0,ROUND((F58*H58),0)) -> 403
D59: PWFn = | E59: =PVFn(II,C54) -> 0.3553833978 | G59: PW = | H59: =E59 -> 0.3553833978 | I59: X | J59: =SUM(J55:J58) -> 16803 | K59: =ROUND(((J59)*H59),0) -> 5972
B61: YEAR | C61: 40 | G61: FVFn = | H61: 1
D62: LONG SHLD JT R&S | E62: 1 | F62: =ROUND((LCProjectLenf*LCEdgesNf)*E62,0) -> 4000 | G62: LIN FT | H62: =H61*LCFlexShldJTS -> 2 | J62: =IF( C62= "X",0,ROUND((F62*H62),0)) -> 8000
D63: CNTR LINE JOINT R&S | E63: 1 | F63: =ROUND(LCProjectLenf*LCCLNf*E63,0) -> 2000 | G63: LIN FT | H63: =H61*LCFlexCentJTS -> 2 | J63: =IF( C63= "X",0,ROUND((F63*H63),0)) -> 4000
D64: RNDM / THRM CRACK R&S | E64: 0.5 | F64: =ROUND((LCLanesNf*(LCProjectLenf/100)*LCCrackRatef)*E64,0) -> 2200 | G64: LIN FT | H64: =H61*LCFlexThermCRS -> 2 | J64: =IF( C64= "X",0,ROUND((F64*H64),0)) -> 4400
D65: PD PVMT PATCH M&F SURF | E65: 0.005 | F65: =ROUND(LCPavementSQYDf*E65,0) -> 27 | G65: SQ YD | H65: =H61*LCFlexPavPatchS -> 80.64 | J65: =IF( C65= "X",0,ROUND((F65*H65),0)) -> 2177
D66: PWFn = | E66: =PVFn(II,C61) -> 0.3065568408 | G66: PW = | H66: =E66 -> 0.3065568408 | I66: X | J66: =SUM(J62:J65) -> 18577 | K66: =ROUND(((J66)*H66),0) -> 5695
K68: =SUM(K11:K67) -> 199058
D70: ROUTINE MAINTENANCE ACTIVITY | F70: =LCLanesNf*LCProjectLenf / 5280 -> 0.7575757576 | G70: Lane Miles | H70: =LCFlexARMA -> 0 | J70: =IF( C70= "X",0,(F70*H70)) -> 0 | K70: =J70/CRFn(II,LifeCycle) -> 0
J71: MAINTENANCE LIFE-CYCLE COST | K71: =SUM(K68:K70) -> 199058
C72: =LifeCycle -> 45 | D72: =" YEAR LIFE CYCLE" & REPT(" ",20) & "CRFn = " & FIXED(CRFn(II,LifeCycle),7) -> YEAR LIFE CYCLE CRFn = 0.0407852 | J72: MAINTENANCE ANNUAL COST PER MILE | K72: =ROUND(((K71*CRFn(II,LifeCycle)/(LCProjectLenf / 5280))),0) -> 42866

Sheet REHAB_HMA02 (hidden)
B1: HMA_LSCD | E1: MAINTENANCE AND REHABILITATION ACTIVITY SCHEDULE | K1: =NOW() -> 2017-05-04T11:05:27.110
E2: =IF(AND(CELL("col",A1)>10,LC_FlexRehabType<>LC_FlexBase),"WARNING: INCORRECT MAINTENANCE SCHEDULE for CURRENT PAVEMENT THICKNESS!"," - ") -> -
E4: FULL-DEPTH HMA PAVEMENT
E5: HMA OVERLAY OF RUBBLIZED PCC PAVEMENT
E6: Figure 54-7.C
E7: LIMITING STRAIN CRITERION DESIGN
H8: =IF(LCUPC= "Yes","PROJECTED","") ->  | J8: =IF(LCUPC= "Yes","PROJECTED","") ->  | K8: PRESENT
B9: MAINTENANCE COSTS: | D9: ITEM | E9: % | F9: QUANTITY | G9: UNIT | H9: UNIT COST | J9: COST | K9: WORTH
B11: YEAR | C11: 5 | G11: FVFn = | H11: 1
D12: LONG SHLD JT R&S | E12: 1 | F12: =ROUND((LCProjectLenf*LCEdgesNf)*E12,0) -> 4000 | G12: LIN FT | H12: =H11*LCFlexShldJTS -> 2 | J12: =IF( C12= "X",0,ROUND((F12*H12),0)) -> 8000
D13: CNTR LINE JOINT R&S | E13: 1 | F13: =ROUND((LCProjectLenf*LCCLNf)*E13,0) -> 2000 | G13: LIN FT | H13: =H11*LCFlexCentJTS -> 2 | J13: =IF( C13= "X",0,ROUND((F13*H13),0)) -> 4000
D14: RNDM / THRM CRACK R&S | E14: 0.5 | F14: =ROUND((LCLanesNf*(LCProjectLenf/100)*LCCrackRatef)*E14,0) -> 2200 | G14: LIN FT | H14: =H11*LCFlexThermCRS -> 2 | J14: =IF( C14= "X",0,ROUND((F14*H14),0)) -> 4400
D15: PD PVMT PATCH M&F SURF | E15: 0.001 | F15: =ROUND(LCPavementSQYDf*E15,0) -> 5 | G15: SQ YD | H15: =H11*LCFlexPavPatchS -> 80.64 | J15: =IF( C15= "X",0,ROUND((F15*H15),0)) -> 403
D16: PWFn = | E16: =PVFn(II,C11) -> 0.8626087844 | G16: PW = | H16: =E16 -> 0.8626087844 | I16: X | J16: =SUM(J12:J15) -> 16803 | K16: =ROUND(((J16)*H16),0) -> 14494
B18: YEAR | C18: 10 | G18: FVFn = | H18: 1
D19: LONG SHLD JT R&S | E19: 1 | F19: =ROUND((LCProjectLenf*LCEdgesNf)*E19,0) -> 4000 | G19: LIN FT | H19: =H18*LCFlexShldJTS -> 2 | J19: =IF( C19= "X",0,ROUND((F19*H19),0)) -> 8000
D20: CNTR LINE JOINT R&S | E20: 1 | F20: =ROUND((LCProjectLenf*LCCLNf)*E20,0) -> 2000 | G20: LIN FT | H20: =H18*LCFlexCentJTS -> 2 | J20: =IF( C20= "X",0,ROUND((F20*H20),0)) -> 4000
D21: RNDM / THRM CRACK R&S | E21: 0.5 | F21: =ROUND((LCLanesNf*(LCProjectLenf/100)*LCCrackRatef)*E21,0) -> 2200 | G21: LIN FT | H21: =H18*LCFlexThermCRS -> 2 | J21: =IF( C21= "X",0,ROUND((F21*H21),0)) -> 4400
D22: PD PVMT PATCH M&F SURF | E22: 0.005 | F22: =ROUND(LCPavementSQYDf*E22,0) -> 27 | G22: SQ YD | H22: =H18*LCFlexPavPatchS -> 80.64 | J22: =IF( C22= "X",0,ROUND((F22*H22),0)) -> 2177
D23: PWFn = | E23: =PVFn(II,C18) -> 0.7440939149 | G23: PW = | H23: =E23 -> 0.7440939149 | I23: X | J23: =SUM(J19:J22) -> 18577 | K23: =ROUND(((J23)*H23),0) -> 13823
B25: YEAR | C25: 15 | G25: FVFn = | H25: 1
D26: ="MILL PVMT & SHLD " & FIXED(LifeCycleCost!$G$79,2) & """ " -> MILL PVMT & SHLD 2.00" | E26: 1 | F26: =ROUND((LCPavementSQYDf+LCShoulderSQYDf)*E26,0) -> 8889 | G26: SQ YD | H26: =H25*LCFlexMillingS -> 3 | J26: =IF( C26= "X",0,ROUND((F26*H26),0)) -> 26667
D27: ="PD PVMT PATCH M&F ADD'L " & FIXED(LifeCycleCost!$G$84,2) & """ " -> PD PVMT PATCH M&F ADD'L 2.00" | E27: 0.01 | F27: =ROUND(LCPavementSQYDf*E27,0) -> 53 | G27: SQ YD | H27: =H25*LifeCycleCost!$I$84 -> 79.52 | J27: =IF( C27= "X",0,ROUND((F27*H27),0)) -> 4215
D28: ="HMA OVERLAY PVMT " & FIXED(LifeCycleCost!$G$72,2) & """ " -> HMA OVERLAY PVMT 2.00" | E28: 1 | F28: =IF(LC_FlexBase="HMA_SD",LifeCycleCost!$M$72,LifeCycleCost!$M$72) -> 5333.3333 | G28: =MID( IF(LC_FlexBase="HMA_SD",LifeCycleCost!$J$72,LifeCycleCost!$J$72), 3,5) -> SQ YD | H28: =H25*LifeCycleCost!$I$72 -> 10.71388889 | J28: =IF( C28= "X",0,ROUND((F28*H28),0)) -> 57141
D29: ="HMA OVERLAY SHLD " & FIXED(LifeCycleCost!$G$77,2) &" "" " -> HMA OVERLAY SHLD 2.00 " | E29: 1 | F29: =IF(LC_FlexBase="HMA_SD",LifeCycleCost!$M$77,LifeCycleCost!$M$77) -> 3555.55558 | G29: =MID( IF(LC_FlexBase="HMA_SD",LifeCycleCost!$J$77,LifeCycleCost!$J$77),3,5) -> SQ YD | H29: =H25*LifeCycleCost!$I$77 -> 8.064 | J29: =IF( C29= "X",0,ROUND((F29*H29),0)) -> 28672
D30: PWFn = | E30: =PVFn(II,C25) -> 0.6418619474 | G30: PW = | H30: =E30 -> 0.6418619474 | I30: X | J30: =SUM(J26:J29) -> 116695 | K30: =ROUND(((J30)*H30),0) -> 74902
B32: YEAR | C32: 20 | G32: FVFn = | H32: 1
D33: LONG SHLD JT R&S | E33: 1 | F33: =ROUND((LCProjectLenf*LCEdgesNf)*E33,0) -> 4000 | G33: LIN FT | H33: =H32*LCFlexShldJTS -> 2 | J33: =IF( C33= "X",0,ROUND((F33*H33),0)) -> 8000
D34: CNTR LINE JOINT R&S | E34: 1 | F34: =ROUND((LCProjectLenf*LCCLNf)*E34,0) -> 2000 | G34: LIN FT | H34: =H32*LCFlexCentJTS -> 2 | J34: =IF( C34= "X",0,ROUND((F34*H34),0)) -> 4000
D35: RNDM / THRM CRACK R&S | E35: 0.5 | F35: =ROUND((LCLanesNf*(LCProjectLenf/100)*LCCrackRatef)*E35,0) -> 2200 | G35: LIN FT | H35: =H32*LCFlexThermCRS -> 2 | J35: =IF( C35= "X",0,ROUND((F35*H35),0)) -> 4400
D36: PD PVMT PATCH M&F SURF | E36: 0.001 | F36: =ROUND(LCPavementSQYDf*E36,0) -> 5 | G36: SQ YD | H36: =H32*LCFlexPavPatchS -> 80.64 | J36: =IF( C36= "X",0,ROUND((F36*H36),0)) -> 403
D37: PWFn = | E37: =PVFn(II,C32) -> 0.5536757542 | G37: PW = | H37: =E37 -> 0.5536757542 | I37: X | J37: =SUM(J33:J36) -> 16803 | K37: =ROUND(((J37)*H37),0) -> 9303
B39: YEAR | C39: 25 | G39: FVFn = | H39: 1
D40: LONG SHLD JT R&S | E40: 1 | F40: =ROUND((LCProjectLenf*LCEdgesNf)*E40,0) -> 4000 | G40: LIN FT | H40: =H39*LCFlexShldJTS -> 2 | J40: =IF( C40= "X",0,ROUND((F40*H40),0)) -> 8000
D41: CNTR LINE JOINT R&S | E41: 1 | F41: =ROUND((LCProjectLenf*LCCLNf)*E41,0) -> 2000 | G41: LIN FT | H41: =H39*LCFlexCentJTS -> 2 | J41: =IF( C41= "X",0,ROUND((F41*H41),0)) -> 4000
D42: RNDM / THRM CRACK R&S | E42: 0.5 | F42: =ROUND((LCLanesNf*(LCProjectLenf/100)*LCCrackRatef)*E42,0) -> 2200 | G42: LIN FT | H42: =H39*LCFlexThermCRS -> 2 | J42: =IF( C42= "X",0,ROUND((F42*H42),0)) -> 4400
D43: PD PVMT PATCH M&F SURF | E43: 0.005 | F43: =ROUND(LCPavementSQYDf*E43,0) -> 27 | G43: SQ YD | H43: =H39*LCFlexPavPatchS -> 80.64 | J43: =IF( C43= "X",0,ROUND((F43*H43),0)) -> 2177
D44: PWFn = | E44: =PVFn(II,C39) -> 0.4776055693 | G44: PW = | H44: =E44 -> 0.4776055693 | I44: X | J44: =SUM(J40:J43) -> 18577 | K44: =ROUND(((J44)*H44),0) -> 8872
D45: =LC_FlexBase -> HMA_SD
B46: YEAR | C46: 30 | D46: =LC_FacilityType -> INTERSTATE | G46: FVFn = | H46: 1
D47: ="MILL PVMT & SHLD " & FIXED(LifeCycleCost!$G$79,2) & """ " -> MILL PVMT & SHLD 2.00" | E47: 1 | F47: =ROUND((LCPavementSQYDf+LCShoulderSQYDf)*E47,0) -> 8889 | G47: SQ YD | H47: =H46*LCFlexMillingS -> 3 | J47: =IF( C47= "X",0,ROUND((F47*H47),0)) -> 26667
D48: ="PD PVMT PATCH M&F ADD'L " & FIXED(LifeCycleCost!$G$84,2) & """ " -> PD PVMT PATCH M&F ADD'L 2.00" | E48: 0.02 | F48: =ROUND((LCPavementSQYDf)*E48,0) -> 107 | G48: SQ YD | H48: =H46*LifeCycleCost!$I$84 -> 79.52 | J48: =IF( C48= "X",0,ROUND((F48*H48),0)) -> 8509
D49: ="PD SHLD PATCH M&F ADD'L " & FIXED(LifeCycleCost!$G$85,2) & """ " -> PD SHLD PATCH M&F ADD'L 2.00" | E49: 0.01 | F49: =ROUND((LCShoulderSQYDf)*E49,0) -> 36 | G49: SQ YD | H49: =H46*LifeCycleCost!$I$85 -> 78.064 | J49: =IF( C49= "X",0,ROUND((F49*H49),0)) -> 2810
D50: ="HMA OVERLAY PVMT " & FIXED( IF(LC_FlexBase="HMA_SD",LifeCycleCost!$G$210,LifeCycleCost!$G$73), 2) & """ " -> HMA OVERLAY PVMT 2.00" | E50: 1 | F50: =IF(LC_FlexBase="HMA_LSCD",LifeCycleCost!$M$73,LifeCycleCost!$M$210) -> 601.4814777 | G50: =MID( IF(LC_FlexBase="HMA_LSCD",LifeCycleCost!$J$73,LifeCycleCost!$J$210),3,5) -> TON | H50: =IF(LC_FlexBase="HMA_SD",LifeCycleCost!$I$210,LifeCycleCost!$I$73) -> 95 | J50: =IF( C50= "X",0,ROUND((F50*H50),0)) -> 57141
D51: ="HMA OVERLAY SHLD " & FIXED( IF(LC_FlexBase="HMA_SD",LifeCycleCost!$G$213,LifeCycleCost!$G$76), 2) &" "" " -> HMA OVERLAY SHLD 2.00 " | E51: 1 | F51: =IF(LC_FlexBase="HMA_LSCD",LifeCycleCost!$M$76,LifeCycleCost!$M$213) -> 398.222225 | G51: =MID( IF(LC_FlexBase="HMA_LSCD",LifeCycleCost!$J$76,LifeCycleCost!$J$213),3,5) -> TON | H51: =IF(LC_FlexBase="HMA_SD",LifeCycleCost!$I$213,LifeCycleCost!$I$76) -> 72 | J51: =IF( C51= "X",0,ROUND((F51*H51),0)) -> 28672
D52: PWFn = | E52: =PVFn(II,C46) -> 0.4119867595 | G52: PW = | H52: =E52 -> 0.4119867595 | I52: X | J52: =SUM(J47:J51) -> 123799 | K52: =ROUND(((J52)*H52),0) -> 51004
B54: YEAR | C54: 35 | G54: FVFn = | H54: 1
D55: LONG SHLD JT R&S | E55: 1 | F55: =ROUND((LCProjectLenf*LCEdgesNf)*E55,0) -> 4000 | G55: LIN FT | H55: =H54*LCFlexShldJTS -> 2 | J55: =IF( C55= "X",0,ROUND((F55*H55),0)) -> 8000
D56: CNTR LINE JOINT R&S | E56: 1 | F56: =ROUND((LCProjectLenf*LCCLNf)*E56,0) -> 2000 | G56: LIN FT | H56: =H54*LCFlexCentJTS -> 2 | J56: =IF( C56= "X",0,ROUND((F56*H56),0)) -> 4000
D57: RNDM / THRM CRACK R&S | E57: 0.5 | F57: =ROUND((LCLanesNf*(LCProjectLenf/100)*LCCrackRatef)*E57,0) -> 2200 | G57: LIN FT | H57: =H54*LCFlexThermCRS -> 2 | J57: =IF( C57= "X",0,ROUND((F57*H57),0)) -> 4400
D58: PD PVMT PATCH M&F SURF | E58: 0.001 | F58: =ROUND(LCPavementSQYDf*E58,0) -> 5 | G58: SQ YD | H58: =H54*LCFlexPavPatchS -> 80.64 | J58: =IF( C58= "X",0,ROUND((F58*H58),0)) -> 403
D59: PWFn = | E59: =PVFn(II,C54) -> 0.3553833978 | G59: PW = | H59: =E59 -> 0.3553833978 | I59: X | J59: =SUM(J55:J58) -> 16803 | K59: =ROUND(((J59)*H59),0) -> 5972
B61: YEAR | C61: 40 | G61: FVFn = | H61: 1
D62: LONG SHLD JT R&S | E62: 1 | F62: =ROUND((LCProjectLenf*LCEdgesNf)*E62,0) -> 4000 | G62: LIN FT | H62: =H61*LCFlexShldJTS -> 2 | J62: =IF( C62= "X",0,ROUND((F62*H62),0)) -> 8000
D63: CNTR LINE JOINT R&S | E63: 1 | F63: =ROUND((LCProjectLenf*LCCLNf)*E63,0) -> 2000 | G63: LIN FT | H63: =H61*LCFlexCentJTS -> 2 | J63: =IF( C63= "X",0,ROUND((F63*H63),0)) -> 4000
D64: RNDM / THRM CRACK R&S | E64: 0.5 | F64: =ROUND((LCLanesNf*(LCProjectLenf/100)*LCCrackRatef)*E64,0) -> 2200 | G64: LIN FT | H64: =H61*LCFlexThermCRS -> 2 | J64: =IF( C64= "X",0,ROUND((F64*H64),0)) -> 4400
D65: PD PVMT PATCH M&F SURF | E65: 0.005 | F65: =ROUND(LCPavementSQYDf*E65,0) -> 27 | G65: SQ YD | H65: =H61*LCFlexPavPatchS -> 80.64 | J65: =IF( C65= "X",0,ROUND((F65*H65),0)) -> 2177
D66: PWFn = | E66: =PVFn(II,C61) -> 0.3065568408 | G66: PW = | H66: =E66 -> 0.3065568408 | I66: X | J66: =SUM(J62:J65) -> 18577 | K66: =ROUND(((J66)*H66),0) -> 5695
K68: =SUM(K11:K67) -> 184065
D70: ROUTINE MAINTENANCE ACTIVITY | F70: =LCLanesNf*LCProjectLenf / 5280 -> 0.7575757576 | G70: Lane Miles | H70: =LCFlexARMA -> 0 | J70: =IF( C70= "X",0,(F70*H70)) -> 0 | K70: =J70/CRFn(II,LifeCycle) -> 0
J71: MAINTENANCE LIFE-CYCLE COST | K71: =SUM(K68:K70) -> 184065
C72: =LifeCycle -> 45 | D72: =" YEAR LIFE CYCLE" & REPT(" ",20) & "CRFn = " & FIXED(CRFn(II,LifeCycle),7) -> YEAR LIFE CYCLE CRFn = 0.0407852 | J72: MAINTENANCE ANNUAL COST PER MILE | K72: =ROUND(((K71*CRFn(II,LifeCycle)/(LCProjectLenf / 5280))),0) -> 39638

Sheet PDFSheets (hidden)

Sheet MacroNames (hidden)
F2: Run Location
B3: Macro Location | D3: Macro Name | F3: Sheet | G3: Address | H3: Description
B4: LifeCycleCost | D4: Private Sub Worksheet_Activate() | F4: LifeCycleCost | H4: UnHide OverRide Column
B5: LifeCycleCost | D5: Private Sub Worksheet_Change(ByVal Target As Range) | F5: LifeCycleCost | H5: Auto Import Correct Maintenance Schedule
B7: Module 1 | D7: Public Function TFRIGID(CLASS, DP, PV, SU, MU, PPV, PSU, PMU) As Double | F7: PaveDesign
B8: Module 1 | D8: Public Function TFflex(CLASS, DP, PV, SU, MU, PPV, PSU, PMU) As Double | F8: PaveDesign
B9: Module 1 | D9: Public Function TFRIGIDCH07(CLASS, DP, PV, SU, MU, PPV, PSU, PMU) As Double | F9: PaveDesign
B10: Module 1 | D10: Public Function TFFLEXCH07(CLASS, DP, PV, SU, MU, PPV, PSU, PMU) As Double | F10: PaveDesign
B11: Module 1 | D11: Public Function RIGID(TF, SoilType, TieType) As Double | F11: PaveDesign
A12: X | B12: Module 1 | D12: Public Function LaGrange(X0, X1, Y1, X2, Y2, X3, Y3) | F12: PaveDesign
B13: Module 1 | D13: Public Function RIGID_LaGrange(TF, SoilType, TieType) As Double | F13: PaveDesign
B14: Module 1 | D14: Public Function RigidUnMarkedClassIV(TF) As Double | F14: PaveDesign
B15: Module 1 | D15: Public Function FLEXIBLE(SoilType, EHMA, STRAIN) As Double | F15: PaveDesign
B16: Module 1 | D16: Public Function HMA_Mix_Modulus(Mix_Type, Temp) As Double | F16: PaveDesign
B17: Module 1 | D17: Public Function HMA_STRAINfn(TF) As Double | F17: PaveDesign
B18: Module 1 | D18: Public Function HMA_MaxT(MixType, Temp) As Double | F18: PaveDesign
B19: Module 1 | D19: Public Function FlexAASHTO(CLASS, TF, IBR) As Double | F19: PaveDesign
B20: Module 1 | D20: Public Function AASHTORigid_JRCP(CLASS, TF, IBR) | F20: PaveDesign
B21: Module 1 | D21: Public Function AASHTORigid_CRCP(CLASS, TF, IBR) | F21: PaveDesign
B22: Module 1 | D22: Public Function CompAASHTO(CLASS, TF, IBR) As Double | F22: PaveDesign
B23: Module 1 | D23: Public Function RoadClassFn(ADT, FacilityType, LaneType, TrafficFlow) As Double | F23: PaveDesign
B26: Module 2 | D26: Sub FacilityTypeSelect() | F26: PaveDesign
B27: Module 2 | D27: Sub RouteTypeSelect() | F27: PaveDesign
B28: Module 2 | D28: Sub LaneTypeSelect() | F28: PaveDesign
B29: Module 2 | D29: Sub TrafficFlowSelect() | F29: PaveDesign
B30: Module 2 | D30: Sub TFMinYesNo() | F30: PaveDesign
B31: Module 2 | D31: Sub SoilTypeSelect() | F31: PaveDesign
B32: Module 2 | D32: Sub UrbanRural() | F32: PaveDesign
B33: Module 2 | D33: Sub SoilCodePicker() | F33: PaveDesign
B34: Module 2 | D34: Sub DesignCodeSelect() | F34: PaveDesign
B35: Module 2 | D35: Public Function FacilityCodeFn(YesNo, LaneType) As Variant | F35: PaveDesign
B36: Module 2 | D36: Public Function LaneCodeFn(LaneType, Lanes) As Variant | F36: PaveDesign
B37: Module 2 | D37: Public Function MinSNf(FacilityType, LaneType) As Variant | F37: PaveDesign
B38: Module 2 | D38: Sub ReSet_LaneCode() | F38: PaveDesign
B39: Module 2 | D39: Sub ReSet_RoadClass() | F39: PaveDesign
B40: Module 2 | D40: Sub ReSet_MinSNf() | F40: PaveDesign
B41: Module 2 | D41: Sub ReSet_MinJRCP() | F41: PaveDesign
B42: Module 2 | D42: Sub ReSet_Dbmin() | F42: PaveDesign
B43: Module 2 | D43: Sub ReSetMeanPvmtTemp() | F43: PaveDesign
B44: Module 2 | D44: Sub ReSetALL() | F44: PaveDesign
B45: Module 2 | D45: Sub PleaseRead_ShowHide() | F45: PaveDesign
B46: Module 2 | D46: Sub ReadMe() | F46: PaveDesign | H46: Exempt
B47: Module 2 | D47: Sub HMA_Mix_Select() | F47: PaveDesign
B48: Module 2 | D48: Sub ReSetWorksheet() | F48: TestArea
B51: Module 3 | D51: Private Declare Sub mouse_event Lib "user32" | F51: Maps
B52: Module 3 | D52: Public Const MOUSEEVENTF_LEFTDOWN = &H2 | F52: Maps
B53: Module 3 | D53: Public Const MOUSEEVENTF_LEFTUP = &H4 | F53: Maps
B54: Module 3 | D54: Public Sub MouseLeftClick() | F54: Maps
B55: Module 3 | D55: Sub IsoTherms() | F55: Maps
B56: Module 3 | D56: Sub Map_HelpShowHide() | F56: Maps
B57: Module 3 | D57: Sub GetMapValue() | F57: Maps
B58: Module 3 | D58: Public Function HMA_ValueFn(Temp01, Temp02) As Double | F58: Maps
B59: Module 3 | D59: Sub Map_Deactivate() | F59: Maps
B60: Module 3 | D60: Sub SetHMA_Temp() | F60: Maps
B61: Module 3 | D61: Sub Set_LSCDThickness() | F61: Maps
B63: Module 3 | D63: Sub Colors() | F63: All
B64: Module 3 | D64: Sub SetDate() | F64: All
B65: Module 3 | D65: Public Function Rounder(Num, Inc) As Double | F65: All
B66: Module 3 | D66: Public Function ShowAddress(MyCell) As String | F66: All
B70: Module 4 | D70: Sub LC_Print() | F70: LifeCycleCost
B71: Module 4 | D71: Sub LC_Instructions_ShowHide() | F71: LifeCycleCost
B72: Module 4 | D72: Sub LC_HMAInfo_ShowHide() | F72: LifeCycleCost
B73: Module 4 | D73: Sub ImportWorksheetValues() | F73: LifeCycleCost
B74: Module 4 | D74: Public Function FVFn(i, n) As Double | F74: LifeCycleCost
B75: Module 4 | D75: Public Function PVFn(i, n) As Double | F75: LifeCycleCost
B76: Module 4 | D76: Public Function CRFn(i, n) As Double | F76: LifeCycleCost
B77: Module 4 | D77: Sub UseProjectedUnitCosts() | F77: LifeCycleCost | H77: Exempt
B78: Module 4 | D78: Sub OverrideColumnsHideUnHide() | F78: LifeCycleCost
B79: Module 4 | D79: Sub UserOverrideOnOff() | F79: LifeCycleCost
B80: Module 4 | D80: Sub Toggle01() | F80: LifeCycleCost | H80: Interstate <> Non Interstate
B81: Module 4 | D81: Sub SelectRigidRehab() | F81: LifeCycleCost
B82: Module 4 | D82: Sub Select_JPCP() | F82: LifeCycleCost
B83: Module 4 | D83: Sub Select_CRCP() | F83: LifeCycleCost
B84: Module 4 | D84: Sub ImportRigidRehab(SCHD_Name) | F84: LifeCycleCost
B85: Module 4 | D85: Sub SelectFlexRehab() | F85: LifeCycleCost
B86: Module 4 | D86: Sub Select_HMA_SD() | F86: LifeCycleCost
B87: Module 4 | D87: Sub Select_HMA_LSCD() | F87: LifeCycleCost
B88: Module 4 | D88: Sub ImportFlexRehab(SCHD_Name) | F88: LifeCycleCost
B89: Module 4 | D89: Sub UpDateCurrentTFRangeSchedule() | F89: LifeCycleCost
B90: Module 4 | D90: Sub Reset_HMAPaveFD_Cost() | F90: LifeCycleCost
B91: Module 4 | D91: Sub CheckMarkAuto() | F91: LifeCycleCost
B92: Module 4 | D92: Sub CheckMark() | F92: LifeCycleCost
B93: Module 4 | D93: Public Function Warning01(MyRange As Range) As String | F93: LifeCycleCost
B95: Module 5 | D95: Public Function RIGIDold(SoilType, TieType, TF) As Double | F95: PaveDesign | H95: Exempt
B96: Module 5 | D96: Public Function DDesignEAC_old(MixType, Temp) As Double | F96: PaveDesign | H96: Exempt
B97: Module 5 | D97: Public Function ACSTRAIN_old(TF) As Double | F97: PaveDesign | H97: Exempt
B98: Module 5 | D98: Public Function TFRange(ProjectTypeNum, TFflex) As String | F98: LifeCycleCost | H98: Exempt
B99: Module 5 | D99: Sub ReadMeLCC01() 'Exempt | F99: LifeCycleCost | H99: Exempt
